{"text_format":"1","workbook":"xlsx","n_sheets":9,"sheets":["Copyright","Cover","Instruction","All Result","Sheet1","FW nonmetal nonplant","FW nonmetal nonplant_WS","FW nonmetal plant","FW nonmetal plant_WS"],"not_rendered":{"charts":0,"images":0,"macros":1,"external_links":0,"defined_names":4,"comments":3,"pivot_tables":0},"unopened":[],"bounds":{"document_bytes":16777216,"sheet_cells":100000,"rows_first":2000,"rows_last":500,"rows_between":2000,"halvings":0,"cell_chars":16384,"cell_head_chars":4096},"cells_cut":0,"cells_raw":0,"read":"whole","date_system":"1900"}

{"sheet":"Copyright","index":0,"n_rows":0,"n_cols":0,"rows_kept":0,"cut":false,"hidden":false,"merged":[]}

{"sheet":"Cover","index":1,"n_rows":20,"n_cols":7,"rows_kept":20,"cut":false,"hidden":false,"merged":[[18,6,18,8],[14,6,14,8],[13,6,13,8],[4,4,4,10],[9,6,9,8],[12,6,12,8],[5,5,6,9]]}
[]
[]
[]
[]
[null,null,null,null,"Ecotoxicity Data Quality Assessment Method V2.4"]
[null,null,null,null,null,"To be used to assess the quality of data used for the Australian and New Zealand Guidelines for Fresh and Marine Water Quality (including sediment) and the Australian National Environment Protection (Assessment of Site Contamination) Measure"]
[]
[]
[]
[null,null,null,null,null,null,"Developed by "]
[]
[]
[null,null,null,null,null,null,"Zoe Zhang"]
[null,null,null,null,null,null,"   Dr. Michael Warne"]
[null,null,null,null,null,null,"Alison Vieritz "]
[]
[]
[]
[null,null,null,null,null,null,"Water Quality & Investigations "]
[null,null,null,null,null,"                 Department of Science, Information Technology and Innovation"]

{"sheet":"Instruction","index":2,"n_rows":21,"n_cols":10,"rows_kept":21,"cut":false,"hidden":false,"merged":[[27,6,27,16],[14,6,14,7],[5,4,5,7]]}
[]
[]
[null,"Click here to see \"All Result\" -->","All Result"]
[]
[]
[null,null,null,null,"Freshwater "]
[]
[null,"Tabs contain questionaries -->           ","Freshwater/metal/nonplant",null,"Freshwater/non-metal/non-plant ",null,null,"Freshwater/metal/plant",null,"Freshwater/non-metal/plant"]
[]
[]
[]
[null,"Tabs contain score of paper and short answers to questions -->","Freshwater/metal/nonplant Worksheet",null,"Freshwater/non-metal/non-plant Worksheet",null,null,"Freshwater/metal/plant Worksheet",null,"Freshwater/non-metal/plant/ Worksheet"]
[]
[]
[null,null,"Marine ",null,null,null,"Terrestrial",null,null,"Sediment "]
[]
[null,"Tab contain questionaries -->","Marine or estuarine/non-plant",null,"Marine or estuarine/Plant",null,null,"Terrestrial Data QA",null,"Sediment Data QA"]
[]
[]
[]
[null,"Tab Contains all scores of paper --> ","Marine or estuarine/non-Plant Worksheet",null,"Marine or estuarine/Plant_Worksheet",null,null,"Terrestrial Quality",null,"Sediment Quality"]

{"sheet":"All Result","index":3,"n_rows":47,"n_cols":32,"rows_kept":47,"cut":false,"hidden":false,"merged":[]}
["Chemical:","Sulfometuron-methyl"]
["Medium:","Freshwater"]
[{"$f":"'FW nonmetal plant'!C2","v":"Category"},{"$f":"'FW nonmetal plant'!C3","v":"Paper and data unique identifier(eg. 1-1,10-150)"},{"$f":"'FW nonmetal plant'!C70","v":"Total score"},{"$f":"'FW nonmetal plant'!C72","v":"Quality Score"},"Comment ",{"$f":"'FW nonmetal plant'!G3","v":"Species (Scientific name)"},{"$f":"'FW nonmetal plant'!G4","v":"Lifestage"},{"$f":"'FW nonmetal plant'!G5","v":"Exposure duration"},{"$f":"'FW nonmetal plant'!G6","v":"Measure of toxicity"},{"$f":"'FW nonmetal plant'!G7","v":"Toxicity endpoint"},{"$f":"'FW nonmetal plant'!G8","v":"Toxicity value"},{"$f":"'FW nonmetal plant'!J2","v":"Taxonomic group"},{"$f":"'FW nonmetal plant'!J3","v":"Phylum"},{"$f":"'FW nonmetal plant'!J4","v":"Class"},{"$f":"'FW nonmetal plant'!J5","v":"Media"},{"$f":"'FW nonmetal plant'!J6","v":"Temperature "},{"$f":"'FW nonmetal plant'!J7","v":"Acute Or Chronic "},{"$f":"'FW nonmetal plant'!J8","v":"PH"},{"$f":"#REF!","v":{"$error":"#REF!"}},{"$f":"#REF!","v":{"$error":"#REF!"}},{"$f":"#REF!","v":{"$error":"#REF!"}},null,null,null,null,null,null,null,null,null,null,"Olivia Formulation Check"]
["Freshwater/non-metal/non- plant","692-1",65,0.7142857142857143,"The highest possible grade for this datum is acceptable.","Alonella sp. ","N.A.","48 hrs","LC50","Mortality","802 mg/L","Microinvertebrate","Arthropoda","Branchiopoda","Aged tap water","20-22oC","Acute ","8.0-8.5","N.A.","Naqvi, S.M. and R.H. Hawkins. 1989. Responses and LC50 values for selected microcrustaceans exposed to Spartan, Malathion, Sonar, Weedtrine-D and Oust Pesticides. Bulletin of Environmental Contamination and Toxicology 43: 386-393","692"]
["Freshwater/non-metal/plant","764-1",63,0.71590909090909094,"The highest possible grade for this datum is acceptable.","Anabaena flos-aquae","N.A.","5 days","NOEL","Growth","14 ug/L","Cyanobacteria","Cyanobacteria","Nutrient medium","N.A.","N.A.","Chronic","N.A.","N.A.","Thomspon S. 1994. Sulfometuron methyl (DPX-T5648): Influence on growth and reproduction of three select algal species: Lab Project Number: AMR 2892-93: 112A-121. (Unpublished study prepared by Wildlife International Ltd, Easton, MD and Haskell Laboratory for Toxicology and INdustrial Medicine, E.I. du Pont de Nemours and Co, Inc., Neward, DE). 58 p. MRID","764"]
["Freshwater/non-metal/plant","3605-1",53,0.60227272727272729,"The highest possible grade for this datum is acceptable.","Anabaena flos-aquae","N.A.","5 days","EC50","Growth","73 ug/L","Cyanobacteria","Cyanobacteria","N.A.","N.A.","N.A.","Chronic","N.A.","N.A.","USDA Integrated Pest Management (IPM) Database. Accessed November 2019","3605"]
["Freshwater/non-metal/plant","3605-2",53,0.60227272727272729,"The highest possible grade for this datum is acceptable.","Anabaena flos-aquae","N.A.","5 days","NOEC","Growth","14 ug/L","Cyanobacteria","Cyanobacteria","N.A.","N.A.","N.A.","Chronic","N.A.","N.A.","USDA Integrated Pest Management (IPM) Database. Accessed November 2019","3605"]
["Freshwater/non-metal/non- plant","693-1",67,0.73626373626373631,"","Ceriodaphnia dubia","Neonate","48 hrs","LC50","Mortality","200 ug/L","Microinvertebrate","Arthropoda","Branchiopoda","Moderately hard water","24-26oC","Acute ","8.0-8.5","N.A.","Tatum, V.L., D.L. Borton, W.R. Streblow, J. Louch and J.P. Shepard. 2012. Acute toxicity of commonly used forestry herbicide mixtures to Ceriodaphnia dubia and Pimephales promelas. Environmental Toxicology 27: 671-684","693"]
["Freshwater/non-metal/non- plant","692-2",65,0.7142857142857143,"The highest possible grade for this datum is acceptable.","Cyrpia sp. ","N.A.","48 hrs","LC50","Mortality","2241 mg/L","Microinvertebrate","Arthropoda","Ostracoda","Aged tap water","20-22oC","Acute ","8.0-8.5","N.A.","Naqvi, S.M. and R.H. Hawkins. 1989. Responses and LC50 values for selected microcrustaceans exposed to Spartan, Malathion, Sonar, Weedtrine-D and Oust Pesticides. Bulletin of Environmental Contamination and Toxicology 43: 386-393","692"]
["Freshwater/non-metal/non- plant","3600-1",62,0.68131868131868134,"","Daphnia magna","Not stated","48 hrs","EC50","Immobilisation","12500 ug/L","Macroinvertebrate","Arthropoda","Branchiopoda","Not stated","Not stated","Acute ","Not stated","N.A.","USDA Integrated Pest Management (IPM) Database. Accessed November 2019","3600"]
["Freshwater/non-metal/non- plant","3608-1",62,0.68131868131868134,"","Daphnia magna","Not stated","48 hrs","EC50","Immobilisation","150000 ug/L","Macroinvertebrate","Arthropoda","Branchiopoda","Not stated","Not stated","Acute ","Not stated","N.A.","USDA Integrated Pest Management (IPM) Database. Accessed November 2019","3608"]
["Freshwater/non-metal/non- plant","3611-1",62,0.68131868131868134,"","Daphnia magna","Neonate","21 day","NOEC","Reproduction","6100 ug/L","Macroinvertebrate","Arthropoda","Branchiopoda","Not stated","Not stated","Chronic","Not stated","N.A.","USDA Integrated Pest Management (IPM) Database. Accessed November 2019","3611"]
["Freshwater/non-metal/non- plant","3611-2",62,0.68131868131868134,"","Daphnia magna","Neonate","21 day","LOEC","Reproduction","24000 ug/L","Macroinvertebrate","Arthropoda","Branchiopoda","Not stated","Not stated","Chronic","Not stated","N.A.","USDA Integrated Pest Management (IPM) Database. Accessed November 2019","3611"]
["Freshwater/non-metal/non- plant","763-2",63,0.69230769230769229,"The highest possible grade for this datum is acceptable.","Daphnia magna","Neonate","48 hrs","NOEC","Mortality","12500 ug/L","Macroinvertebrate","Arthropoda","Branchiopoda","N.A.","N.A.","Acute ","N.A.","N.A.","Muska CF; Hall CL. 1980. 96-hour LC50 to Bluegill sunfish. Haskell Laboratory Report No.\n629-80. (Unpublished study received Jan 23, 1981 under 352-EX-107; submitted by E.I. du Pont\nde Nemours and Co, Wilmington, DE; CDL:244195-S). MRID 00071417.","763"]
["Freshwater/non-metal/non- plant","692-3",65,0.7142857142857143,"The highest possible grade for this datum is acceptable.","Diaptomus sp. ","N.A.","48 hrs","LC50","Mortality","1315 mg/L","Microinvertebrate","Arthropoda","Maxillopoda","Aged tap water","20-22oC","Acute ","8.0-8.5","N.A.","Naqvi, S.M. and R.H. Hawkins. 1989. Responses and LC50 values for selected microcrustaceans exposed to Spartan, Malathion, Sonar, Weedtrine-D and Oust Pesticides. Bulletin of Environmental Contamination and Toxicology 43: 386-393","692"]
["Freshwater/non-metal/non- plant","692-4",65,0.7142857142857143,"The highest possible grade for this datum is acceptable.","Eucyclops sp. ","N.A.","48 hrs","LC50","Mortality","1330 mg/L","Microinvertebrate","Arthropoda","Maxillopoda","Aged tap water","20-22oC","Acute ","8.0-8.5","N.A.","Naqvi, S.M. and R.H. Hawkins. 1989. Responses and LC50 values for selected microcrustaceans exposed to Spartan, Malathion, Sonar, Weedtrine-D and Oust Pesticides. Bulletin of Environmental Contamination and Toxicology 43: 386-393","692"]
["Freshwater/non-metal/plant","767-1",55,0.625,"The highest possible grade for this datum is acceptable.","Hydrilla verticillata","N.A.","7 days","EC50","Growth","7.5 ug/L","Macrophyte","Magnoliophyta","10% Hoaglands medium","25oC","25oC","Chronic","N.A.","N.A.","Byl, T.D., H.D. Sutton and S.J. Klaine. 1994. Evaluation of peroxidase as a biochemical indicator of toxic chemical exposure in the aquatic plant Hydrilla verticillata, Royle. Environmental Toxicology and Chemistry 13: 509-515","767"]
["Freshwater/non-metal/plant","767-2",55,0.625,"The highest possible grade for this datum is acceptable.","Hydrilla verticillata","N.A.","7 days","NOEC","Growth","0.75 ug/L","Macrophyte","Magnoliophyta","10% Hoaglands medium","25oC","25oC","Chronic","N.A.","N.A.","Byl, T.D., H.D. Sutton and S.J. Klaine. 1994. Evaluation of peroxidase as a biochemical indicator of toxic chemical exposure in the aquatic plant Hydrilla verticillata, Royle. Environmental Toxicology and Chemistry 13: 509-515","767"]
["Freshwater/non-metal/plant","766-1",63,0.71590909090909094,"The highest possible grade for this datum is acceptable.","Lemna gibba","N.A.","14 days","NOEC","Growth","0.207 ug/L","Macrophyte","Tracheophyta","Nutrient medium","N.A.","N.A.","Chronic","N.A.","N.A.","Kannuck R and T. Sloman. 1995. Sulfometuron methyl (DPX-T5648): Influence on growth and reproduction of Lemna gibba G3. Lab Project No. AMR 2902-94. (Unpublished study prepared by Stine-Haskell Research Center, E.I. du Pont de Nemours and Co, Neward, DE). 41p. MRID 43538503","766"]
["Freshwater/non-metal/plant","3607-1",53,0.60227272727272729,"The highest possible grade for this datum is acceptable.","Lemna gibba","N.A.","14 days","EC50","Growth","0.45 ug/L","Macrophyte","Tracheophyta","N.A.","N.A.","N.A.","Chronic","N.A.","N.A.","USDA Integrated Pest Management (IPM) Database. Accessed November 2019","3607"]
["Freshwater/non-metal/plant","3607-2",53,0.60227272727272729,"The highest possible grade for this datum is acceptable.","Lemna gibba","N.A.","14 days","NOEC","Growth","0.207 ug/L","Macrophyte","Tracheophyta","N.A.","N.A.","N.A.","Chronic","N.A.","N.A.","USDA Integrated Pest Management (IPM) Database. Accessed November 2019","3607"]
["Freshwater/non-metal/non- plant","762-1",65,0.7142857142857143,"","Lepomis macrochirus","juvenile","4 day","NOEC","Mortality","12500 ug/L","Fish","Chordata","Actinopterygii","N.A.","N.A.","Acute ","N.A.","N.A.","Muska CF; Hall CL. 1980. 96-hour LC50 to Bluegill sunfish. Haskell Laboratory Report No.\n629-80. (Unpublished study received Jan 23, 1981 under 352-EX-107; submitted by E.I. du Pont\nde Nemours and Co, Wilmington, DE; CDL:244195-S). MRID 00071417.","762"]
["Freshwater/non-metal/non- plant","3609-1",62,0.68131868131868134,"","Lepomis macrochirus","juvenile","96 hrs","LC50","Mortality","150000 ug/L","Fish","Chordata","Actinopterygii","Not stated","Not stated","Acute ","Not stated","N.A.","USDA Integrated Pest Management (IPM) Database. Accessed November 2019","3609"]
["Freshwater/non-metal/non- plant","3609-2",62,0.68131868131868134,"","Lepomis macrochirus","juvenile","96 hrs","NOEC","Mortality","150000 ug/L","Fish","Chordata","Actinopterygii","Not stated","Not stated","Acute ","Not stated","N.A.","USDA Integrated Pest Management (IPM) Database. Accessed November 2019","3609"]
["Freshwater/non-metal/non- plant","3601-1",62,0.68131868131868134,"","Lepomis macrochirus","juvenile","96 hrs","LC50","Mortality","12500 ug/L","Fish","Chordata","Actinopterygii","Not stated","Not stated","Acute ","Not stated","N.A.","USDA Integrated Pest Management (IPM) Database. Accessed November 2019","3601"]
["Freshwater/non-metal/plant","694-1",54,0.61363636363636365,"The highest possible grade for this datum is acceptable.","Myriophyllum sibiricum","N.A.","14 days","IC50","Growth","0.37 ug/L","Macrophyte","Tracheophyta","Andrew's liquid nutrient medium","20-25oC","20-25oC","Chronic","5.6-6.0","N.A.","Roshon, R.D., J.H. McCann, D.G. Thomspon and G.R. Stephenson. 1999. Effects of seven forestry management herbicides on Myriophyllum sibiricum, as compared with other nontarget aquatic organisms. Canadian Journal of Forest Research 29: 1158-1169","694"]
["Freshwater/non-metal/plant","694-2",54,0.61363636363636365,"The highest possible grade for this datum is acceptable.","Myriophyllum sibiricum","N.A.","14 days","IC50","Growth","0.39 ug/L","Macrophyte","Tracheophyta","Andrew's liquid nutrient medium","20-25oC","20-25oC","Chronic","5.6-6.0","N.A.","Roshon, R.D., J.H. McCann, D.G. Thomspon and G.R. Stephenson. 1999. Effects of seven forestry management herbicides on Myriophyllum sibiricum, as compared with other nontarget aquatic organisms. Canadian Journal of Forest Research 29: 1158-1169","694"]
["Freshwater/non-metal/plant","694-3",54,0.61363636363636365,"The highest possible grade for this datum is acceptable.","Myriophyllum sibiricum","N.A.","14 days","IC50","Growth","0.12 ug/L","Macrophyte","Tracheophyta","Andrew's liquid nutrient medium","20-25oC","20-25oC","Chronic","5.6-6.0","N.A.","Roshon, R.D., J.H. McCann, D.G. Thomspon and G.R. Stephenson. 1999. Effects of seven forestry management herbicides on Myriophyllum sibiricum, as compared with other nontarget aquatic organisms. Canadian Journal of Forest Research 29: 1158-1169","694"]
["Freshwater/non-metal/plant","764-2",63,0.71590909090909094,"The highest possible grade for this datum is acceptable.","Navicula pelliculosa","N.A.","5 days","NOEC","Growth","370 ug/L","Microorganism","Bacillariophyta","Nutrient medium","N.A.","N.A.","Chronic","N.A.","N.A.","Thomspon S. 1994. Sulfometuron methyl (DPX-T5648): Influence on growth and reproduction of three select algal species: Lab Project Number: AMR 2892-93: 112A-121. (Unpublished study prepared by Wildlife International Ltd, Easton, MD and Haskell Laboratory for Toxicology and INdustrial Medicine, E.I. du Pont de Nemours and Co, Inc., Neward, DE). 58 p. MRID","764"]
["Freshwater/non-metal/plant","3603-1",53,0.60227272727272729,"The highest possible grade for this datum is acceptable.","Navicula pelliculosa","N.A.","5 days","EC50","Growth","370 ug/L","Microorganism","Bacillariophyta","N.A.","N.A.","N.A.","Chronic","N.A.","N.A.","USDA Integrated Pest Management (IPM) Database. Accessed November 2019","3603"]
["Freshwater/non-metal/plant","3603-2",53,0.60227272727272729,"The highest possible grade for this datum is acceptable.","Navicula pelliculosa","N.A.","5 days","NOEC","Growth","370 ug/L","Microorganism","Bacillariophyta","N.A.","N.A.","N.A.","Chronic","N.A.","N.A.","USDA Integrated Pest Management (IPM) Database. Accessed November 2019","3603"]
["Freshwater/non-metal/non- plant","3604-1",62,0.68131868131868134,"","Oncorhynchus mykiss","Not stated","96 hrs","LC50","Mortality","12500 ug/L","Fish","Chordata","Actinopterygii","Not stated","Not stated","Acute ","Not stated","N.A.","USDA Integrated Pest Management (IPM) Database. Accessed November 2019","3604"]
["Freshwater/non-metal/non- plant","3610-1",62,0.68131868131868134,"","Oncorhynchus mykiss","Not stated","96 hrs","NOEC","Mortality","148000 ug/L","Fish","Chordata","Actinopterygii","Not stated","Not stated","Acute ","Not stated","N.A.","USDA Integrated Pest Management (IPM) Database. Accessed November 2019","3610"]
["Freshwater/non-metal/non- plant","3610-2",62,0.68131868131868134,"","Oncorhynchus mykiss","Not stated","96 hrs","LC50","Mortality","148000 ug/L","Fish","Chordata","Actinopterygii","Not stated","Not stated","Acute ","Not stated","N.A.","USDA Integrated Pest Management (IPM) Database. Accessed November 2019","3610"]
["Freshwater/non-metal/non- plant","763-1",63,0.69230769230769229,"The highest possible grade for this datum is acceptable.","Oncorhynchus mykiss","juvenile","4 day","NOEC","Mortality","12500 ug/L","Fish","Chordata","Actinopterygii","N.A.","N.A.","Acute ","N.A.","N.A.","Muska CF; Hall CL. 1980. 96-hour LC50 to Bluegill sunfish. Haskell Laboratory Report No.\n629-80. (Unpublished study received Jan 23, 1981 under 352-EX-107; submitted by E.I. du Pont\nde Nemours and Co, Wilmington, DE; CDL:244195-S). MRID 00071417.","763"]
["Freshwater/non-metal/non- plant","693-2",67,0.73626373626373631,"","Pimephales promelas","fry","4 day","LC50","Mortality","200 ug/L","Fish","Chordata","Actinopterygii","Moderately hard water","24-26oC","Acute ","8.0-8.5","N.A.","Tatum, V.L., D.L. Borton, W.R. Streblow, J. Louch and J.P. Shepard. 2012. Acute toxicity of commonly used forestry herbicide mixtures to Ceriodaphnia dubia and Pimephales promelas. Environmental Toxicology 27: 671-684","693"]
["Freshwater/non-metal/non- plant","761-1",61,0.67032967032967028,"The highest possible grade for this datum is acceptable.","Procambarus clarkii","juvenile","4 day","LC50","Mortality","12174 mg/L","Macroinvertebrate","Arthropoda","Malacostraca","Aged tap water","21-27oC","Acute ","6.7-6.9","N.A.","Naqvi, S.M., R. Hawkins and N.H. Naqvi. 1987. Mortality response and LC50 values for juvenile and adult crayfish, Procambarus clarkii exposed to thiodan (insecticide), treflan, MSMA, Outs (herbicides) and cutrine-plus (algacide). Environmental Pollution 48: 275-283","761"]
["Freshwater/non-metal/plant","765-1",63,0.71590909090909094,"The highest possible grade for this datum is acceptable.","Rhapidocelis subcapitata","N.A.","5 days","NOEC","Growth","0.63 ug/L","Microalga","Chlorophyta","Nutrient medium","N.A.","N.A.","Chronic","N.A.","N.A.","Hoberg J. 1990. Sulfometuron methyl toxicity to the freshwater green alga Selenestrum capricornutum. Lab Project No. AMR-1893-90. (Unpublished study prepared by Springborn Laboratories, Inc). 24 p. MRID 41680102","765"]
["Freshwater/non-metal/plant","3602-1",53,0.60227272727272729,"The highest possible grade for this datum is acceptable.","Rhapidocelis subcapitata","N.A.","5 days","NOEC","Growth","0.63 ug/L","Microalga","Chlorophyta","N.A.","N.A.","N.A.","Chronic","N.A.","N.A.","USDA Integrated Pest Management (IPM) Database. Accessed November 2019","3602"]
["Freshwater/non-metal/plant","3602-2",53,0.60227272727272729,"The highest possible grade for this datum is acceptable.","Rhapidocelis subcapitata","N.A.","5 days","EC50","Growth","43 ug/L","Microalga","Chlorophyta","N.A.","N.A.","N.A.","Chronic","N.A.","N.A.","USDA Integrated Pest Management (IPM) Database. Accessed November 2019","3602"]
["Freshwater/non-metal/non- plant","691-1",89,0.97802197802197799,"","Xenopus laevis","embryo","96 hrs","NOEC","Mortality","1000 ug/L","Amphibian","Chordata","Amphibia","FETAX Solution","19-21oC","Acute ","7.8-8.0","N.A.","Fort, D.J., R. Rogers, H. Copley, L. Bruning, E.L. Stover and D. Rapaport. 1999. Effect of sulfometuron methyl and nicosulfuron on development and metamorphosis in Xenopus laevis: impact of purity. Environmental Toxicology and Chemistry 18: 2934-2940","691"]
["Freshwater/non-metal/non- plant","691-2",89,0.97802197802197799,"","Xenopus laevis","embryo","96 hrs","NOEC","Mortality","25000 ug/L","Amphibian","Chordata","Amphibia","FETAX Solution","19-21oC","Acute ","7.8-8.0","N.A.","Fort, D.J., R. Rogers, H. Copley, L. Bruning, E.L. Stover and D. Rapaport. 1999. Effect of sulfometuron methyl and nicosulfuron on development and metamorphosis in Xenopus laevis: impact of purity. Environmental Toxicology and Chemistry 18: 2934-2940","691"]
["Freshwater/non-metal/non- plant","691-3",89,0.97802197802197799,"","Xenopus laevis","embryo","96 hrs","LC50","Mortality","24300 ug/L","Amphibian","Chordata","Amphibia","FETAX Solution","19-21oC","Acute ","7.8-8.0","N.A.","Fort, D.J., R. Rogers, H. Copley, L. Bruning, E.L. Stover and D. Rapaport. 1999. Effect of sulfometuron methyl and nicosulfuron on development and metamorphosis in Xenopus laevis: impact of purity. Environmental Toxicology and Chemistry 18: 2934-2940","691"]
["Freshwater/non-metal/non- plant","691-4",89,0.97802197802197799,"","Xenopus laevis","embryo","96 hrs","LOEC","Mortality","10000 ug/L","Amphibian","Chordata","Amphibia","FETAX Solution","19-21oC","Acute ","7.8-8.0","N.A.","Fort, D.J., R. Rogers, H. Copley, L. Bruning, E.L. Stover and D. Rapaport. 1999. Effect of sulfometuron methyl and nicosulfuron on development and metamorphosis in Xenopus laevis: impact of purity. Environmental Toxicology and Chemistry 18: 2934-2940","691"]
["Freshwater/non-metal/non- plant","691-5",89,0.97802197802197799,"","Xenopus laevis","embryo","30 days","NOEC","Development","1000 ug/L","Amphibian","Chordata","Amphibia","FETAX Solution","19-21oC","Acute ","7.8-8.0","N.A.","Fort, D.J., R. Rogers, H. Copley, L. Bruning, E.L. Stover and D. Rapaport. 1999. Effect of sulfometuron methyl and nicosulfuron on development and metamorphosis in Xenopus laevis: impact of purity. Environmental Toxicology and Chemistry 18: 2934-2940","691"]
["Freshwater/non-metal/non- plant","691-6",89,0.97802197802197799,"","Xenopus laevis","embryo","30 days","LOEC","Development","5000 ug/L","Amphibian","Chordata","Amphibia","FETAX Solution","19-21oC","Acute ","7.8-8.0","N.A.","Fort, D.J., R. Rogers, H. Copley, L. Bruning, E.L. Stover and D. Rapaport. 1999. Effect of sulfometuron methyl and nicosulfuron on development and metamorphosis in Xenopus laevis: impact of purity. Environmental Toxicology and Chemistry 18: 2934-2940","691"]
["Freshwater/non-metal/non- plant","691-7",88,0.96703296703296704,"","Xenopus laevis","embryo","96 hrs","EC50","Development","4200 ug/L","Amphibian","Chordata","Amphibia","FETAX Solution","19-21oC","Acute ","7.8-8.0","N.A.","Fort, D.J., R. Rogers, H. Copley, L. Bruning, E.L. Stover and D. Rapaport. 1999. Effect of sulfometuron methyl and nicosulfuron on development and metamorphosis in Xenopus laevis: Impact of Purity. Environmental Toxicology and Chemistry 18: 2934-2940","691"]

{"sheet":"Sheet1","index":4,"n_rows":70,"n_cols":29,"rows_kept":70,"cut":false,"hidden":true,"merged":[]}
[]
[{"$f":"#REF!","v":{"$error":"#REF!"}},{"$f":"#REF!","v":{"$error":"#REF!"}},{"$f":"#REF!","v":{"$error":"#REF!"}},{"$f":"#REF!","v":{"$error":"#REF!"}},{"$f":"#REF!","v":{"$error":"#REF!"}},{"$f":"#REF!","v":{"$error":"#REF!"}},{"$f":"#REF!","v":{"$error":"#REF!"}},{"$f":"#REF!","v":{"$error":"#REF!"}},{"$f":"#REF!","v":{"$error":"#REF!"}},{"$f":"#REF!","v":{"$error":"#REF!"}},{"$f":"#REF!","v":{"$error":"#REF!"}},{"$f":"#REF!","v":{"$error":"#REF!"}},{"$f":"#REF!","v":{"$error":"#REF!"}},{"$f":"#REF!","v":{"$error":"#REF!"}},{"$f":"#REF!","v":{"$error":"#REF!"}},{"$f":"#REF!","v":{"$error":"#REF!"}},{"$f":"#REF!","v":{"$error":"#REF!"}},{"$f":"#REF!","v":{"$error":"#REF!"}},{"$f":"#REF!","v":{"$error":"#REF!"}},{"$f":"#REF!","v":{"$error":"#REF!"}},{"$f":"#REF!","v":{"$error":"#REF!"}},{"$f":"#REF!","v":{"$error":"#REF!"}},{"$f":"#REF!","v":{"$error":"#REF!"}},{"$f":"#REF!","v":{"$error":"#REF!"}},{"$f":"#REF!","v":{"$error":"#REF!"}},{"$f":"#REF!","v":{"$error":"#REF!"}}]
[{"$f":"#REF!","v":{"$error":"#REF!"}},{"$f":"#REF!","v":{"$error":"#REF!"}},{"$f":"#REF!","v":{"$error":"#REF!"}},{"$f":"#REF!","v":{"$error":"#REF!"}}]
[{"$f":"#REF!","v":{"$error":"#REF!"}},{"$f":"#REF!","v":{"$error":"#REF!"}},{"$f":"#REF!","v":{"$error":"#REF!"}},{"$f":"#REF!","v":{"$error":"#REF!"}},{"$f":"#REF!","v":{"$error":"#REF!"}},{"$f":"#REF!","v":{"$error":"#REF!"}},{"$f":"#REF!","v":{"$error":"#REF!"}},{"$f":"#REF!","v":{"$error":"#REF!"}},{"$f":"#REF!","v":{"$error":"#REF!"}},{"$f":"#REF!","v":{"$error":"#REF!"}},{"$f":"#REF!","v":{"$error":"#REF!"}},{"$f":"#REF!","v":{"$error":"#REF!"}},{"$f":"#REF!","v":{"$error":"#REF!"}},{"$f":"#REF!","v":{"$error":"#REF!"}},{"$f":"#REF!","v":{"$error":"#REF!"}},{"$f":"#REF!","v":{"$error":"#REF!"}},{"$f":"#REF!","v":{"$error":"#REF!"}},{"$f":"#REF!","v":{"$error":"#REF!"}},{"$f":"#REF!","v":{"$error":"#REF!"}},{"$f":"#REF!","v":{"$error":"#REF!"}},{"$f":"#REF!","v":{"$error":"#REF!"}},{"$f":"#REF!","v":{"$error":"#REF!"}},{"$f":"#REF!","v":{"$error":"#REF!"}},{"$f":"#REF!","v":{"$error":"#REF!"}},{"$f":"#REF!","v":{"$error":"#REF!"}},{"$f":"#REF!","v":{"$error":"#REF!"}}]
["Answers",{"$f":"IF(#REF!=0,\"\",#REF!)","v":{"$error":"#REF!"}},{"$f":"IF(#REF!=0,\"\",#REF!)","v":{"$error":"#REF!"}},{"$f":"IF(#REF!=0,\"\",#REF!)","v":{"$error":"#REF!"}},{"$f":"IF(#REF!=0,\"\",#REF!)","v":{"$error":"#REF!"}},{"$f":"IF(#REF!=0,\"\",#REF!)","v":{"$error":"#REF!"}},{"$f":"IF(#REF!=0,\"\",#REF!)","v":{"$error":"#REF!"}},{"$f":"IF(#REF!=0,\"\",#REF!)","v":{"$error":"#REF!"}},{"$f":"IF(#REF!=0,\"\",#REF!)","v":{"$error":"#REF!"}},{"$f":"IF(#REF!=0,\"\",#REF!)","v":{"$error":"#REF!"}},{"$f":"IF(#REF!=0,\"\",#REF!)","v":{"$error":"#REF!"}},{"$f":"IF(#REF!=0,\"\",#REF!)","v":{"$error":"#REF!"}},{"$f":"IF(#REF!=0,\"\",#REF!)","v":{"$error":"#REF!"}},{"$f":"IF(#REF!=0,\"\",#REF!)","v":{"$error":"#REF!"}},{"$f":"IF(#REF!=0,\"\",#REF!)","v":{"$error":"#REF!"}},{"$f":"IF(#REF!=0,\"\",#REF!)","v":{"$error":"#REF!"}},{"$f":"IF(#REF!=0,\"\",#REF!)","v":{"$error":"#REF!"}},{"$f":"IF(#REF!=0,\"\",#REF!)","v":{"$error":"#REF!"}},{"$f":"IF(#REF!=0,\"\",#REF!)","v":{"$error":"#REF!"}},{"$f":"IF(#REF!=0,\"\",#REF!)","v":{"$error":"#REF!"}},{"$f":"IF(#REF!=0,\"\",#REF!)","v":{"$error":"#REF!"}},{"$f":"IF(#REF!=0,\"\",#REF!)","v":{"$error":"#REF!"}},{"$f":"IF(#REF!=0,\"\",#REF!)","v":{"$error":"#REF!"}},{"$f":"IF(#REF!=0,\"\",#REF!)","v":{"$error":"#REF!"}}]
[{"$f":"#REF!","v":{"$error":"#REF!"}},{"$f":"#REF!","v":{"$error":"#REF!"}},{"$f":"#REF!","v":{"$error":"#REF!"}},{"$f":"#REF!","v":{"$error":"#REF!"}},{"$f":"#REF!","v":{"$error":"#REF!"}},{"$f":"#REF!","v":{"$error":"#REF!"}},{"$f":"#REF!","v":{"$error":"#REF!"}},{"$f":"#REF!","v":{"$error":"#REF!"}}]
[{"$f":"#REF!","v":{"$error":"#REF!"}},{"$f":"#REF!","v":{"$error":"#REF!"}},{"$f":"#REF!","v":{"$error":"#REF!"}},{"$f":"#REF!","v":{"$error":"#REF!"}},{"$f":"#REF!","v":{"$error":"#REF!"}},{"$f":"IF(#REF!=0,\"\",#REF!)","v":{"$error":"#REF!"}},{"$f":"IF(#REF!=0,\"\",#REF!)","v":{"$error":"#REF!"}},{"$f":"IF(#REF!=0,\"\",#REF!)","v":{"$error":"#REF!"}}]
[]
[]
[]
[{"$f":"#REF!","v":{"$error":"#REF!"}},{"$f":"#REF!","v":{"$error":"#REF!"}},{"$f":"#REF!","v":{"$error":"#REF!"}},{"$f":"#REF!","v":{"$error":"#REF!"}},{"$f":"#REF!","v":{"$error":"#REF!"}},{"$f":"#REF!","v":{"$error":"#REF!"}},{"$f":"#REF!","v":{"$error":"#REF!"}},{"$f":"#REF!","v":{"$error":"#REF!"}},{"$f":"#REF!","v":{"$error":"#REF!"}},{"$f":"#REF!","v":{"$error":"#REF!"}},{"$f":"#REF!","v":{"$error":"#REF!"}},{"$f":"#REF!","v":{"$error":"#REF!"}},{"$f":"#REF!","v":{"$error":"#REF!"}},{"$f":"#REF!","v":{"$error":"#REF!"}},{"$f":"#REF!","v":{"$error":"#REF!"}},{"$f":"#REF!","v":{"$error":"#REF!"}},{"$f":"#REF!","v":{"$error":"#REF!"}},{"$f":"#REF!","v":{"$error":"#REF!"}},{"$f":"#REF!","v":{"$error":"#REF!"}},{"$f":"#REF!","v":{"$error":"#REF!"}},{"$f":"#REF!","v":{"$error":"#REF!"}},{"$f":"#REF!","v":{"$error":"#REF!"}},{"$f":"#REF!","v":{"$error":"#REF!"}},{"$f":"#REF!","v":{"$error":"#REF!"}},{"$f":"#REF!","v":{"$error":"#REF!"}},{"$f":"#REF!","v":{"$error":"#REF!"}},{"$f":"#REF!","v":{"$error":"#REF!"}}]
[{"$f":"#REF!","v":{"$error":"#REF!"}},{"$f":"#REF!","v":{"$error":"#REF!"}},{"$f":"#REF!","v":{"$error":"#REF!"}},{"$f":"#REF!","v":{"$error":"#REF!"}}]
[{"$f":"#REF!","v":{"$error":"#REF!"}},{"$f":"#REF!","v":{"$error":"#REF!"}},{"$f":"#REF!","v":{"$error":"#REF!"}},{"$f":"#REF!","v":{"$error":"#REF!"}},{"$f":"#REF!","v":{"$error":"#REF!"}},{"$f":"#REF!","v":{"$error":"#REF!"}},{"$f":"#REF!","v":{"$error":"#REF!"}},{"$f":"#REF!","v":{"$error":"#REF!"}},{"$f":"#REF!","v":{"$error":"#REF!"}},{"$f":"#REF!","v":{"$error":"#REF!"}},{"$f":"#REF!","v":{"$error":"#REF!"}},{"$f":"#REF!","v":{"$error":"#REF!"}},{"$f":"#REF!","v":{"$error":"#REF!"}},{"$f":"#REF!","v":{"$error":"#REF!"}},{"$f":"#REF!","v":{"$error":"#REF!"}},{"$f":"#REF!","v":{"$error":"#REF!"}},{"$f":"#REF!","v":{"$error":"#REF!"}},{"$f":"#REF!","v":{"$error":"#REF!"}},{"$f":"#REF!","v":{"$error":"#REF!"}},{"$f":"#REF!","v":{"$error":"#REF!"}},{"$f":"#REF!","v":{"$error":"#REF!"}},{"$f":"#REF!","v":{"$error":"#REF!"}},{"$f":"#REF!","v":{"$error":"#REF!"}},{"$f":"#REF!","v":{"$error":"#REF!"}},{"$f":"#REF!","v":{"$error":"#REF!"}},{"$f":"#REF!","v":{"$error":"#REF!"}},{"$f":"#REF!","v":{"$error":"#REF!"}}]
[{"$f":"#REF!","v":{"$error":"#REF!"}},{"$f":"IF(#REF!=0,\"\",#REF!)","v":{"$error":"#REF!"}},{"$f":"IF(#REF!=0,\"\",#REF!)","v":{"$error":"#REF!"}},{"$f":"IF(#REF!=0,\"\",#REF!)","v":{"$error":"#REF!"}},{"$f":"IF(#REF!=0,\"\",#REF!)","v":{"$error":"#REF!"}},null,{"$f":"IF(#REF!=0,\"\",#REF!)","v":{"$error":"#REF!"}},{"$f":"IF(#REF!=0,\"\",#REF!)","v":{"$error":"#REF!"}},{"$f":"IF(#REF!=0,\"\",#REF!)","v":{"$error":"#REF!"}},{"$f":"IF(#REF!=0,\"\",#REF!)","v":{"$error":"#REF!"}},{"$f":"IF(#REF!=0,\"\",#REF!)","v":{"$error":"#REF!"}},{"$f":"IF(#REF!=0,\"\",#REF!)","v":{"$error":"#REF!"}},{"$f":"IF(#REF!=0,\"\",#REF!)","v":{"$error":"#REF!"}},{"$f":"IF(#REF!=0,\"\",#REF!)","v":{"$error":"#REF!"}},{"$f":"IF(#REF!=0,\"\",#REF!)","v":{"$error":"#REF!"}},{"$f":"IF(#REF!=0,\"\",#REF!)","v":{"$error":"#REF!"}},{"$f":"IF(#REF!=0,\"\",#REF!)","v":{"$error":"#REF!"}},{"$f":"IF(#REF!=0,\"\",#REF!)","v":{"$error":"#REF!"}},{"$f":"IF(#REF!=0,\"\",#REF!)","v":{"$error":"#REF!"}},{"$f":"IF(#REF!=0,\"\",#REF!)","v":{"$error":"#REF!"}},{"$f":"IF(#REF!=0,\"\",#REF!)","v":{"$error":"#REF!"}},{"$f":"IF(#REF!=0,\"\",#REF!)","v":{"$error":"#REF!"}},{"$f":"IF(#REF!=0,\"\",#REF!)","v":{"$error":"#REF!"}},{"$f":"IF(#REF!=0,\"\",#REF!)","v":{"$error":"#REF!"}},{"$f":"IF(#REF!=0,\"\",#REF!)","v":{"$error":"#REF!"}}]
[{"$f":"#REF!","v":{"$error":"#REF!"}},{"$f":"#REF!","v":{"$error":"#REF!"}},{"$f":"#REF!","v":{"$error":"#REF!"}},{"$f":"#REF!","v":{"$error":"#REF!"}},{"$f":"#REF!","v":{"$error":"#REF!"}},{"$f":"#REF!","v":{"$error":"#REF!"}},{"$f":"#REF!","v":{"$error":"#REF!"}},{"$f":"#REF!","v":{"$error":"#REF!"}}]
[{"$f":"#REF!","v":{"$error":"#REF!"}},{"$f":"#REF!","v":{"$error":"#REF!"}},{"$f":"#REF!","v":{"$error":"#REF!"}},{"$f":"#REF!","v":{"$error":"#REF!"}},{"$f":"#REF!","v":{"$error":"#REF!"}},{"$f":"IF(#REF!=0,\"\",#REF!)","v":{"$error":"#REF!"}},{"$f":"IF(#REF!=0,\"\",#REF!)","v":{"$error":"#REF!"}},{"$f":"IF(#REF!=0,\"\",#REF!)","v":{"$error":"#REF!"}}]
[]
[]
[]
[{"$f":"#REF!","v":{"$error":"#REF!"}},{"$f":"#REF!","v":{"$error":"#REF!"}},{"$f":"#REF!","v":{"$error":"#REF!"}},{"$f":"#REF!","v":{"$error":"#REF!"}},{"$f":"#REF!","v":{"$error":"#REF!"}},{"$f":"#REF!","v":{"$error":"#REF!"}},{"$f":"#REF!","v":{"$error":"#REF!"}},{"$f":"#REF!","v":{"$error":"#REF!"}},{"$f":"#REF!","v":{"$error":"#REF!"}},{"$f":"#REF!","v":{"$error":"#REF!"}},{"$f":"#REF!","v":{"$error":"#REF!"}},{"$f":"#REF!","v":{"$error":"#REF!"}},{"$f":"#REF!","v":{"$error":"#REF!"}},{"$f":"#REF!","v":{"$error":"#REF!"}},{"$f":"#REF!","v":{"$error":"#REF!"}},{"$f":"#REF!","v":{"$error":"#REF!"}},{"$f":"#REF!","v":{"$error":"#REF!"}},{"$f":"#REF!","v":{"$error":"#REF!"}},{"$f":"#REF!","v":{"$error":"#REF!"}},{"$f":"#REF!","v":{"$error":"#REF!"}},{"$f":"#REF!","v":{"$error":"#REF!"}},{"$f":"#REF!","v":{"$error":"#REF!"}},{"$f":"#REF!","v":{"$error":"#REF!"}},{"$f":"#REF!","v":{"$error":"#REF!"}},{"$f":"#REF!","v":{"$error":"#REF!"}},{"$f":"#REF!","v":{"$error":"#REF!"}}]
[{"$f":"#REF!","v":{"$error":"#REF!"}},{"$f":"#REF!","v":{"$error":"#REF!"}},{"$f":"#REF!","v":{"$error":"#REF!"}},{"$f":"#REF!","v":{"$error":"#REF!"}}]
[{"$f":"#REF!","v":{"$error":"#REF!"}},{"$f":"#REF!","v":{"$error":"#REF!"}},{"$f":"#REF!","v":{"$error":"#REF!"}},{"$f":"#REF!","v":{"$error":"#REF!"}},{"$f":"#REF!","v":{"$error":"#REF!"}},{"$f":"#REF!","v":{"$error":"#REF!"}},{"$f":"#REF!","v":{"$error":"#REF!"}},{"$f":"#REF!","v":{"$error":"#REF!"}},{"$f":"#REF!","v":{"$error":"#REF!"}},{"$f":"#REF!","v":{"$error":"#REF!"}},{"$f":"#REF!","v":{"$error":"#REF!"}},{"$f":"#REF!","v":{"$error":"#REF!"}},{"$f":"#REF!","v":{"$error":"#REF!"}},{"$f":"#REF!","v":{"$error":"#REF!"}},{"$f":"#REF!","v":{"$error":"#REF!"}},{"$f":"#REF!","v":{"$error":"#REF!"}},{"$f":"#REF!","v":{"$error":"#REF!"}},{"$f":"#REF!","v":{"$error":"#REF!"}},{"$f":"#REF!","v":{"$error":"#REF!"}},{"$f":"#REF!","v":{"$error":"#REF!"}},{"$f":"#REF!","v":{"$error":"#REF!"}},{"$f":"#REF!","v":{"$error":"#REF!"}},{"$f":"#REF!","v":{"$error":"#REF!"}},{"$f":"#REF!","v":{"$error":"#REF!"}},{"$f":"#REF!","v":{"$error":"#REF!"}},{"$f":"#REF!","v":{"$error":"#REF!"}}]
[{"$f":"#REF!","v":{"$error":"#REF!"}},{"$f":"IF(#REF!=0,\"\",#REF!)","v":{"$error":"#REF!"}},{"$f":"IF(#REF!=0,\"\",#REF!)","v":{"$error":"#REF!"}},{"$f":"IF(#REF!=0,\"\",#REF!)","v":{"$error":"#REF!"}},{"$f":"IF(#REF!=0,\"\",#REF!)","v":{"$error":"#REF!"}},{"$f":"IF(#REF!=0,\"\",#REF!)","v":{"$error":"#REF!"}},{"$f":"IF(#REF!=0,\"\",#REF!)","v":{"$error":"#REF!"}},{"$f":"IF(#REF!=0,\"\",#REF!)","v":{"$error":"#REF!"}},{"$f":"IF(#REF!=0,\"\",#REF!)","v":{"$error":"#REF!"}},{"$f":"IF(#REF!=0,\"\",#REF!)","v":{"$error":"#REF!"}},{"$f":"IF(#REF!=0,\"\",#REF!)","v":{"$error":"#REF!"}},{"$f":"IF(#REF!=0,\"\",#REF!)","v":{"$error":"#REF!"}},{"$f":"IF(#REF!=0,\"\",#REF!)","v":{"$error":"#REF!"}},{"$f":"IF(#REF!=0,\"\",#REF!)","v":{"$error":"#REF!"}},{"$f":"IF(#REF!=0,\"\",#REF!)","v":{"$error":"#REF!"}},{"$f":"IF(#REF!=0,\"\",#REF!)","v":{"$error":"#REF!"}},{"$f":"IF(#REF!=0,\"\",#REF!)","v":{"$error":"#REF!"}},{"$f":"IF(#REF!=0,\"\",#REF!)","v":{"$error":"#REF!"}},{"$f":"IF(#REF!=0,\"\",#REF!)","v":{"$error":"#REF!"}},{"$f":"IF(#REF!=0,\"\",#REF!)","v":{"$error":"#REF!"}},{"$f":"IF(#REF!=0,\"\",#REF!)","v":{"$error":"#REF!"}},{"$f":"IF(#REF!=0,\"\",#REF!)","v":{"$error":"#REF!"}},{"$f":"IF(#REF!=0,\"\",#REF!)","v":{"$error":"#REF!"}},{"$f":"IF(#REF!=0,\"\",#REF!)","v":{"$error":"#REF!"}}]
[{"$f":"#REF!","v":{"$error":"#REF!"}},{"$f":"#REF!","v":{"$error":"#REF!"}},{"$f":"#REF!","v":{"$error":"#REF!"}},{"$f":"#REF!","v":{"$error":"#REF!"}},{"$f":"#REF!","v":{"$error":"#REF!"}},{"$f":"#REF!","v":{"$error":"#REF!"}},{"$f":"#REF!","v":{"$error":"#REF!"}},{"$f":"#REF!","v":{"$error":"#REF!"}}]
[{"$f":"#REF!","v":{"$error":"#REF!"}},{"$f":"#REF!","v":{"$error":"#REF!"}},{"$f":"#REF!","v":{"$error":"#REF!"}},{"$f":"#REF!","v":{"$error":"#REF!"}},{"$f":"#REF!","v":{"$error":"#REF!"}},{"$f":"IF(#REF!=0,\"\",#REF!)","v":{"$error":"#REF!"}},{"$f":"IF(#REF!=0,\"\",#REF!)","v":{"$error":"#REF!"}},{"$f":"IF(#REF!=0,\"\",#REF!)","v":{"$error":"#REF!"}}]
[]
[]
[]
[{"$f":"#REF!","v":{"$error":"#REF!"}},{"$f":"#REF!","v":{"$error":"#REF!"}},{"$f":"#REF!","v":{"$error":"#REF!"}},{"$f":"#REF!","v":{"$error":"#REF!"}},{"$f":"#REF!","v":{"$error":"#REF!"}},{"$f":"#REF!","v":{"$error":"#REF!"}},{"$f":"#REF!","v":{"$error":"#REF!"}},{"$f":"#REF!","v":{"$error":"#REF!"}},{"$f":"#REF!","v":{"$error":"#REF!"}},{"$f":"#REF!","v":{"$error":"#REF!"}},{"$f":"#REF!","v":{"$error":"#REF!"}},{"$f":"#REF!","v":{"$error":"#REF!"}},{"$f":"#REF!","v":{"$error":"#REF!"}},{"$f":"#REF!","v":{"$error":"#REF!"}},{"$f":"#REF!","v":{"$error":"#REF!"}},{"$f":"#REF!","v":{"$error":"#REF!"}},{"$f":"#REF!","v":{"$error":"#REF!"}},{"$f":"#REF!","v":{"$error":"#REF!"}},{"$f":"#REF!","v":{"$error":"#REF!"}},{"$f":"#REF!","v":{"$error":"#REF!"}},{"$f":"#REF!","v":{"$error":"#REF!"}},{"$f":"#REF!","v":{"$error":"#REF!"}},{"$f":"#REF!","v":{"$error":"#REF!"}},{"$f":"#REF!","v":{"$error":"#REF!"}},{"$f":"#REF!","v":{"$error":"#REF!"}},{"$f":"#REF!","v":{"$error":"#REF!"}},{"$f":"#REF!","v":{"$error":"#REF!"}},{"$f":"#REF!","v":{"$error":"#REF!"}},{"$f":"#REF!","v":{"$error":"#REF!"}}]
[{"$f":"#REF!","v":{"$error":"#REF!"}},{"$f":"#REF!","v":{"$error":"#REF!"}},{"$f":"#REF!","v":{"$error":"#REF!"}},{"$f":"#REF!","v":{"$error":"#REF!"}}]
[{"$f":"#REF!","v":{"$error":"#REF!"}},{"$f":"#REF!","v":{"$error":"#REF!"}},{"$f":"#REF!","v":{"$error":"#REF!"}},{"$f":"#REF!","v":{"$error":"#REF!"}},{"$f":"#REF!","v":{"$error":"#REF!"}},{"$f":"#REF!","v":{"$error":"#REF!"}},{"$f":"#REF!","v":{"$error":"#REF!"}},{"$f":"#REF!","v":{"$error":"#REF!"}},{"$f":"#REF!","v":{"$error":"#REF!"}},{"$f":"#REF!","v":{"$error":"#REF!"}},{"$f":"#REF!","v":{"$error":"#REF!"}},{"$f":"#REF!","v":{"$error":"#REF!"}},{"$f":"#REF!","v":{"$error":"#REF!"}},{"$f":"#REF!","v":{"$error":"#REF!"}},{"$f":"#REF!","v":{"$error":"#REF!"}},{"$f":"#REF!","v":{"$error":"#REF!"}},{"$f":"#REF!","v":{"$error":"#REF!"}},{"$f":"#REF!","v":{"$error":"#REF!"}},{"$f":"#REF!","v":{"$error":"#REF!"}},{"$f":"#REF!","v":{"$error":"#REF!"}},{"$f":"#REF!","v":{"$error":"#REF!"}},{"$f":"#REF!","v":{"$error":"#REF!"}},{"$f":"#REF!","v":{"$error":"#REF!"}},{"$f":"#REF!","v":{"$error":"#REF!"}},{"$f":"#REF!","v":{"$error":"#REF!"}},{"$f":"#REF!","v":{"$error":"#REF!"}},{"$f":"#REF!","v":{"$error":"#REF!"}},{"$f":"#REF!","v":{"$error":"#REF!"}},{"$f":"#REF!","v":{"$error":"#REF!"}}]
[{"$f":"#REF!","v":{"$error":"#REF!"}},{"$f":"IF(#REF!=\"\",\"\",#REF!)","v":{"$error":"#REF!"}},{"$f":"IF(#REF!=\"\",\"\",#REF!)","v":{"$error":"#REF!"}},{"$f":"IF(#REF!=\"\",\"\",#REF!)","v":{"$error":"#REF!"}},{"$f":"IF(#REF!=\"\",\"\",#REF!)","v":{"$error":"#REF!"}},{"$f":"IF(#REF!=\"\",\"\",#REF!)","v":{"$error":"#REF!"}},{"$f":"IF(#REF!=\"\",\"\",#REF!)","v":{"$error":"#REF!"}},{"$f":"IF(#REF!=\"\",\"\",#REF!)","v":{"$error":"#REF!"}},{"$f":"IF(#REF!=\"\",\"\",#REF!)","v":{"$error":"#REF!"}},{"$f":"IF(#REF!=\"\",\"\",#REF!)","v":{"$error":"#REF!"}},{"$f":"IF(#REF!=\"\",\"\",#REF!)","v":{"$error":"#REF!"}},{"$f":"IF(#REF!=\"\",\"\",#REF!)","v":{"$error":"#REF!"}},{"$f":"IF(#REF!=\"\",\"\",#REF!)","v":{"$error":"#REF!"}},{"$f":"IF(#REF!=\"\",\"\",#REF!)","v":{"$error":"#REF!"}},{"$f":"IF(#REF!=\"\",\"\",#REF!)","v":{"$error":"#REF!"}},{"$f":"IF(#REF!=\"\",\"\",#REF!)","v":{"$error":"#REF!"}},{"$f":"IF(#REF!=\"\",\"\",#REF!)","v":{"$error":"#REF!"}},{"$f":"IF(#REF!=\"\",\"\",#REF!)","v":{"$error":"#REF!"}},{"$f":"IF(#REF!=\"\",\"\",#REF!)","v":{"$error":"#REF!"}},{"$f":"IF(#REF!=\"\",\"\",#REF!)","v":{"$error":"#REF!"}},{"$f":"IF(#REF!=\"\",\"\",#REF!)","v":{"$error":"#REF!"}},{"$f":"IF(#REF!=\"\",\"\",#REF!)","v":{"$error":"#REF!"}},{"$f":"IF(#REF!=\"\",\"\",#REF!)","v":{"$error":"#REF!"}},{"$f":"IF(#REF!=\"\",\"\",#REF!)","v":{"$error":"#REF!"}},{"$f":"IF(#REF!=\"\",\"\",#REF!)","v":{"$error":"#REF!"}},{"$f":"IF(#REF!=\"\",\"\",#REF!)","v":{"$error":"#REF!"}},{"$f":"IF(#REF!=\"\",\"\",#REF!)","v":{"$error":"#REF!"}}]
[{"$f":"#REF!","v":{"$error":"#REF!"}},{"$f":"#REF!","v":{"$error":"#REF!"}},{"$f":"#REF!","v":{"$error":"#REF!"}},{"$f":"#REF!","v":{"$error":"#REF!"}},{"$f":"#REF!","v":{"$error":"#REF!"}},{"$f":"#REF!","v":{"$error":"#REF!"}},{"$f":"#REF!","v":{"$error":"#REF!"}},{"$f":"#REF!","v":{"$error":"#REF!"}}]
[{"$f":"#REF!","v":{"$error":"#REF!"}},{"$f":"#REF!","v":{"$error":"#REF!"}},{"$f":"#REF!","v":{"$error":"#REF!"}},{"$f":"#REF!","v":{"$error":"#REF!"}},{"$f":"#REF!","v":{"$error":"#REF!"}},{"$f":"IF(#REF!=\"\",\"\",#REF!)","v":{"$error":"#REF!"}},{"$f":"IF(#REF!=\"\",\"\",#REF!)","v":{"$error":"#REF!"}},{"$f":"IF(#REF!=\"\",\"\",#REF!)","v":{"$error":"#REF!"}}]
[{"$f":"'FW nonmetal plant'!B11","v":"No."},{"$f":"'FW nonmetal plant'!B13","v":1},{"$f":"'FW nonmetal plant'!B16","v":2},{"$f":"'FW nonmetal plant'!B19","v":3},{"$f":"'FW nonmetal plant'!B21","v":4},{"$f":"'FW nonmetal plant'!B23","v":5},{"$f":"'FW nonmetal plant'!B26","v":6},{"$f":"'FW nonmetal plant'!B29","v":7},{"$f":"'FW nonmetal plant'!B32","v":8},{"$f":"'FW nonmetal plant'!B35","v":9},{"$f":"'FW nonmetal plant'!B39","v":10},{"$f":"'FW nonmetal plant'!B42","v":11},{"$f":"'FW nonmetal plant'!B45","v":12},{"$f":"'FW nonmetal plant'!B48","v":13},{"$f":"'FW nonmetal plant'!B51","v":14},{"$f":"'FW nonmetal plant'!B53","v":15},{"$f":"'FW nonmetal plant'!B58","v":16.100000000000001},{"$f":"'FW nonmetal plant'!B62","v":17},{"$f":"'FW nonmetal plant'!B65","v":18},{"$f":"'FW nonmetal plant'!C70","v":"Total score"},{"$f":"'FW nonmetal plant'!C72","v":"Quality Score"}]
[{"$f":"'FW nonmetal plant'!C2","v":"Category"},{"$f":"'FW nonmetal plant'!E2","v":"Freshwater/non-metal/plant"},{"$f":"'FW nonmetal plant'!C3","v":"Paper and data unique identifier(eg. 1-1,10-150)"},{"$f":"'FW nonmetal plant'!E3","v":"3607-2"}]
[{"$f":"'FW nonmetal plant'!G11","v":"Scores"},{"$f":"'FW nonmetal plant'!G12","v":10},{"$f":"'FW nonmetal plant'!G15","v":5},{"$f":"'FW nonmetal plant'!G18","v":0},{"$f":"'FW nonmetal plant'!G21","v":0},{"$f":"'FW nonmetal plant'!G23","v":5},{"$f":"'FW nonmetal plant'!G26","v":5},{"$f":"'FW nonmetal plant'!G29","v":2},{"$f":"'FW nonmetal plant'!G32","v":5},{"$f":"'FW nonmetal plant'!G35","v":5},{"$f":"'FW nonmetal plant'!G38","v":4},{"$f":"'FW nonmetal plant'!G41","v":0},{"$f":"'FW nonmetal plant'!G44","v":0},{"$f":"'FW nonmetal plant'!G47","v":0},{"$f":"'FW nonmetal plant'!G50","v":4},{"$f":"'FW nonmetal plant'!G53","v":4},{"$f":"'FW nonmetal plant'!G57","v":0},{"$f":"'FW nonmetal plant'!G61","v":1},{"$f":"'FW nonmetal plant'!G64","v":3},{"$f":"'FW nonmetal plant'!G70","v":53},{"$f":"'FW nonmetal plant'!G72","v":0.60227272727272729},{"$f":"'FW nonmetal plant'!H72","v":"The highest possible grade for this datum is acceptable."}]
[{"$f":"'FW nonmetal plant'!H11","v":"Answers"},{"$f":"IF('FW nonmetal plant'!H12=\"\",\"\",'FW nonmetal plant'!H12)","v":"5 days"},{"$f":"IF('FW nonmetal plant'!H15=\"\",\"\",'FW nonmetal plant'!H15)","v":"Growth"},{"$f":"IF('FW nonmetal plant'!H18=\"\",\"\",'FW nonmetal plant'!H18)","v":"NOEC"},{"$f":"IF('FW nonmetal plant'!H21=\"\",\"\",'FW nonmetal plant'!H21)","v":"NOEC"},{"$f":"IF('FW nonmetal plant'!H23=\"\",\"\",'FW nonmetal plant'!H23)","v":"Control - nutrient media without chemical"},{"$f":"IF('FW nonmetal plant'!H26=\"\",\"\",'FW nonmetal plant'!H26)","v":"Minimum three repicates"},{"$f":"IF('FW nonmetal plant'!H29=\"\",\"\",'FW nonmetal plant'!H29)","v":"USEPA guidelines - OPPTS 850.5400"},{"$f":"IF('FW nonmetal plant'!H32=\"\",\"\",'FW nonmetal plant'!H32)","v":"1 x 10E4 cells/mL"},{"$f":"IF('FW nonmetal plant'!H35=\"\",\"\",'FW nonmetal plant'!H35)","v":"Nutrient medium"},{"$f":"IF('FW nonmetal plant'!H38=\"\",\"\",'FW nonmetal plant'!H38)","v":"Static"},{"$f":"IF('FW nonmetal plant'!H41=\"\",\"\",'FW nonmetal plant'!H41)","v":"Not stated"},{"$f":"IF('FW nonmetal plant'!H44=\"\",\"\",'FW nonmetal plant'!H44)","v":"Not stated"},{"$f":"IF('FW nonmetal plant'!H47=\"\",\"\",'FW nonmetal plant'!H47)","v":"Not stated"},{"$f":"IF('FW nonmetal plant'!H53=\"\",\"\",'FW nonmetal plant'!H53)","v":"p < 0.05"},{"$f":"IF('FW nonmetal plant'!H53=\"\",\"\",'FW nonmetal plant'!H53)","v":"p < 0.05"},{"$f":"IF('FW nonmetal plant'!H57=\"\",\"\",'FW nonmetal plant'!H57)","v":"Not stated"},{"$f":"IF('FW nonmetal plant'!H61=\"\",\"\",'FW nonmetal plant'!H61)","v":"Not stated"},{"$f":"IF('FW nonmetal plant'!H64=\"\",\"\",'FW nonmetal plant'!H64)","v":"95.72% AI"}]
[{"$f":"'FW nonmetal plant'!G3","v":"Species (Scientific name)"},{"$f":"'FW nonmetal plant'!G4","v":"Lifestage"},{"$f":"'FW nonmetal plant'!G5","v":"Exposure duration"},{"$f":"'FW nonmetal plant'!G6","v":"Measure of toxicity"},{"$f":"'FW nonmetal plant'!G7","v":"Toxicity endpoint"},{"$f":"'FW nonmetal plant'!G8","v":"Toxicity value"},{"$f":"'FW nonmetal plant'!J2","v":"Taxonomic group"},{"$f":"'FW nonmetal plant'!J3","v":"Phylum"},{"$f":"'FW nonmetal plant'!J4","v":"Class"},{"$f":"'FW nonmetal plant'!J5","v":"Media"},{"$f":"'FW nonmetal plant'!J6","v":"Temperature "},{"$f":"'FW nonmetal plant'!J7","v":"Acute Or Chronic "},{"$f":"'FW nonmetal plant'!J8","v":"PH"},{"$f":"'FW nonmetal plant'!J9","v":"Salinity/Conductivity"},{"$f":"'FW nonmetal plant'!C4","v":"Citation"},{"$f":"'FW nonmetal plant'!G2","v":"Citation No."}]
[{"$f":"'FW nonmetal plant'!Q3","v":"Lemna gibba"},{"$f":"'FW nonmetal plant'!T3","v":"N.A."},{"$f":"'FW nonmetal plant'!W3","v":"14 days"},{"$f":"'FW nonmetal plant'!Z3","v":"NOEC"},{"$f":"'FW nonmetal plant'!AC3","v":"Growth"},{"$f":"IF('FW nonmetal plant'!H8=\"\",\"\",'FW nonmetal plant'!H8)","v":"0.207 ug/L"},{"$f":"'FW nonmetal plant'!AF3","v":"Macrophyte"},{"$f":"'FW nonmetal plant'!AI3","v":"Tracheophyta"},{"$f":"'FW nonmetal plant'!AO3","v":"N.A."},{"$f":"'FW nonmetal plant'!AR3","v":"N.A."},{"$f":"'FW nonmetal plant'!AR3","v":"N.A."},{"$f":"'FW nonmetal plant'!AU3","v":"Chronic"},{"$f":"'FW nonmetal plant'!AX3","v":"N.A."},{"$f":"'FW nonmetal plant'!BA3","v":"N.A."},{"$f":"IF('FW nonmetal plant'!E4=\"\",\"\",'FW nonmetal plant'!E4)","v":"USDA Integrated Pest Management (IPM) Database. Accessed November 2019"},{"$f":"IF('FW nonmetal plant'!H2=\"\",\"\",'FW nonmetal plant'!H2)","v":"3607"}]
[{"$f":"#REF!","v":{"$error":"#REF!"}},{"$f":"#REF!","v":{"$error":"#REF!"}},{"$f":"#REF!","v":{"$error":"#REF!"}},{"$f":"#REF!","v":{"$error":"#REF!"}},{"$f":"#REF!","v":{"$error":"#REF!"}},{"$f":"#REF!","v":{"$error":"#REF!"}},{"$f":"#REF!","v":{"$error":"#REF!"}},{"$f":"#REF!","v":{"$error":"#REF!"}},{"$f":"#REF!","v":{"$error":"#REF!"}},{"$f":"#REF!","v":{"$error":"#REF!"}},{"$f":"#REF!","v":{"$error":"#REF!"}},{"$f":"#REF!","v":{"$error":"#REF!"}},{"$f":"#REF!","v":{"$error":"#REF!"}},{"$f":"#REF!","v":{"$error":"#REF!"}},{"$f":"#REF!","v":{"$error":"#REF!"}},{"$f":"#REF!","v":{"$error":"#REF!"}},{"$f":"#REF!","v":{"$error":"#REF!"}},{"$f":"#REF!","v":{"$error":"#REF!"}},{"$f":"#REF!","v":{"$error":"#REF!"}},{"$f":"#REF!","v":{"$error":"#REF!"}},{"$f":"#REF!","v":{"$error":"#REF!"}},{"$f":"#REF!","v":{"$error":"#REF!"}},{"$f":"#REF!","v":{"$error":"#REF!"}},{"$f":"#REF!","v":{"$error":"#REF!"}}]
[{"$f":"#REF!","v":{"$error":"#REF!"}},{"$f":"#REF!","v":{"$error":"#REF!"}},{"$f":"#REF!","v":{"$error":"#REF!"}},{"$f":"#REF!","v":{"$error":"#REF!"}}]
[{"$f":"#REF!","v":{"$error":"#REF!"}},{"$f":"#REF!","v":{"$error":"#REF!"}},{"$f":"#REF!","v":{"$error":"#REF!"}},{"$f":"#REF!","v":{"$error":"#REF!"}},{"$f":"#REF!","v":{"$error":"#REF!"}},{"$f":"#REF!","v":{"$error":"#REF!"}},{"$f":"#REF!","v":{"$error":"#REF!"}},{"$f":"#REF!","v":{"$error":"#REF!"}},{"$f":"#REF!","v":{"$error":"#REF!"}},{"$f":"#REF!","v":{"$error":"#REF!"}},{"$f":"#REF!","v":{"$error":"#REF!"}},{"$f":"#REF!","v":{"$error":"#REF!"}},{"$f":"#REF!","v":{"$error":"#REF!"}},{"$f":"#REF!","v":{"$error":"#REF!"}},{"$f":"#REF!","v":{"$error":"#REF!"}},{"$f":"#REF!","v":{"$error":"#REF!"}},{"$f":"#REF!","v":{"$error":"#REF!"}},{"$f":"#REF!","v":{"$error":"#REF!"}},{"$f":"#REF!","v":{"$error":"#REF!"}},{"$f":"#REF!","v":{"$error":"#REF!"}},{"$f":"#REF!","v":{"$error":"#REF!"}},{"$f":"#REF!","v":{"$error":"#REF!"}},{"$f":"#REF!","v":{"$error":"#REF!"}},{"$f":"#REF!","v":{"$error":"#REF!"}},{"$f":"#REF!","v":{"$error":"#REF!"}}]
[{"$f":"#REF!","v":{"$error":"#REF!"}},{"$f":"IF(#REF!=\"\",\"\",#REF!)","v":{"$error":"#REF!"}},{"$f":"IF(#REF!=\"\",\"\",#REF!)","v":{"$error":"#REF!"}},{"$f":"IF(#REF!=\"\",\"\",#REF!)","v":{"$error":"#REF!"}},{"$f":"IF(#REF!=\"\",\"\",#REF!)","v":{"$error":"#REF!"}},{"$f":"IF(#REF!=\"\",\"\",#REF!)","v":{"$error":"#REF!"}},{"$f":"IF(#REF!=\"\",\"\",#REF!)","v":{"$error":"#REF!"}},{"$f":"IF(#REF!=\"\",\"\",#REF!)","v":{"$error":"#REF!"}},{"$f":"IF(#REF!=\"\",\"\",#REF!)","v":{"$error":"#REF!"}},{"$f":"IF(#REF!=\"\",\"\",#REF!)","v":{"$error":"#REF!"}},{"$f":"IF(#REF!=\"\",\"\",#REF!)","v":{"$error":"#REF!"}},{"$f":"IF(#REF!=\"\",\"\",#REF!)","v":{"$error":"#REF!"}},{"$f":"IF(#REF!=\"\",\"\",#REF!)","v":{"$error":"#REF!"}},{"$f":"IF(#REF!=\"\",\"\",#REF!)","v":{"$error":"#REF!"}},{"$f":"IF(#REF!=\"\",\"\",#REF!)","v":{"$error":"#REF!"}},{"$f":"IF(#REF!=\"\",\"\",#REF!)","v":{"$error":"#REF!"}},{"$f":"IF(#REF!=\"\",\"\",#REF!)","v":{"$error":"#REF!"}},{"$f":"IF(#REF!=\"\",\"\",#REF!)","v":{"$error":"#REF!"}},{"$f":"IF(#REF!=\"\",\"\",#REF!)","v":{"$error":"#REF!"}},{"$f":"IF(#REF!=\"\",\"\",#REF!)","v":{"$error":"#REF!"}},{"$f":"IF(#REF!=\"\",\"\",#REF!)","v":{"$error":"#REF!"}},{"$f":"IF(#REF!=\"\",\"\",#REF!)","v":{"$error":"#REF!"}}]
[{"$f":"#REF!","v":{"$error":"#REF!"}},{"$f":"#REF!","v":{"$error":"#REF!"}},{"$f":"#REF!","v":{"$error":"#REF!"}},{"$f":"#REF!","v":{"$error":"#REF!"}},{"$f":"#REF!","v":{"$error":"#REF!"}},{"$f":"#REF!","v":{"$error":"#REF!"}},{"$f":"#REF!","v":{"$error":"#REF!"}},{"$f":"#REF!","v":{"$error":"#REF!"}},{"$f":"#REF!","v":{"$error":"#REF!"}},{"$f":"#REF!","v":{"$error":"#REF!"}},{"$f":"#REF!","v":{"$error":"#REF!"}},{"$f":"#REF!","v":{"$error":"#REF!"}},{"$f":"#REF!","v":{"$error":"#REF!"}},{"$f":"#REF!","v":{"$error":"#REF!"}},{"$f":"#REF!","v":{"$error":"#REF!"}},{"$f":"#REF!","v":{"$error":"#REF!"}}]
[{"$f":"#REF!","v":{"$error":"#REF!"}},{"$f":"#REF!","v":{"$error":"#REF!"}},{"$f":"#REF!","v":{"$error":"#REF!"}},{"$f":"#REF!","v":{"$error":"#REF!"}},{"$f":"#REF!","v":{"$error":"#REF!"}},{"$f":"IF(#REF!=\"\",\"\",#REF!)","v":{"$error":"#REF!"}},{"$f":"#REF!","v":{"$error":"#REF!"}},{"$f":"#REF!","v":{"$error":"#REF!"}},{"$f":"#REF!","v":{"$error":"#REF!"}},{"$f":"#REF!","v":{"$error":"#REF!"}},{"$f":"#REF!","v":{"$error":"#REF!"}},{"$f":"#REF!","v":{"$error":"#REF!"}},{"$f":"#REF!","v":{"$error":"#REF!"}},{"$f":"#REF!","v":{"$error":"#REF!"}},{"$f":"IF(#REF!=\"\",\"\",#REF!)","v":{"$error":"#REF!"}},{"$f":"IF(#REF!=\"\",\"\",#REF!)","v":{"$error":"#REF!"}}]
[{"$f":"'FW nonmetal nonplant'!B11","v":"No."},{"$f":"'FW nonmetal nonplant'!B13","v":1},{"$f":"'FW nonmetal nonplant'!B16","v":2},{"$f":"'FW nonmetal nonplant'!B19","v":3},{"$f":"'FW nonmetal nonplant'!B21","v":4},{"$f":"'FW nonmetal nonplant'!B23","v":5},{"$f":"'FW nonmetal nonplant'!B26","v":6},{"$f":"'FW nonmetal nonplant'!B29","v":7},{"$f":"'FW nonmetal nonplant'!B32","v":8},{"$f":"'FW nonmetal nonplant'!B35","v":9},{"$f":"'FW nonmetal nonplant'!B39","v":10},{"$f":"'FW nonmetal nonplant'!B42","v":11},{"$f":"'FW nonmetal nonplant'!B45","v":12},{"$f":"'FW nonmetal nonplant'!B48","v":13},{"$f":"'FW nonmetal nonplant'!B51","v":14},{"$f":"'FW nonmetal nonplant'!B53","v":15},{"$f":"'FW nonmetal nonplant'!B58","v":16.100000000000001},{"$f":"'FW nonmetal nonplant'!B61","v":16.2},{"$f":"'FW nonmetal nonplant'!B64","v":17},{"$f":"'FW nonmetal nonplant'!B67","v":18},{"$f":"'FW nonmetal nonplant'!C72","v":"Total score"},{"$f":"'FW nonmetal nonplant'!C74","v":"Quality Score"}]
[{"$f":"'FW nonmetal nonplant'!C2","v":"Category"},{"$f":"'FW nonmetal nonplant'!E2","v":"Freshwater/non-metal/non- plant"},{"$f":"'FW nonmetal nonplant'!C3","v":"Paper and data unique identifier(eg. 1-1,10-150)"},{"$f":"'FW nonmetal nonplant'!E3","v":"691-7"}]
[{"$f":"'FW nonmetal nonplant'!G11","v":"Scores"},{"$f":"'FW nonmetal nonplant'!G12","v":10},{"$f":"'FW nonmetal nonplant'!G15","v":10},{"$f":"'FW nonmetal nonplant'!G18","v":5},{"$f":"'FW nonmetal nonplant'!G21","v":5},{"$f":"'FW nonmetal nonplant'!G23","v":5},{"$f":"'FW nonmetal nonplant'!G26","v":5},{"$f":"'FW nonmetal nonplant'!G29","v":5},{"$f":"'FW nonmetal nonplant'!G32","v":5},{"$f":"'FW nonmetal nonplant'!G35","v":5},{"$f":"'FW nonmetal nonplant'!G38","v":4},{"$f":"'FW nonmetal nonplant'!G41","v":4},{"$f":"'FW nonmetal nonplant'!G44","v":4},{"$f":"'FW nonmetal nonplant'!G47","v":4},{"$f":"'FW nonmetal nonplant'!G50","v":4},{"$f":"'FW nonmetal nonplant'!G53","v":4},{"$f":"'FW nonmetal nonplant'!G57","v":3},{"$f":"'FW nonmetal nonplant'!G60","v":0},{"$f":"'FW nonmetal nonplant'!G63","v":3},{"$f":"'FW nonmetal nonplant'!G66","v":3},{"$f":"'FW nonmetal nonplant'!G72","v":88},{"$f":"'FW nonmetal nonplant'!G74","v":0.96703296703296704},null,{"$f":"'FW nonmetal nonplant'!H74","v":""}]
[{"$f":"'FW nonmetal nonplant'!H11","v":"Answers"},{"$f":"IF('FW nonmetal nonplant'!H12=\"\",\"\",'FW nonmetal nonplant'!H12)","v":"96 hours "},{"$f":"IF('FW nonmetal nonplant'!H15=\"\",\"\",'FW nonmetal nonplant'!H15)","v":"Malformation"},{"$f":"IF('FW nonmetal nonplant'!H18=\"\",\"\",'FW nonmetal nonplant'!H18)","v":"EC50"},{"$f":"IF('FW nonmetal nonplant'!H21=\"\",\"\",'FW nonmetal nonplant'!H21)","v":"EC50"},{"$f":"IF('FW nonmetal nonplant'!H23=\"\",\"\",'FW nonmetal nonplant'!H23)","v":"FETAX Solution"},{"$f":"IF('FW nonmetal nonplant'!H26=\"\",\"\",'FW nonmetal nonplant'!H26)","v":"2 replicates"},{"$f":"IF('FW nonmetal nonplant'!H29=\"\",\"\",'FW nonmetal nonplant'!H29)","v":"Acceptable mortality in controls based on ASTM guidelines"},{"$f":"IF('FW nonmetal nonplant'!H32=\"\",\"\",'FW nonmetal nonplant'!H32)","v":"Stage 8 embryos"},{"$f":"IF('FW nonmetal nonplant'!H35=\"\",\"\",'FW nonmetal nonplant'!H35)","v":"FETAX Solution"},{"$f":"IF('FW nonmetal nonplant'!H38=\"\",\"\",'FW nonmetal nonplant'!H38)","v":"Static renewal - daily renewal"},{"$f":"IF('FW nonmetal nonplant'!H41=\"\",\"\",'FW nonmetal nonplant'!H41)","v":"Stock solution concentrations measured"},{"$f":"IF('FW nonmetal nonplant'!H44=\"\",\"\",'FW nonmetal nonplant'!H44)","v":"A positive control was run with tests"},{"$f":"IF('FW nonmetal nonplant'!H47=\"\",\"\",'FW nonmetal nonplant'!H47)","v":"Table 1"},{"$f":"IF('FW nonmetal nonplant'!H50=\"\",\"\",'FW nonmetal nonplant'!H50)","v":"Yes"},{"$f":"IF('FW nonmetal nonplant'!H53=\"\",\"\",'FW nonmetal nonplant'!H53)","v":"p < 0.05"},{"$f":"IF('FW nonmetal nonplant'!H57=\"\",\"\",'FW nonmetal nonplant'!H57)","v":"7.8-8.0"},{"$f":"IF('FW nonmetal nonplant'!H60=\"\",\"\",'FW nonmetal nonplant'!H60)","v":"Not stated"},{"$f":"IF('FW nonmetal nonplant'!H63=\"\",\"\",'FW nonmetal nonplant'!H63)","v":"23.5-24.5oC"},{"$f":"IF('FW nonmetal nonplant'!H66=\"\",\"\",'FW nonmetal nonplant'!H66)","v":"Analytically impure sulfometuron methyl (85%) CAS RN # 74222-97-2"}]
[{"$f":"'FW nonmetal nonplant'!G3","v":"Species (Scientific name)"},{"$f":"'FW nonmetal nonplant'!G4","v":"Lifestage"},{"$f":"'FW nonmetal nonplant'!G5","v":"Exposure duration"},{"$f":"'FW nonmetal nonplant'!G6","v":"Measure of toxicity"},{"$f":"'FW nonmetal nonplant'!G7","v":"Toxicity endpoint"},{"$f":"'FW nonmetal nonplant'!G8","v":"Toxicity value"},{"$f":"'FW nonmetal nonplant'!J2","v":"Taxonomic group"},{"$f":"'FW nonmetal nonplant'!J3","v":"Phylum"},{"$f":"'FW nonmetal nonplant'!J4","v":"Class"},{"$f":"'FW nonmetal nonplant'!J5","v":"Media"},{"$f":"'FW nonmetal nonplant'!J6","v":"Temperature "},{"$f":"'FW nonmetal nonplant'!J7","v":"Acute Or Chronic "},{"$f":"'FW nonmetal nonplant'!J8","v":"PH"},{"$f":"'FW nonmetal nonplant'!J9","v":"Salinity/Conductivity"},{"$f":"'FW nonmetal nonplant'!C4","v":"Citation"},{"$f":"'FW nonmetal nonplant'!G2","v":"Citation No."}]
[{"$f":"'FW nonmetal nonplant'!Q3","v":"Xenopus laevis"},{"$f":"'FW nonmetal nonplant'!T3","v":"embryo"},{"$f":"'FW nonmetal nonplant'!W3","v":"96 hrs"},{"$f":"'FW nonmetal nonplant'!Z3","v":"EC50"},{"$f":"'FW nonmetal nonplant'!AC3","v":"Development"},{"$f":"IF('FW nonmetal nonplant'!H8=\"\",\"\",'FW nonmetal nonplant'!H8)","v":"4200 ug/L"},{"$f":"'FW nonmetal nonplant'!AF3","v":"Amphibian"},{"$f":"'FW nonmetal nonplant'!AI3","v":"Chordata"},{"$f":"'FW nonmetal nonplant'!AL3","v":"Amphibia"},{"$f":"'FW nonmetal nonplant'!AO3","v":"FETAX Solution"},{"$f":"'FW nonmetal nonplant'!AR3","v":"19-21oC"},{"$f":"'FW nonmetal nonplant'!AU3","v":"Acute "},{"$f":"'FW nonmetal nonplant'!AX3","v":"7.8-8.0"},{"$f":"'FW nonmetal nonplant'!BA3","v":"N.A."},{"$f":"IF('FW nonmetal nonplant'!E4=\"\",\"\",'FW nonmetal nonplant'!E4)","v":"Fort, D.J., R. Rogers, H. Copley, L. Bruning, E.L. Stover and D. Rapaport. 1999. Effect of sulfometuron methyl and nicosulfuron on development and metamorphosis in Xenopus laevis: Impact of Purity. Environmental Toxicology and Chemistry 18: 2934-2940"},{"$f":"IF('FW nonmetal nonplant'!H2=\"\",\"\",'FW nonmetal nonplant'!H2)","v":"691"}]
[{"$f":"#REF!","v":{"$error":"#REF!"}},{"$f":"#REF!","v":{"$error":"#REF!"}},{"$f":"#REF!","v":{"$error":"#REF!"}},{"$f":"#REF!","v":{"$error":"#REF!"}},{"$f":"#REF!","v":{"$error":"#REF!"}},{"$f":"#REF!","v":{"$error":"#REF!"}},{"$f":"#REF!","v":{"$error":"#REF!"}},{"$f":"#REF!","v":{"$error":"#REF!"}},{"$f":"#REF!","v":{"$error":"#REF!"}},{"$f":"#REF!","v":{"$error":"#REF!"}},{"$f":"#REF!","v":{"$error":"#REF!"}},{"$f":"#REF!","v":{"$error":"#REF!"}},{"$f":"#REF!","v":{"$error":"#REF!"}},{"$f":"#REF!","v":{"$error":"#REF!"}},{"$f":"#REF!","v":{"$error":"#REF!"}},{"$f":"#REF!","v":{"$error":"#REF!"}},{"$f":"#REF!","v":{"$error":"#REF!"}},{"$f":"#REF!","v":{"$error":"#REF!"}},{"$f":"#REF!","v":{"$error":"#REF!"}},{"$f":"#REF!","v":{"$error":"#REF!"}},{"$f":"#REF!","v":{"$error":"#REF!"}},{"$f":"#REF!","v":{"$error":"#REF!"}},{"$f":"#REF!","v":{"$error":"#REF!"}},{"$f":"#REF!","v":{"$error":"#REF!"}},{"$f":"#REF!","v":{"$error":"#REF!"}}]
[{"$f":"#REF!","v":{"$error":"#REF!"}},{"$f":"#REF!","v":{"$error":"#REF!"}},{"$f":"#REF!","v":{"$error":"#REF!"}},{"$f":"#REF!","v":{"$error":"#REF!"}}]
[{"$f":"#REF!","v":{"$error":"#REF!"}},{"$f":"#REF!","v":{"$error":"#REF!"}},{"$f":"#REF!","v":{"$error":"#REF!"}},{"$f":"#REF!","v":{"$error":"#REF!"}},{"$f":"#REF!","v":{"$error":"#REF!"}},{"$f":"#REF!","v":{"$error":"#REF!"}},{"$f":"#REF!","v":{"$error":"#REF!"}},{"$f":"#REF!","v":{"$error":"#REF!"}},{"$f":"#REF!","v":{"$error":"#REF!"}},{"$f":"#REF!","v":{"$error":"#REF!"}},{"$f":"#REF!","v":{"$error":"#REF!"}},{"$f":"#REF!","v":{"$error":"#REF!"}},{"$f":"#REF!","v":{"$error":"#REF!"}},{"$f":"#REF!","v":{"$error":"#REF!"}},{"$f":"#REF!","v":{"$error":"#REF!"}},{"$f":"#REF!","v":{"$error":"#REF!"}},{"$f":"#REF!","v":{"$error":"#REF!"}},{"$f":"#REF!","v":{"$error":"#REF!"}},{"$f":"#REF!","v":{"$error":"#REF!"}},{"$f":"#REF!","v":{"$error":"#REF!"}},{"$f":"#REF!","v":{"$error":"#REF!"}},{"$f":"#REF!","v":{"$error":"#REF!"}},{"$f":"#REF!","v":{"$error":"#REF!"}},{"$f":"#REF!","v":{"$error":"#REF!"}},{"$f":"#REF!","v":{"$error":"#REF!"}},{"$f":"#REF!","v":{"$error":"#REF!"}}]
[{"$f":"#REF!","v":{"$error":"#REF!"}},{"$f":"IF(#REF!=\"\",\"\",#REF!)","v":{"$error":"#REF!"}},{"$f":"IF(#REF!=\"\",\"\",#REF!)","v":{"$error":"#REF!"}},{"$f":"IF(#REF!=\"\",\"\",#REF!)","v":{"$error":"#REF!"}},{"$f":"IF(#REF!=\"\",\"\",#REF!)","v":{"$error":"#REF!"}},{"$f":"IF(#REF!=\"\",\"\",#REF!)","v":{"$error":"#REF!"}},{"$f":"IF(#REF!=\"\",\"\",#REF!)","v":{"$error":"#REF!"}},{"$f":"IF(#REF!=\"\",\"\",#REF!)","v":{"$error":"#REF!"}},{"$f":"IF(#REF!=\"\",\"\",#REF!)","v":{"$error":"#REF!"}},{"$f":"IF(#REF!=\"\",\"\",#REF!)","v":{"$error":"#REF!"}},{"$f":"IF(#REF!=\"\",\"\",#REF!)","v":{"$error":"#REF!"}},{"$f":"IF(#REF!=\"\",\"\",#REF!)","v":{"$error":"#REF!"}},{"$f":"IF(#REF!=\"\",\"\",#REF!)","v":{"$error":"#REF!"}},{"$f":"IF(#REF!=\"\",\"\",#REF!)","v":{"$error":"#REF!"}},{"$f":"IF(#REF!=\"\",\"\",#REF!)","v":{"$error":"#REF!"}},{"$f":"IF(#REF!=\"\",\"\",#REF!)","v":{"$error":"#REF!"}},{"$f":"IF(#REF!=\"\",\"\",#REF!)","v":{"$error":"#REF!"}},{"$f":"IF(#REF!=\"\",\"\",#REF!)","v":{"$error":"#REF!"}},{"$f":"IF(#REF!=\"\",\"\",#REF!)","v":{"$error":"#REF!"}},{"$f":"IF(#REF!=\"\",\"\",#REF!)","v":{"$error":"#REF!"}},{"$f":"IF(#REF!=\"\",\"\",#REF!)","v":{"$error":"#REF!"}},{"$f":"IF(#REF!=\"\",\"\",#REF!)","v":{"$error":"#REF!"}},{"$f":"IF(#REF!=\"\",\"\",#REF!)","v":{"$error":"#REF!"}}]
[{"$f":"#REF!","v":{"$error":"#REF!"}},{"$f":"#REF!","v":{"$error":"#REF!"}},{"$f":"#REF!","v":{"$error":"#REF!"}},{"$f":"#REF!","v":{"$error":"#REF!"}},{"$f":"#REF!","v":{"$error":"#REF!"}},{"$f":"#REF!","v":{"$error":"#REF!"}},{"$f":"#REF!","v":{"$error":"#REF!"}},{"$f":"#REF!","v":{"$error":"#REF!"}},{"$f":"#REF!","v":{"$error":"#REF!"}},{"$f":"#REF!","v":{"$error":"#REF!"}},{"$f":"#REF!","v":{"$error":"#REF!"}},{"$f":"#REF!","v":{"$error":"#REF!"}},{"$f":"#REF!","v":{"$error":"#REF!"}},{"$f":"#REF!","v":{"$error":"#REF!"}},{"$f":"#REF!","v":{"$error":"#REF!"}},{"$f":"#REF!","v":{"$error":"#REF!"}}]
[{"$f":"#REF!","v":{"$error":"#REF!"}},{"$f":"#REF!","v":{"$error":"#REF!"}},{"$f":"#REF!","v":{"$error":"#REF!"}},{"$f":"#REF!","v":{"$error":"#REF!"}},{"$f":"#REF!","v":{"$error":"#REF!"}},{"$f":"IF(#REF!=\"\",\"\",#REF!)","v":{"$error":"#REF!"}},{"$f":"#REF!","v":{"$error":"#REF!"}},{"$f":"#REF!","v":{"$error":"#REF!"}},{"$f":"#REF!","v":{"$error":"#REF!"}},{"$f":"#REF!","v":{"$error":"#REF!"}},{"$f":"#REF!","v":{"$error":"#REF!"}},{"$f":"#REF!","v":{"$error":"#REF!"}},{"$f":"#REF!","v":{"$error":"#REF!"}},{"$f":"#REF!","v":{"$error":"#REF!"}},{"$f":"IF(#REF!=\"\",\"\",#REF!)","v":{"$error":"#REF!"}},{"$f":"IF(#REF!=\"\",\"\",#REF!)","v":{"$error":"#REF!"}}]
[{"$f":"#REF!","v":{"$error":"#REF!"}},{"$f":"#REF!","v":{"$error":"#REF!"}},{"$f":"#REF!","v":{"$error":"#REF!"}},{"$f":"#REF!","v":{"$error":"#REF!"}},{"$f":"#REF!","v":{"$error":"#REF!"}},{"$f":"#REF!","v":{"$error":"#REF!"}},{"$f":"#REF!","v":{"$error":"#REF!"}},{"$f":"#REF!","v":{"$error":"#REF!"}},{"$f":"#REF!","v":{"$error":"#REF!"}},{"$f":"#REF!","v":{"$error":"#REF!"}},{"$f":"#REF!","v":{"$error":"#REF!"}},{"$f":"#REF!","v":{"$error":"#REF!"}},{"$f":"#REF!","v":{"$error":"#REF!"}},{"$f":"#REF!","v":{"$error":"#REF!"}},{"$f":"#REF!","v":{"$error":"#REF!"}},{"$f":"#REF!","v":{"$error":"#REF!"}},{"$f":"#REF!","v":{"$error":"#REF!"}},{"$f":"#REF!","v":{"$error":"#REF!"}},{"$f":"#REF!","v":{"$error":"#REF!"}},{"$f":"#REF!","v":{"$error":"#REF!"}},{"$f":"#REF!","v":{"$error":"#REF!"}},{"$f":"#REF!","v":{"$error":"#REF!"}},{"$f":"#REF!","v":{"$error":"#REF!"}}]
[{"$f":"#REF!","v":{"$error":"#REF!"}},{"$f":"#REF!","v":{"$error":"#REF!"}},{"$f":"#REF!","v":{"$error":"#REF!"}},{"$f":"#REF!","v":{"$error":"#REF!"}}]
[{"$f":"#REF!","v":{"$error":"#REF!"}},{"$f":"#REF!","v":{"$error":"#REF!"}},{"$f":"#REF!","v":{"$error":"#REF!"}},{"$f":"#REF!","v":{"$error":"#REF!"}},{"$f":"#REF!","v":{"$error":"#REF!"}},{"$f":"#REF!","v":{"$error":"#REF!"}},{"$f":"#REF!","v":{"$error":"#REF!"}},{"$f":"#REF!","v":{"$error":"#REF!"}},{"$f":"#REF!","v":{"$error":"#REF!"}},{"$f":"#REF!","v":{"$error":"#REF!"}},{"$f":"#REF!","v":{"$error":"#REF!"}},{"$f":"#REF!","v":{"$error":"#REF!"}},{"$f":"#REF!","v":{"$error":"#REF!"}},{"$f":"#REF!","v":{"$error":"#REF!"}},{"$f":"#REF!","v":{"$error":"#REF!"}},{"$f":"#REF!","v":{"$error":"#REF!"}},{"$f":"#REF!","v":{"$error":"#REF!"}},{"$f":"#REF!","v":{"$error":"#REF!"}},{"$f":"#REF!","v":{"$error":"#REF!"}},{"$f":"#REF!","v":{"$error":"#REF!"}},{"$f":"#REF!","v":{"$error":"#REF!"}},{"$f":"#REF!","v":{"$error":"#REF!"}},{"$f":"#REF!","v":{"$error":"#REF!"}},{"$f":"#REF!","v":{"$error":"#REF!"}}]
[{"$f":"#REF!","v":{"$error":"#REF!"}},{"$f":"IF(#REF!=\"\",\"\",#REF!)","v":{"$error":"#REF!"}},{"$f":"IF(#REF!=\"\",\"\",#REF!)","v":{"$error":"#REF!"}},{"$f":"IF(#REF!=\"\",\"\",#REF!)","v":{"$error":"#REF!"}},{"$f":"IF(#REF!=\"\",\"\",#REF!)","v":{"$error":"#REF!"}},{"$f":"IF(#REF!=\"\",\"\",#REF!)","v":{"$error":"#REF!"}},{"$f":"IF(#REF!=\"\",\"\",#REF!)","v":{"$error":"#REF!"}},{"$f":"IF(#REF!=\"\",\"\",#REF!)","v":{"$error":"#REF!"}},{"$f":"IF(#REF!=\"\",\"\",#REF!)","v":{"$error":"#REF!"}},{"$f":"IF(#REF!=\"\",\"\",#REF!)","v":{"$error":"#REF!"}},{"$f":"IF(#REF!=\"\",\"\",#REF!)","v":{"$error":"#REF!"}},{"$f":"IF(#REF!=\"\",\"\",#REF!)","v":{"$error":"#REF!"}},{"$f":"IF(#REF!=\"\",\"\",#REF!)","v":{"$error":"#REF!"}},{"$f":"IF(#REF!=\"\",\"\",#REF!)","v":{"$error":"#REF!"}},{"$f":"IF(#REF!=\"\",\"\",#REF!)","v":{"$error":"#REF!"}},{"$f":"IF(#REF!=\"\",\"\",#REF!)","v":{"$error":"#REF!"}},{"$f":"IF(#REF!=\"\",\"\",#REF!)","v":{"$error":"#REF!"}},{"$f":"IF(#REF!=\"\",\"\",#REF!)","v":{"$error":"#REF!"}},{"$f":"IF(#REF!=\"\",\"\",#REF!)","v":{"$error":"#REF!"}},{"$f":"IF(#REF!=\"\",\"\",#REF!)","v":{"$error":"#REF!"}},{"$f":"IF(#REF!=\"\",\"\",#REF!)","v":{"$error":"#REF!"}}]
[{"$f":"#REF!","v":{"$error":"#REF!"}},{"$f":"#REF!","v":{"$error":"#REF!"}},{"$f":"#REF!","v":{"$error":"#REF!"}},{"$f":"#REF!","v":{"$error":"#REF!"}},{"$f":"#REF!","v":{"$error":"#REF!"}},{"$f":"#REF!","v":{"$error":"#REF!"}},{"$f":"#REF!","v":{"$error":"#REF!"}},{"$f":"#REF!","v":{"$error":"#REF!"}},{"$f":"#REF!","v":{"$error":"#REF!"}},{"$f":"#REF!","v":{"$error":"#REF!"}},{"$f":"#REF!","v":{"$error":"#REF!"}},{"$f":"#REF!","v":{"$error":"#REF!"}},{"$f":"#REF!","v":{"$error":"#REF!"}},{"$f":"#REF!","v":{"$error":"#REF!"}},{"$f":"#REF!","v":{"$error":"#REF!"}},{"$f":"#REF!","v":{"$error":"#REF!"}}]
[{"$f":"#REF!","v":{"$error":"#REF!"}},{"$f":"#REF!","v":{"$error":"#REF!"}},{"$f":"#REF!","v":{"$error":"#REF!"}},{"$f":"#REF!","v":{"$error":"#REF!"}},{"$f":"#REF!","v":{"$error":"#REF!"}},{"$f":"IF(#REF!=\"\",\"\",#REF!)","v":{"$error":"#REF!"}},{"$f":"#REF!","v":{"$error":"#REF!"}},{"$f":"#REF!","v":{"$error":"#REF!"}},{"$f":"#REF!","v":{"$error":"#REF!"}},{"$f":"#REF!","v":{"$error":"#REF!"}},{"$f":"#REF!","v":{"$error":"#REF!"}},{"$f":"#REF!","v":{"$error":"#REF!"}},{"$f":"#REF!","v":{"$error":"#REF!"}},{"$f":"#REF!","v":{"$error":"#REF!"}},{"$f":"IF(#REF!=\"\", \"\",#REF!)","v":{"$error":"#REF!"}},{"$f":"IF(#REF!=\"\", \"\",#REF!)","v":{"$error":"#REF!"}}]
[{"$f":"#REF!","v":{"$error":"#REF!"}},{"$f":"#REF!","v":{"$error":"#REF!"}},{"$f":"#REF!","v":{"$error":"#REF!"}},{"$f":"#REF!","v":{"$error":"#REF!"}},{"$f":"#REF!","v":{"$error":"#REF!"}},{"$f":"#REF!","v":{"$error":"#REF!"}},{"$f":"#REF!","v":{"$error":"#REF!"}},{"$f":"#REF!","v":{"$error":"#REF!"}},{"$f":"#REF!","v":{"$error":"#REF!"}},{"$f":"#REF!","v":{"$error":"#REF!"}},{"$f":"#REF!","v":{"$error":"#REF!"}},{"$f":"#REF!","v":{"$error":"#REF!"}},{"$f":"#REF!","v":{"$error":"#REF!"}},{"$f":"#REF!","v":{"$error":"#REF!"}},{"$f":"#REF!","v":{"$error":"#REF!"}},{"$f":"#REF!","v":{"$error":"#REF!"}},{"$f":"#REF!","v":{"$error":"#REF!"}},{"$f":"#REF!","v":{"$error":"#REF!"}},{"$f":"#REF!","v":{"$error":"#REF!"}},{"$f":"#REF!","v":{"$error":"#REF!"}},{"$f":"#REF!","v":{"$error":"#REF!"}},{"$f":"#REF!","v":{"$error":"#REF!"}}]
[{"$f":"#REF!","v":{"$error":"#REF!"}},{"$f":"#REF!","v":{"$error":"#REF!"}},{"$f":"#REF!","v":{"$error":"#REF!"}},{"$f":"#REF!","v":{"$error":"#REF!"}}]
[{"$f":"#REF!","v":{"$error":"#REF!"}},{"$f":"#REF!","v":{"$error":"#REF!"}},{"$f":"#REF!","v":{"$error":"#REF!"}},{"$f":"#REF!","v":{"$error":"#REF!"}},{"$f":"#REF!","v":{"$error":"#REF!"}},{"$f":"#REF!","v":{"$error":"#REF!"}},{"$f":"#REF!","v":{"$error":"#REF!"}},{"$f":"#REF!","v":{"$error":"#REF!"}},{"$f":"#REF!","v":{"$error":"#REF!"}},{"$f":"#REF!","v":{"$error":"#REF!"}},{"$f":"#REF!","v":{"$error":"#REF!"}},{"$f":"#REF!","v":{"$error":"#REF!"}},{"$f":"#REF!","v":{"$error":"#REF!"}},{"$f":"#REF!","v":{"$error":"#REF!"}},{"$f":"#REF!","v":{"$error":"#REF!"}},{"$f":"#REF!","v":{"$error":"#REF!"}},{"$f":"#REF!","v":{"$error":"#REF!"}},{"$f":"#REF!","v":{"$error":"#REF!"}},{"$f":"#REF!","v":{"$error":"#REF!"}},{"$f":"#REF!","v":{"$error":"#REF!"}},{"$f":"#REF!","v":{"$error":"#REF!"}},{"$f":"#REF!","v":{"$error":"#REF!"}},{"$f":"#REF!","v":{"$error":"#REF!"}}]
[{"$f":"#REF!","v":{"$error":"#REF!"}},{"$f":"IF(#REF!=\"\",\"\",#REF!)","v":{"$error":"#REF!"}},{"$f":"IF(#REF!=\"\",\"\",#REF!)","v":{"$error":"#REF!"}},{"$f":"IF(#REF!=\"\",\"\",#REF!)","v":{"$error":"#REF!"}},{"$f":"IF(#REF!=\"\",\"\",#REF!)","v":{"$error":"#REF!"}},{"$f":"IF(#REF!=\"\",\"\",#REF!)","v":{"$error":"#REF!"}},{"$f":"IF(#REF!=\"\",\"\",#REF!)","v":{"$error":"#REF!"}},{"$f":"IF(#REF!=\"\",\"\",#REF!)","v":{"$error":"#REF!"}},{"$f":"IF(#REF!=\"\",\"\",#REF!)","v":{"$error":"#REF!"}},{"$f":"IF(#REF!=\"\",\"\",#REF!)","v":{"$error":"#REF!"}},{"$f":"IF(#REF!=\"\",\"\",#REF!)","v":{"$error":"#REF!"}},{"$f":"IF(#REF!=\"\",\"\",#REF!)","v":{"$error":"#REF!"}},{"$f":"IF(#REF!=\"\",\"\",#REF!)","v":{"$error":"#REF!"}},{"$f":"IF(#REF!=\"\",\"\",#REF!)","v":{"$error":"#REF!"}},{"$f":"IF(#REF!=\"\",\"\",#REF!)","v":{"$error":"#REF!"}},{"$f":"IF(#REF!=\"\",\"\",#REF!)","v":{"$error":"#REF!"}},{"$f":"IF(#REF!=\"\",\"\",#REF!)","v":{"$error":"#REF!"}},{"$f":"IF(#REF!=\"\",\"\",#REF!)","v":{"$error":"#REF!"}},{"$f":"IF(#REF!=\"\",\"\",#REF!)","v":{"$error":"#REF!"}},{"$f":"IF(#REF!=\"\",\"\",#REF!)","v":{"$error":"#REF!"}}]
[{"$f":"#REF!","v":{"$error":"#REF!"}},{"$f":"#REF!","v":{"$error":"#REF!"}},{"$f":"#REF!","v":{"$error":"#REF!"}},{"$f":"#REF!","v":{"$error":"#REF!"}},{"$f":"#REF!","v":{"$error":"#REF!"}},{"$f":"#REF!","v":{"$error":"#REF!"}},{"$f":"#REF!","v":{"$error":"#REF!"}},{"$f":"#REF!","v":{"$error":"#REF!"}},{"$f":"#REF!","v":{"$error":"#REF!"}},{"$f":"#REF!","v":{"$error":"#REF!"}},{"$f":"#REF!","v":{"$error":"#REF!"}},{"$f":"#REF!","v":{"$error":"#REF!"}},{"$f":"#REF!","v":{"$error":"#REF!"}},{"$f":"#REF!","v":{"$error":"#REF!"}},{"$f":"#REF!","v":{"$error":"#REF!"}},{"$f":"#REF!","v":{"$error":"#REF!"}}]
[{"$f":"#REF!","v":{"$error":"#REF!"}},{"$f":"#REF!","v":{"$error":"#REF!"}},{"$f":"#REF!","v":{"$error":"#REF!"}},{"$f":"#REF!","v":{"$error":"#REF!"}},{"$f":"#REF!","v":{"$error":"#REF!"}},{"$f":"IF(#REF!=\"\",\"\",#REF!)","v":{"$error":"#REF!"}},{"$f":"#REF!","v":{"$error":"#REF!"}},{"$f":"#REF!","v":{"$error":"#REF!"}},{"$f":"#REF!","v":{"$error":"#REF!"}},{"$f":"#REF!","v":{"$error":"#REF!"}},{"$f":"#REF!","v":{"$error":"#REF!"}},{"$f":"#REF!","v":{"$error":"#REF!"}},{"$f":"#REF!","v":{"$error":"#REF!"}},{"$f":"#REF!","v":{"$error":"#REF!"}},{"$f":"IF(#REF!=\"\",\"\",#REF!)","v":{"$error":"#REF!"}},{"$f":"IF(#REF!=\"\",\"\",#REF!)","v":{"$error":"#REF!"}}]

{"sheet":"FW nonmetal nonplant","index":5,"n_rows":111,"n_cols":53,"rows_kept":111,"cut":false,"hidden":false,"merged":[[3,4,7,4],[9,2,9,4],[11,2,13,2],[11,7,13,7],[14,2,16,2],[14,7,16,7],[17,2,19,2],[17,7,19,7],[20,2,21,2],[20,7,21,7],[22,2,24,2],[22,7,24,7],[25,2,27,2],[25,7,27,7],[28,2,30,2],[28,7,30,7],[31,2,33,2],[31,7,33,7],[34,2,36,2],[34,7,36,7],[37,2,39,2],[37,7,39,7],[40,2,42,2],[40,7,42,7],[43,2,45,2],[43,7,45,7],[46,2,48,2],[46,7,48,7],[49,2,51,2],[49,7,51,7],[65,2,68,2],[65,7,68,7],[59,7,61,7],[52,2,54,2],[52,7,54,7],[56,7,58,7],[62,2,64,2],[62,7,64,7]]}
[null,1,"Fill in the blank cells below, based on information provided in the paper being assessed. You can either pick an option from the dropdown list or add the appropriate detail using the 'Add to list' button. ",null,null,null,null,null,null,null,null,null,null,null,"* All the text in RED are used for drop down list ,make changes with caution."]
[null,null,"Category",{"$f":"IF(AF3=\"\",0,1)","v":1},"Freshwater/non-metal/non- plant",{"$f":"IF(E3=\"\",0,1)","v":1},"Citation No.",{"$f":"IF(ISERROR(FIND(\"-\",E3)),E3,LEFT(E3,FIND(\"-\",E3)-1))","v":"691"},null,"Taxonomic group",null,null,null,null,"Species",null,null,"Lifestage",null,null,"Exposure duration",null,null,"Measure of toxicity",null,null,"Toxicity endpoint",null,null,"Taxonomic group",null,null,"Phylum",null,null,"Class",null,null,"Media",null,null,"Temperature ",null,null,"Acute Or Chronic",null,null,"PH",null,null,"Salinity/Comdictivity"]
[null,null,"Paper and data unique identifier(eg. 1-1,10-150)",{"$f":"IF(AI3=\"\",0,1)","v":1},"691-7",{"$f":"IF(E4=\"\",0,1)","v":1},"Species (Scientific name)",null,null,"Phylum",null,null,null,null,"Acanthocyclops robustus",91,{"$f":"IF(P3=0,\"\",INDEX(O3:O102,P3))","v":"Xenopus laevis"},"<120 days post h atch",23,{"$f":"IF(S3=0,\"\",INDEX(R3:R102,S3))","v":"embryo"},"10 day",43,{"$f":"IF(V3=0,\"\",INDEX(U3:U102,V3))","v":"96 hrs"},"EC10",3,{"$f":"IF(Y3=0,\"\",INDEX(X3:X102,Y3))","v":"EC50"},"ability to cling",13,{"$f":"IF(AB3=0,\"\",INDEX(AA3:AA102,AB3))","v":"Development"},"Amphibian",1,{"$f":"IF(AE3=0,\"\",INDEX(AD3:AD102,AE3))","v":"Amphibian"},"\tChytridiomycota",9,{"$f":"IF(AH3=0,\"\",INDEX(AG3:AG102,AH3))","v":"Chordata"},"\tOstracoda",4,{"$f":"IF(AK3=0,\"\",INDEX(AJ3:AJ102,AK3))","v":"Amphibia"},"algaltoxkit",53,{"$f":"IF(AN3=0,\"\",INDEX(AM3:AM102,AN3))","v":"FETAX Solution"},8,75,{"$f":"IF(AQ3=0,\"\",INDEX(AP3:AP102,AQ3))","v":"19-21oC"},"7.378-8.33",3,{"$f":"IF(AT3=0,\"\",INDEX(AS3:AS102,AT3))","v":"Acute "},7,40,{"$f":"IF(AW3=0,\"\",INDEX(AV3:AV102,AW3))","v":"7.8-8.0"},null,null,"N.A."]
[null,null,"Citation",{"$f":"IF(AL3=\"\",0,1)","v":1},"Fort, D.J., R. Rogers, H. Copley, L. Bruning, E.L. Stover and D. Rapaport. 1999. Effect of sulfometuron methyl and nicosulfuron on development and metamorphosis in Xenopus laevis: Impact of Purity. Environmental Toxicology and Chemistry 18: 2934-2940",{"$f":"IF(H8=\"\",0,1)","v":1},"Lifestage",null,null,"Class",null,null,null,null,"Aedes aegypti",null,null,"<24h neonate f2 ",null,null,"11 hour",null,null,"EC50",null,null,"ability to swim",null,null,"Bacteria",null,null,"\tOomycota",null,null,"\tSordariomycetes",null,null,"artificial system water",null,null,10,null,null,"7.78-8.33",null,null,7.5]
[null,null,null,{"$f":"IF(AO3=\"\",0,1)","v":1},null,{"$f":"IF(W3=\"\",0,1)","v":1},"Exposure duration",null,null,"Media",null,null,null,null,"Aedes albopictus",null,null,"<24hr neonate",null,null,"1-2 weeks",null,null,"EC50",null,null,"ability to thrash when prodded",null,null,"Chordata",null,null,"\tRotifera",null,null,"Actinopterygii",null,null,"ATSM hardwater",null,null,12,null,null,"Acute ",null,null,7.5]
[null,null,null,{"$f":"IF(AR3=\"\",0,1)","v":1},null,{"$f":"IF(Q3=\"\",0,1)","v":1},"Measure of toxicity",null,null,"Temperature ",null,null,null,null,"Aedes albopictus",null,null,">23 days",null,null,"120hpf",null,null,"hatchability",null,null,"ability to walk/crawl",null,null,"Chromista",null,null,"Actinopterygii",null,null,"Amphibia",null,null,"Bore water",null,null,12,null,null,"Chronic",null,null,7.66]
[null,null,null,{"$f":"IF(AU3=\"\",0,1)","v":1},null,{"$f":"IF(T3=\"\",0,1)","v":1},"Toxicity endpoint",null,null,"Acute Or Chronic ",null,null,null,null,"Aedes albopictus HAmAal strain",null,null,">6 month ",null,null,"13 days",null,null,"IC25",null,null,"activity",null,null,"Fish",null,null,"Arthropoda",null,null,"Bivalvia",null,null,"CBS culture collection",null,null,12,null,null,"N.A.",null,null,7.67]
[null,null,null,null,null,{"$f":"IF(W3=\"\",0,1)","v":1},"Toxicity value","4200 ug/L",null,"PH",null,null,null,null,"Aedes albopictus Ikaken strain",null,null,"1 month",null,null,"14 days",null,null,"LC10",null,null,"Body length",null,null,"Fish",null,null,"Ascomycota",null,null,"Branchiopoda",null,null,"Clean river water",null,null,13,null,null,null,null,null,7.8]
[null,2,"Select the appropriate answer option to each question. Comments can be added to the cells in column H.",null,null,{"$f":"IF(Z3=\"\",0,1)","v":1},null,null,null,"Salinity/Conductivity","N.A.",null,null,null,"Aedes albopictus MAmAal strain",null,null,"1 year old",null,null,"19 days",null,null,"LC100",null,null,"Body weight",null,null,"Flagellate",null,null,"Basidiomycota",null,null,"Chlorophyceae  ",null,null,"Clean river watrer",null,null,13,null,null,null,null,null,8.1]
[null,"*","If the selected answer option does not work try clicking on any other cell first and then click back on the answer option again.",null,null,{"$f":"IF(AC3=\"\",0,1)","v":1},null,null,null,null,null,null,null,null,"Aedes albopictus SFmAal strain",null,null,"1st instar larvae",null,null,"21 day",null,null,"LC50",null,null,"Brood size",null,null,"Fungi",null,null,"Chlorophyta",null,null,"Chytridiomycetes",null,null,"Daphtoxkit",null,null,13,null,null,null,null,null,"6.5-7"]
[null,"No.","Question","Marks Awarded","Answer Options","Option References","Scores","Answers",null,null,null,null,null,null,"Aedes albopictus VBFmAal strain",null,null,"3rd brood",null,null,"24 hrs",null,null,"LC50",null,null,"brood survival",null,null,"Macroinvertebrate",null,null,"Chordata",null,null,"Cryptophyceae",null,null,"Dechlorinated tap water",null,null,14,null,null,null,null,null,"6.5-7.4"]
[null,null,"Was the duration of the exposure stated (e.g. 48 or 96 h)?",10,null,1,{"$f":"IF(F12=0,0,INDEX($D12:$D13,F12,1))","v":10},"96 hours ",null,null,null,null,null,null,"Aedes taeniorhynchus",null,null,"3rd brood neonate",null,null,"24h",null,null,"LC90",null,null,"Cell viability",null,null,"Macroinvertebrate",null,null,"Chordata",null,null,"Eurotatoria",null,null,"dechlorinated water",null,null,16,null,null,null,null,null,"6.6-7.2"]
[null,1,null,0,null,null,null,null,null,null,null,null,null,null,"AnopheIes quadrimaculatus",null,null,"3rd brood neonate <24hr",null,null,"24hr",null,null,"LC90",null,null,"Colour change",null,null,"Microalga",null,null,"Ciliophora",null,null,"Gammaproteobacteria",null,null,"deinonised reconstituted water",null,null,16,null,null,null,null,null,"6.8-7.5"]
[null,null,null,null,null,null,null,null,null,null,null,null,null,null,"Australian Bass",null,null,"4-5th instar larvae",null,null,"24hr",null,null,"LC95",null,null,"development",null,null,"Microinvertebrate",null,null,"Cryptophyta",null,null,"Insecta",null,null,"deionised sterile water",null,null,17,null,null,null,null,null,"7.1 ± 0.5"]
[null,null,"Was the biological endpoint (e.g. immobilization or population growth) stated and defined (10 marks)? Award 5 marks if the biological endpoint is only stated.",10,null,1,{"$f":"IF(F15=0,0,INDEX($D15:$D17,F15,1))","v":10},"Malformation",null,null,null,null,null,null,"Baetis tricaudatus",null,null,"4th instar larvae",null,null,"25hr",null,null,"LD50",null,null,"Development",null,null,"N.A.",null,null,"Mollusca",null,null,"Malacostraca",null,null,"Deionised water",null,null,18,null,null,null,null,null,"7.3 ± 0.2"]
[null,2,null,5,null,null,null,null,null,null,null,null,null,null,"Batrachochytrium dendrobatidis",null,null,"5-7d adult",null,null,"26 days",null,null,"LOEC",null,null,"Developmental",null,null,"Rotifer",null,null,"N.A.",null,null,"N.A.",null,null,"Deionised water with added salts",null,null,18,null,null,null,null,null,"7.35-7.6"]
[null,null,null,0,null,null,null,null,null,null,null,null,null,null,"Batrachochytrium dendrobatidis",null,null,"5th instar larvae",null,null,"28 day",null,null,"LOEC",null,null,"Developmental",null,null,"Diatom",null,null,"Proteobacteria",null,null,"Not assigned",null,null,"essential medium",null,null,19,null,null,null,null,null,"7.3-8.0"]
[null,null,"Was the biological effect stated (e.g. LC or NOEC)?",5,null,1,{"$f":"IF(F18=0,0,INDEX($D18:$D19,F18,1))","v":5},"EC50",null,null,null,null,null,null,"Ceriodaphnia dubia",null,null,"6-11 g",null,null,"28 days",null,null,"LOEC",null,null,"Fecundity",null,null,null,null,null,"Tracheophyta",null,null,"Prostomatea",null,null,"Filtered natural lake water",null,null,20,null,null,null,null,null,"7.51 ± 0.19"]
[null,3,null,0,null,null,null,null,null,null,null,null,null,null,"Chaoborus crystallinus",null,null,"6-9cm length",null,null,"28 days",null,null,"N.A.",null,null,"Feed assimilation",null,null,null,null,null,"Zygomycota",null,null,"Tremellomycetes",null,null,"Freshwater",null,null,20,null,null,null,null,null,"7.6-7.75"]
[null,null,null,null,null,null,null,null,null,null,null,null,null,null,"Chironomus crassicaudatus",null,null,"7-11g",null,null,"28 dyas",null,null,"NOEC",null,null,"Foraging success",null,null,null,null,null,"Ochrophyta",null,null,"Bacillariophyceae",null,null,"grown on tadpoles in freshwater",null,null,20,null,null,null,null,null,"7.6-8.2"]
[null,4,"Was the biological effect quantified (e.g. 50% effect, 25% effect)? \nNote: The effect for NOEC and LOEC data must be quantified.",5,null,1,{"$f":"IF(F21=0,0,INDEX($D21:$D22,F21,1))","v":5},"EC50",null,null,null,null,null,null,"Chironomus dilutus",null,null,"adult",null,null,"32 day",null,null,"NOEC",null,null,"Gonad mass",null,null,null,null,null,null,null,null,"Sarcopterygii",null,null,"growth culture",null,null,20,null,null,null,null,null,"7.78-8.33"]
[null,null,null,0,null,null,null,null,null,null,null,null,null,null,"Colubotelson chiltoni minor",null,null,"Adult",null,null,"35 day",null,null,"NOEC",null,null,"Gonadosomatic index",null,null,null,null,null,null,null,null,"Ostracoda",null,null,"Lab water",null,null,20,null,null,null,null,null,"7.8 -+ 0.2"]
[null,5,"Were appropriate controls (e.g. a no-toxicant control and/or solvent control) used?",5,null,1,{"$f":"IF(F23=0,0,INDEX($D23:$D24,F23,1))","v":5},"FETAX Solution",null,null,null,null,null,null,"Cryptococcus flavescens",null,null,"Adult (7.1-10.5cm length)",null,null,"4 day",null,null,"NOEL",null,null,"granulocyte count",null,null,null,null,null,null,null,null,"Maxillopoda",null,null,"malt extract broth",null,null,21,null,null,null,null,null,"7.8-8.1"]
[null,null,null,0,null,null,null,null,null,null,null,null,null,null,"Cryptomonas sp.",null,null,"adult female",null,null,"42 day",null,null,"NOEL",null,null,"Growth",null,null,null,null,null,null,null,null,null,null,null,"Marinewater",null,null,23,null,null,null,null,null,"7-7.2"]
[null,null,null,null,null,null,null,null,null,null,null,null,null,null,"Culex nigripalpus",null,null,"embryo",null,null,"45 days",null,null,null,null,null,"growth",null,null,null,null,null,null,null,null,null,null,null,"Martins rearing solution",null,null,23,null,null,null,null,null,"8 ± 0.2"]
[null,6,"Was each control and contaminant concentration at least duplicated?",5,null,1,{"$f":"IF(F26=0,0,INDEX($D26:$D27,F26,1))","v":5},"2 replicates",null,null,null,null,null,null,"Culex quinqefasciatus",null,null,"embryo",null,null,"48 hr",null,null,null,null,null,"growth inhibition",null,null,null,null,null,null,null,null,null,null,null,"Milli-Q water",null,null,23,null,null,null,null,null,"8.16-8.36"]
[null,null,null,0,null,null,null,null,null,null,null,null,null,null,"Culex quinqefasciatus HAmCq strain",null,null,"Embryo 1-2 hpf; 8-64 cell stage",null,null,"48 hrs",null,null,null,null,null,"growth: length",null,null,null,null,null,null,null,null,null,null,null,"minimal medium",null,null,23,null,null,null,null,null,"8.32-8.61"]
[null,null,null,null,null,null,null,null,null,null,null,null,null,null,"Culex quinqefasciatus S-Lab strain",null,null,"embryo to juvenile",null,null,"48hr",null,null,null,null,null,"hatchability",null,null,null,null,null,null,null,null,null,null,null,"moderate hard synthetic water",null,null,23,null,null,null,null,null,"8.32-8.61"]
[null,7,"Were test acceptability criteria stated (e.g. mortality in controls must not exceed a certain percentage) (5 marks)?\nOR Were test acceptability criteria inferred (e.g. test method used [USEPA, OECD, ASTM etc.]) (award 2 marks). \nNote: Data that fail the acceptability criteria are automatically deemed to be of unacceptable quality and must not be used. ",5,null,1,{"$f":"IF(F29=0,0,INDEX($D29:$D31,F29,1))","v":5},"Acceptable mortality in controls based on ASTM guidelines",null,null,null,null,null,null,"Culex quinqefasciatus VBFmCq strain",null,null,"embryop",null,null,"5 day",null,null,null,null,null,"hatching time",null,null,null,null,null,null,null,null,null,null,null,"moderately hard reconstituted water",null,null,24,null,null,null,null,null,"N.A."]
[null,null,null,2,null,null,null,null,null,null,null,null,null,null,"Culex quinquefasciatus MAmCq strain",null,null,"fry",null,null,"5 months",null,null,null,null,null,"Immobilisation",null,null,null,null,null,null,null,null,null,null,null,"Moderately hard water",null,null,25,null,null,null,null,null,"N/A"]
[null,null,null,0,null,null,null,null,null,null,null,null,null,null,"Cyprinus carpio",null,null,"glochidia",null,null,"6 days",null,null,null,null,null,"lymphocyte count",null,null,null,null,null,null,null,null,null,null,null,"moderately hard water",null,null,25,null,null,null,null,null,"N/A"]
[null,8,"Were the characteristics of the test organism (e.g. length, mass, age) stated?",5,null,1,{"$f":"IF(F32=0,0,INDEX($D32:$D34,F32,1))","v":5},"Stage 8 embryos",null,null,null,null,null,null,"Danio rerio",null,null,"glochidia",null,null,"60 day",null,null,null,null,null,"Mass",null,null,null,null,null,null,null,null,null,null,null,"moderately hard water",null,null,25,null,null,null,null,null,"not stated"]
[null,null,null,0,null,null,null,null,null,null,null,null,null,null,"Daphnia magna",null,null,"Glochidia",null,null,"7 day",null,null,null,null,null,"Mobility",null,null,null,null,null,null,null,null,null,null,null,"moderately hard water",null,null,26,null,null,null,null,null,"Not stated"]
[null,null,null,null,null,null,null,null,null,null,null,null,null,null,"Daphnia pulex",null,null,"juvenile",null,null,"7 day",null,null,null,null,null,"mobility: swim speed",null,null,null,null,null,null,null,null,null,null,null,"N.A.",null,null,26,null,null,null,null,null,"Not stated"]
[null,9,"Was the type of test media used stated?",5,null,1,{"$f":"IF(F35=0,0,INDEX($D35:$D37,F35,1))","v":5},"FETAX Solution",null,null,null,null,null,null,"Diaptomus castor",null,null,"juvenile",null,null,"7 day",null,null,null,null,null,"Mortality",null,null,null,null,null,null,null,null,null,null,null,"Not stated",null,null,27,null,null,null,null,null,"Not stated"]
[null,null,null,0,null,null,null,null,null,null,null,null,null,null,"Diphetor hageni",null,null,"juvenile",null,null,"7 days",null,null,null,null,null,"Mortality",null,null,null,null,null,null,null,null,null,null,null,"potato dextrose agar",null,null,28.5,null,null,null,null,null,"Not stated"]
[null,null,null,null,null,null,null,null,null,null,null,null,null,null,"Dreissena polymorpha",null,null,"juvenile",null,null,"7 days",null,null,null,null,null,"Mortality: disease susceptibility L. anguillarum",null,null,null,null,null,null,null,null,null,null,null,"reconstituted hard water",null,null,"2016-12-15",null,null,null,null,null,"Not stated"]
[null,null,"Was the type of exposure (e.g. static, flow through) stated? ",4,null,1,{"$f":"IF(F38=0,0,INDEX($D38:$D40,F38,1))","v":4},"Static renewal - daily renewal",null,null,null,null,null,null,"Elliptio complananta",null,null,"Juvenile",null,null,"7 dyas",null,null,null,null,null,"N.A.",null,null,null,null,null,null,null,null,null,null,null,"reconstituted hard water",null,null,"12 to 15",null,null,null,null,null,"PH11"]
[null,10,null,0,null,null,null,null,null,null,null,null,null,null,"Elliptio complanata",null,null,"Juvenile",null,null,"7-14 days",null,null,null,null,null,"number of broods",null,null,null,null,null,null,null,null,null,null,null,"reconstituted water",null,null,"12.5-15.5",null,null,null,null,null,"PH7.0"]
[null,null,null,null,null,null,null,null,null,null,null,null,null,null,"Elliptio complanata",null,null,"Juvenile",null,null,"72 hrs",null,null,null,null,null,"number of broods",null,null,null,null,null,null,null,null,null,null,null,"reoncstituted water",null,null,"12.6±0.03",null,null,null,null,null,"8.0-8.5"]
[null,null,"Were the contaminant concentrations measured at the beginning and end of the exposure (4 marks)? Award 2 marks if they were measured only once during the test.\nNote: If the concentrations were not measured then automatically the data cannot be high quality. ",4,null,1,{"$f":"IF(F41=0,0,INDEX($D41:$D43,F41,1))","v":4},"Stock solution concentrations measured",null,null,null,null,null,null,"Ephemeralla excrucians",null,null,"larvae",null,null,"7-8 days",null,null,null,null,null,"number of broods",null,null,null,null,null,null,null,null,null,null,null,"Seawater",null,null,"15°C",null,null,null,null,null,"6.7-6.9"]
[null,11,null,2,null,null,null,null,null,null,null,null,null,null,"Eucypris virens",null,null,"larvae",null,null,"8 days",null,null,null,null,null,"Nutrient assimilation",null,null,null,null,null,null,null,null,null,null,null,"standard reference water",null,null,"18-22",null,null,null,null,null,"7.8-8.0"]
[null,null,null,0,null,null,null,null,null,null,null,null,null,null,"Fallceon quilleri",null,null,"Larvae (96 hours post fertilisation)",null,null,"8 days",null,null,null,null,null,"phagocytic cell count",null,null,null,null,null,null,null,null,null,null,null,"system water",null,null,"19.6-23.1"]
[null,null,"Were parallel reference toxicant toxicity tests conducted?",4,null,1,{"$f":"IF(F44=0,0,INDEX($D44:$D46,F44,1))","v":4},"A positive control was run with tests",null,null,null,null,null,null,"Fusarium sporotrichioides",null,null,"Larval",null,null,"96 hour",null,null,null,null,null,"Reproduction",null,null,null,null,null,null,null,null,null,null,null,"tannic acid aqueous solution",null,null,"20 ± 1 "]
[null,12,null,0,null,null,null,null,null,null,null,null,null,null,"Galaxias auratus",null,null,"larval (7-d post hatch)",null,null,"96 hrs",null,null,null,null,null,"reproduction impairment",null,null,null,null,null,null,null,null,null,null,null,"Tap water",null,null,"20 ± 2"]
[null,null,null,null,null,null,null,null,null,null,null,null,null,null,"Galaxias maculatus",null,null,"lochidia",null,null,"96hr",null,null,null,null,null,"respiratory burst",null,null,null,null,null,null,null,null,null,null,null,"Tap water",null,null,"20.1-21.9"]
[null,null,"Was there a concentration–response relationship either observable or stated?",4,null,1,{"$f":"IF(F47=0,0,INDEX($D47:$D49,F47,1))","v":4},"Table 1",null,null,null,null,null,null,"Galaxias maculatus",null,null,"N.A.",null,null,"N.A.",null,null,null,null,null,"Secondary sexual characteristics",null,null,null,null,null,null,null,null,null,null,null,"Tap water",null,null,"20.1-21.9"]
[null,13,null,0,null,null,null,null,null,null,null,null,null,null,"Galaxias truttaceus ",null,null,"Neonate",null,null,"NOEL",null,null,null,null,null,"serum lysozyme activity",null,null,null,null,null,null,null,null,null,null,null,"tap water",null,null,"20.2 ± 0.1"]
[null,null,null,null,null,null,null,null,null,null,null,null,null,null,"Glyptotendipes paripes",null,null,"neonate",null,null,"Not stated (test went until 120 hours post fertilisation)",null,null,null,null,null,"sex ratio",null,null,null,null,null,null,null,null,null,null,null,"unfiltered river water",null,null,"20-22"]
[null,null,"Was an appropriate statistical method or model used to determine the toxicity?\nNote: They should be accepted by a recognised national or international regulatory body (e.g. USEPA, OECD, ASTM). ",4,null,1,{"$f":"IF(F50=0,0,INDEX($D50:$D52,F50,1))","v":4},"Yes",null,null,null,null,null,null,"Helicopsyche sp. ",null,null,"neonate fed",null,null,"30 days",null,null,null,null,null,"Survival",null,null,null,null,null,null,null,null,null,null,null,"River water",null,null,"21-24"]
[null,14,null,0,null,null,null,null,null,null,null,null,null,null,"Hexagenia sp.",null,null,"neonate unfed",null,null,null,null,null,null,null,null,"Swim ability",null,null,null,null,null,null,null,null,null,null,null,"Aged tap water",null,null,"22.0-22.4"]
[null,null,null,null,null,null,null,null,null,null,null,null,null,null,"Hyalella azteca",null,null,"Not stated",null,null,null,null,null,null,null,null,"time taken to release brood",null,null,null,null,null,null,null,null,null,null,null,"Aged tap water",null,null,"22-23"]
[null,15,"For LC/EC/BEC data was an estimate of variability provided? \nOR \nFor NO EC/LOEC data was the significance level 0.05 or less?  \n\n",4,null,1,{"$f":"IF(F53=0,0,INDEX($D53:$D55,F53,1))","v":4},"p < 0.05",null,null,null,null,null,null,"Hydropsyche sp. ",null,null,"Not stated",null,null,null,null,null,null,null,null,"time until brood release",null,null,null,null,null,null,null,null,null,null,null,"Moderately hard water",null,null,"22-24"]
[null,null,null,0,null,null,null,null,null,null,null,null,null,null,"Hyla cinerea",null,null,"Not stated",null,null,null,null,null,null,null,null,"viability",null,null,null,null,null,null,null,null,null,null,null,"N.A.",null,null,"23 ± 0.3"]
[null,null,null,null,null,null,null,null,null,null,null,null,null,null,"Hyla squirella",null,null,"Not stated",null,null,null,null,null,null,null,null,"viability",null,null,null,null,null,null,null,null,null,null,null,"FETAX Solution",null,null,"23.1 ± 0.3"]
[null,16,"Were the following parameters measured and stated? (3 marks if measured and stated, 1 mark if just measured).",null,null,null,null,null,null,null,null,null,null,null,"Ictalurus punctatus",null,null,"tadpole",null,null,null,null,null,null,null,null,"viability",null,null,null,null,null,null,null,null,null,null,null,"Not stated",null,null,"23.2 ± 0.4°C"]
[null,null,null,3,null,1,{"$f":"IF(F57=0,0,INDEX($D57:$D59,F57,1))","v":3},"7.8-8.0",null,null,null,null,null,null,"Isoperla quinquepunctata",null,null,"tadpole",null,null,null,null,null,null,null,null,"Viability: ability to attach to host",null,null,null,null,null,null,null,null,null,null,null,null,null,null,"23-25"]
[null,16.100000000000001,"pH",1,null,null,null,null,null,null,null,null,null,null,"Lampsilis fasciola",null,null,"Fingerlings",null,null,null,null,null,null,null,null,"Viability: ability to attach to host",null,null,null,null,null,null,null,null,null,null,null,null,null,null,"24-26"]
[null,null,null,0,null,null,null,null,null,null,null,null,null,null,"Lampsilis siliquoidea",null,null,null,null,null,null,null,null,null,null,null,null,null,null,null,null,null,null,null,null,null,null,null,null,null,null,"24-26"]
[null,null,null,3,null,3,{"$f":"IF(F60=0,0,INDEX($D60:$D62,F60,1))","v":0},"Not stated",null,null,null,null,null,null,"Lampsilis siliquoidea",null,null,null,null,null,null,null,null,null,null,null,null,null,null,null,null,null,null,null,null,null,null,null,null,null,null,"25 ± 1"]
[null,16.2,"Dissolved Oxygen",1,null,null,null,null,null,null,null,null,null,null,"Mucor hiemalis",null,null,null,null,null,null,null,null,null,null,null,null,null,null,null,null,null,null,null,null,null,null,null,null,null,null,"25.8–28.2"]
[null,null,null,0,null,null,null,null,null,null,null,null,null,null,"N.A.",null,null,null,null,null,null,null,null,null,null,null,null,null,null,null,null,null,null,null,null,null,null,null,null,null,null,"25±1"]
[null,null,"Was the temperature measured and stated (3 marks)? Award 1 mark if the temperature was measured but not stated or if only the temperature settings of the room or chamber are stated.",3,null,1,{"$f":"IF(F63=0,0,INDEX(D63:D65,F63,1))","v":3},"23.5-24.5oC",null,null,null,null,null,null,"Nectopsyche sp.",null,null,null,null,null,null,null,null,null,null,null,null,null,null,null,null,null,null,null,null,null,null,null,null,null,null,"25°C"]
[null,17,null,1,null,null,null,null,null,null,null,null,null,null,"Neoniphargus sp.",null,null,null,null,null,null,null,null,null,null,null,null,null,null,null,null,null,null,null,null,null,null,null,null,null,null,"26 ± 2"]
[null,null,null,0,null,null,null,null,null,null,null,null,null,null,"Oncorhynchus mykiss",null,null,null,null,null,null,null,null,null,null,null,null,null,null,null,null,null,null,null,null,null,null,null,null,null,null,"28 + 3"]
[null,null,"Were test solutions, blanks and/or controls tested for contamination OR were analytical reagent grade chemicals used or the highest possible purity chemicals used for the experiment? (3 marks).",3,null,1,{"$f":"IF(F66=0,0,INDEX($D66:$D67,F66,1))","v":3},"Analytically impure sulfometuron methyl (85%) CAS RN # 74222-97-2",null,null,null,null,null,null,"Oryzias latipes",null,null,null,null,null,null,null,null,null,null,null,null,null,null,null,null,null,null,null,null,null,null,null,null,null,null,"28 ± 1"]
[null,18,null,0,null,null,null,null,null,null,null,null,null,null,"Osteopilus septentrionalis",null,null,null,null,null,null,null,null,null,null,null,null,null,null,null,null,null,null,null,null,null,null,null,null,null,null,"28-30"]
[null,null,null,null,null,null,null,null,null,null,null,null,null,null,"Pacifastacus leniusculus",null,null,null,null,null,null,null,null,null,null,null,null,null,null,null,null,null,null,null,null,null,null,null,null,null,null,"N.A."]
[null,null,null,null,null,null,null,null,{"$f":"(COUNTIF(F12:F67,\"=0\"))+COUNTIF(F2:F10,\"=0\")+COUNTIF(D2:D7,\"=0\")","v":0},null,null,null,null,null,"Palaemonetes pugio",null,null,null,null,null,null,null,null,null,null,null,null,null,null,null,null,null,null,null,null,null,null,null,null,null,null,"N/A"]
[null,null,null,null,null,null,null,null,null,null,null,null,null,null,"Parutya austruliensis",null,null,null,null,null,null,null,null,null,null,null,null,null,null,null,null,null,null,null,null,null,null,null,null,null,null,"Not stated"]
[null,null,null,null,null,null,null,null,null,null,null,null,null,null,"Philodina acuticornis odiosa",null,null,null,null,null,null,null,null,null,null,null,null,null,null,null,null,null,null,null,null,null,null,null,null,null,null,"22-26oC"]
[null,null,"Total score",null,null,null,{"$f":"IF(SUM(G12:G66)=0,\"\",SUM(G12:G66))","v":88},null,null,null,null,null,null,null,"Pimephales promelas",null,null,null,null,null,null,null,null,null,null,null,null,null,null,null,null,null,null,null,null,null,null,null,null,null,null,"28-29oC"]
[null,null,"Total Max. possible score for the various types of data and contaminants ",null,{"$f":"D12+D15+D18+D21+D23+D26+D29+D32+D35+D38+D41+D44+D47+D50+D53+D57+D60+D63+D66","v":91},null,null,null,null,null,null,null,null,null,"Polypedilum nubiferum",null,null,null,null,null,null,null,null,null,null,null,null,null,null,null,null,null,null,null,null,null,null,null,null,null,null,"22.5-23.5oC"]
[null,null,"Quality Score",null,{"$f":"\"= [Total score / Total possible score] * 100 = \"","v":"= [Total score / Total possible score] * 100 = "},null,{"$f":"IF(ISERROR(G72/E73),#N/A,G72/E73)","v":0.96703296703296704},{"$f":"IF(F41=3,\"The highest possible grade for this datum is acceptable.\",\"\")","v":""},null,null,null,null,null,null,"Procambarus clarkii",null,null,null,null,null,null,null,null,null,null,null,null,null,null,null,null,null,null,null,null,null,null,null,null,null,null,"20-22oC"]
[null,null,null,null,null,null,null,null,null,null,null,null,null,null,"Procambarus zonangulus",null,null,null,null,null,null,null,null,null,null,null,null,null,null,null,null,null,null,null,null,null,null,null,null,null,null,"24-26oC"]
[null,null,"H = high quality                           Quality score ≥ 80%      ",null,null,null,null,null,null,null,null,null,null,null,"Pseudaphritis urvillir",null,null,null,null,null,null,null,null,null,null,null,null,null,null,null,null,null,null,null,null,null,null,null,null,null,null,"21-27oC"]
[null,null,"A = acceptable quality         > 50% Quality score < 80%        ",null,null,null,null,null,null,null,null,null,null,null,"Pythium spp",null,null,null,null,null,null,null,null,null,null,null,null,null,null,null,null,null,null,null,null,null,null,null,null,null,null,"19-21oC"]
[null,null,"U = unacceptable quality              Quality score ≤ 50%  ",null,null,null,null,null,null,null,null,null,null,null,"Rana sphenocephala"]
[null,null,null,null,null,null,null,null,null,null,null,null,null,null,"Salmo gairdneri"]
[3,null,"Click the 'Save & Update' button to save and export the answers to the 'All results' worksheet. ",null,null,null,null,null,null,null,null,null,null,null,"Selenastrum capricornutum"]
[null,null,"Select the 'Reset Answers' button if you wish to clear all answers.",null,null,null,null,null,null,null,null,null,null,null,"Serratella micheneri"]
[null,null,null,null,null,null,null,null,null,null,null,null,null,null,"Simocephalus elizabethae"]
[null,null,null,null,null,null,null,null,null,null,null,null,null,null,"Simulium vittatum"]
[null,null,null,null,null,null,null,null,null,null,null,null,null,null,"Simulium vittatum IS-7"]
[null,null,null,null,null,null,null,null,null,null,null,null,null,null,"Spea multiplicata"]
[null,null,null,null,null,null,null,null,null,null,null,null,null,null,"Taenionema sp."]
[null,null,null,null,null,null,null,null,null,null,null,null,null,null,"Trichoderma hamatum"]
[null,null,null,null,null,null,null,null,null,null,null,null,null,null,"Tricorythodes sp. "]
[null,null,null,null,null,null,null,null,null,null,null,null,null,null,"Unio elongatulus"]
[null,null,null,null,null,null,null,null,null,null,null,null,null,null,"Urotricha furcata"]
[null,null,null,null,null,null,null,null,null,null,null,null,null,null,"Villosa constricta"]
[null,null,null,null,null,null,null,null,null,null,null,null,null,null,"Villosa delumbis"]
[null,null,null,null,null,null,null,null,null,null,null,null,null,null,"Xenopus laevis"]
[null,null,null,null,null,null,null,null,null,null,null,null,null,null,"Achnanthidium minutissimum"]
[null,null,null,null,null,null,null,null,null,null,null,null,null,null,"Cymbella sp. "]
[null,null,null,null,null,null,null,null,null,null,null,null,null,null,"Rncyonema gracilis"]
[null,null,null,null,null,null,null,null,null,null,null,null,null,null,"Eunotia cf. incisa"]
[null,null,null,null,null,null,null,null,null,null,null,null,null,null,"Gomphonema spp. "]
[null,null,null,null,null,null,null,null,null,null,null,null,null,null,"Gomphonema gracile"]
[null,null,null,null,null,null,null,null,null,null,null,null,null,null,"Navicula cryptotenella"]
[null,null,null,null,null,null,null,null,null,null,null,null,null,null,"Ulnaria ulna"]
[null,null,null,null,null,null,null,null,null,null,null,null,null,null,"Oreochromis mossambicus"]
[null,null,null,null,null,null,null,null,null,null,null,null,null,null,"Xenopus laevis"]
[null,null,null,null,null,null,null,null,null,null,null,null,null,null,"Lepomis macrochirus"]
[null,null,null,null,null,null,null,null,null,null,null,null,null,null,"Alonella sp"]
[null,null,null,null,null,null,null,null,null,null,null,null,null,null,"Alonella sp"]
[null,null,null,null,null,null,null,null,null,null,null,null,null,null,"Cypria sp. "]
[null,null,null,null,null,null,null,null,null,null,null,null,null,null,"Diaptomus sp. "]
[null,null,null,null,null,null,null,null,null,null,null,null,null,null,"Eucyclops sp."]
[null,null,null,null,null,null,null,null,null,null,null,null,null,null,"Lepomis macrochirus"]
[null,null,null,null,null,null,null,null,null,null,null,null,null,null,"Lepomis macrochirus"]

{"sheet":"FW nonmetal nonplant_WS","index":6,"n_rows":87,"n_cols":24,"rows_kept":87,"cut":false,"hidden":false,"merged":[]}
[]
["Question No.",1,2,3,4,5,6,7,8,9,10,11,12,13,14,15,16.100000000000001,16.600000000000001,17,18,"Total Score","Quality Score",null,"Comment "]
["Short Questions","Duration of the exposure ","Biological endpoint","Biological effect stated or not","Biological effect quantified or not","Appropriate controls","Control & contaminant concentration","Test acceptability criteria","Characteristics of the test organism"," Type of test media","Type of exposure","Contaminant concentrations","Parallel reference toxicant toxicity tests","Concentration–response relationship","Determine the toxicity","NOEC/LOEC or LC/EC/BEC","pH","Dissolved oxygen","Temperature","Grade or purity"]
["Category","Freshwater/non-metal/non- plant","Paper and data unique identifier(eg. 1-1,10-150)","692-1"]
["Scores",10,5,5,5,5,5,0,0,5,4,0,0,4,4,4,3,0,3,3,65,0.7142857142857143,null,"The highest possible grade for this datum is acceptable."]
["Answers","2 days - 48 hours","Survival","LC50","LC50","Aged tap water controls ","Triplicate","Not stated","Not stated (Lake collected organisms)","Aged tap water","Static","Not stated","Not stated","Table 1","Probit analysis program","p < 0.05","8-8.5","Not stated","6.6-7.5","Oust - 93% AI"]
["Category","Freshwater/non-metal/non- plant","Paper and data unique identifier(eg. 1-1,10-150)","692-2"]
["Scores",10,5,5,5,5,5,0,0,5,4,0,0,4,4,4,3,0,3,3,65,0.7142857142857143,null,"The highest possible grade for this datum is acceptable."]
["Answers","2 days - 48 hours","Survival","LC50","LC50","Aged tap water controls ","Triplicate","Not stated","Not stated (Lake collected organisms)","Aged tap water","Static","Not stated","Not stated","Table 1","Probit analysis program","p < 0.05","8-8.5","Not stated","6.6-7.5","Oust - 93% AI"]
["Category","Freshwater/non-metal/non- plant","Paper and data unique identifier(eg. 1-1,10-150)","692-3"]
["Scores",10,5,5,5,5,5,0,0,5,4,0,0,4,4,4,3,0,3,3,65,0.7142857142857143,null,"The highest possible grade for this datum is acceptable."]
["Answers","2 days - 48 hours","Survival","LC50","LC50","Aged tap water controls ","Triplicate","Not stated","Not stated (Lake collected organisms)","Aged tap water","Static","Not stated","Not stated","Table 1","Probit analysis program","p < 0.05","8-8.5","Not stated","6.6-7.5","Oust - 93% AI"]
["Category","Freshwater/non-metal/non- plant","Paper and data unique identifier(eg. 1-1,10-150)","692-4"]
["Scores",10,5,5,5,5,5,0,0,5,4,0,0,4,4,4,3,0,3,3,65,0.7142857142857143,null,"The highest possible grade for this datum is acceptable."]
["Answers","2 days - 48 hours","Survival","LC50","LC50","Aged tap water controls ","Triplicate","Not stated","Not stated (Lake collected organisms)","Aged tap water","Static","Not stated","Not stated","Table 1","Probit analysis program","p < 0.05","8-8.5","Not stated","6.6-7.5","Oust - 93% AI"]
["Category","Freshwater/non-metal/non- plant","Paper and data unique identifier(eg. 1-1,10-150)","693-1"]
["Scores",10,5,5,5,5,5,2,5,5,4,2,0,0,4,4,0,0,3,3,67,0.73626373626373631,null,""]
["Answers","2 days - 48 hours","Survival","LC50","LC50","Moderately hard water controls","Four replicates","USEPA test methodology","Neonates < 24 hours old","Moderately hard water","Static","Highest test concentrations measured","Not stated","Not stated.","Epistat statistical package","p < 0.05","Not stated","Not stated","24-26oC","Oust XP - 75% AI"]
["Category","Freshwater/non-metal/non- plant","Paper and data unique identifier(eg. 1-1,10-150)","693-2"]
["Scores",10,5,5,5,5,5,2,5,5,4,2,0,0,4,4,0,0,3,3,67,0.73626373626373631,null,""]
["Answers","2 days - 48 hours","Survival","LC50","LC50","Moderately hard water controls","Triplicate","USEPA test methodology","Fry 2-10 days old","Moderately hard water","Static","Highest test concentrations measured","Not stated","Not stated.","Epistat statistical package","p < 0.05","Not stated","Not stated","24-26oC","Oust XP - 75% AI"]
["Category","Freshwater/non-metal/non- plant","Paper and data unique identifier(eg. 1-1,10-150)","761-1"]
["Scores",10,5,5,5,5,5,0,5,5,0,0,0,0,4,4,1,3,1,3,61,0.67032967032967028,null,"The highest possible grade for this datum is acceptable."]
["Answers","4 days","Survival","LC50","LC50","Yes","10 crayfish per container with at least 100 crayfish per concentration","Not stated","Juveniles 3-3.4 cm and 1.1-1.5 g","Aged tap water","Not stated","Not stated","Not stated","Not stated.","Probit analysis program","p < 0.05","6.7-6.9","Not stated","21-27oC%","Oust XP - 75% AI"]
["Category","Freshwater/non-metal/non- plant","Paper and data unique identifier(eg. 1-1,10-150)","762-1"]
["Scores",10,10,5,5,5,5,0,5,0,4,2,0,0,4,4,0,3,0,3,65,0.7142857142857143,null,""]
["Answers","4 days","Survival","NOEC","NOEC","0 concentration given, and a control and DMF - dimethyl formamide","10 per dose group","Not stated","3.4 cm mean length, 0.99 g mean weight","Not stated","Static","Measured concentrations provided","Not stated","Not stated.","Yes","p < 0.05","Not stated","Not stated","Not stated","Technical "]
["Category","Freshwater/non-metal/non- plant","Paper and data unique identifier(eg. 1-1,10-150)","763-1"]
["Scores",10,10,5,5,5,5,0,5,0,4,0,0,0,4,4,0,3,0,3,63,0.69230769230769229,null,"The highest possible grade for this datum is acceptable."]
["Answers","4 days","Survival","NOEC","NOEC","0 concentration given, and a control and DMF - dimethyl formamide","10 per dose group","Not stated","4.3 cm mean length, 1.27 g mean weight","Not stated","Static","Not stated","Not stated","Not stated.","Yes","p < 0.05","Not stated","Not stated","Not stated","Technical "]
["Category","Freshwater/non-metal/non- plant","Paper and data unique identifier(eg. 1-1,10-150)","763-2"]
["Scores",10,10,5,5,5,5,0,5,0,4,0,0,0,4,4,0,3,0,3,63,0.69230769230769229,null,"The highest possible grade for this datum is acceptable."]
["Answers","2 days","Survival","NOEC","NOEC","0 concentration given, and a control and DMF - dimethyl formamide","2 replicates per concentration - 10 daphnids per replicate","Not stated","< 24 hours old","Not stated","Static","Not stated","Not stated","Not stated.","Yes","p < 0.05","Not stated","Not stated","Not stated","Technical "]
["Category","Freshwater/non-metal/non- plant","Paper and data unique identifier(eg. 1-1,10-150)","691-1"]
["Scores",10,10,5,5,5,5,5,5,5,4,2,4,4,4,4,3,3,3,3,89,0.97802197802197799,null,""]
["Answers","4 days - 96 hours","Survival","NOEC","NOEC","FETAX solution and DMSO","2 replicates","Acceptable  mortality in controls based on ASTM guidelines","Stage 8 embryos","FETAX solution","Static renewal - daily renewal","Stock solution concentrations measured","A positive control was run with the tests","Table 1","Yes","p < 0.05","7.8-8.0","Not stated","23.5-24.5","Analytically impure sulfometuron methyl (85%) CAS number 74222-97-2"]
["Category","Freshwater/non-metal/non- plant","Paper and data unique identifier(eg. 1-1,10-150)","691-2"]
["Scores",10,10,5,5,5,5,5,5,5,4,2,4,4,4,4,3,3,3,3,89,0.97802197802197799,null,""]
["Answers","4 days - 96 hours","Survival","NOEC","NOEC","FETAX solution and DMSO","2 replicates","Acceptable  mortality in controls based on ASTM guidelines","Stage 8 embryos","FETAX solution","Static renewal - daily renewal","Stock solution concentrations measured","A positive control was run with the tests","Table 1","Yes","p < 0.05","7.8-8.0","Not stated","23.5-24.5","Analytically impure sulfometuron methyl (85%) CAS number 74222-97-2"]
["Category","Freshwater/non-metal/non- plant","Paper and data unique identifier(eg. 1-1,10-150)","691-3"]
["Scores",10,10,5,5,5,5,5,5,5,4,2,4,4,4,4,3,3,3,3,89,0.97802197802197799,null,""]
["Answers","4 days - 96 hours","Survival","LC50","LC50","FETAX solution and DMSO","2 replicates","Acceptable  mortality in controls based on ASTM guidelines","Stage 8 embryos","FETAX solution","Static renewal - daily renewal","Stock solution concentrations measured","A positive control was run with the tests","Table 1","Yes","p < 0.05","7.8-8.0","Not stated","23.5-24.5","Analytically impure sulfometuron methyl (85%) CAS number 74222-97-2"]
["Category","Freshwater/non-metal/non- plant","Paper and data unique identifier(eg. 1-1,10-150)","691-4"]
["Scores",10,10,5,5,5,5,5,5,5,4,2,4,4,4,4,3,3,3,3,89,0.97802197802197799,null,""]
["Answers","4 days - 96 hours","Survival","LOEC","LOEC","FETAX solution and DMSO","2 replicates","Acceptable  mortality in controls based on ASTM guidelines","Stage 8 embryos","FETAX solution","Static renewal - daily renewal","Stock solution concentrations measured","A positive control was run with the tests","Table 1","Yes","p < 0.05","7.8-8.0","Not stated","23.5-24.5","Analytically impure sulfometuron methyl (85%) CAS number 74222-97-2"]
["Category","Freshwater/non-metal/non- plant","Paper and data unique identifier(eg. 1-1,10-150)","691-5"]
["Scores",10,10,5,5,5,5,5,5,5,4,2,4,4,4,4,3,3,3,3,89,0.97802197802197799,null,""]
["Answers","30 days","Abnormal limb development","NOEC","NOEC","FETAX solution and DMSO","2 replicates","Acceptable  mortality in controls based on ASTM guidelines","Stage 8 embryos","FETAX solution","Static renewal - renewed every 96 hours","Stock solution concentrations measured","A positive control was run with the tests","Table 3","Yes","p < 0.05","7.8-8.0","Not stated","23.5-24.5","Analytically impure sulfometuron methyl (85%) CAS number 74222-97-2"]
["Category","Freshwater/non-metal/non- plant","Paper and data unique identifier(eg. 1-1,10-150)","691-6"]
["Scores",10,10,5,5,5,5,5,5,5,4,2,4,4,4,4,3,3,3,3,89,0.97802197802197799,null,""]
["Answers","30 days","Abnormal limb development","LOEC","LOEC","FETAX solution and DMSO","2 replicates","Acceptable  mortality in controls based on ASTM guidelines","Stage 8 embryos","FETAX solution","Static renewal - renewed every 96 hours","Stock solution concentrations measured","A positive control was run with the tests","Table 3","Yes","p < 0.05","7.8-8.0","Not stated","23.5-24.5","Analytically impure sulfometuron methyl (85%) CAS number 74222-97-2"]
["Category","Freshwater/non-metal/non- plant","Paper and data unique identifier(eg. 1-1,10-150)","3609-1"]
["Scores",10,5,5,5,5,0,2,5,5,4,2,0,0,4,4,1,1,1,3,62,0.68131868131868134,null,""]
["Answers","4 days - 96 hours","Mortality","LC50","LC50","One dilution water control","At least 2 replicates","USEPA OPPTS 850.1075","Juveniles","Clean surface or ground water and reconstituted water are acceptable","Static renewal","Should be measured at least once","Not stated","Not stated","Yes","p < 0.05","Measured daily","Measured daily","Measured daily","99.6% AI"]
["Category","Freshwater/non-metal/non- plant","Paper and data unique identifier(eg. 1-1,10-150)","3609-2"]
["Scores",10,5,5,5,5,0,2,5,5,4,2,0,0,4,4,1,1,1,3,62,0.68131868131868134,null,""]
["Answers","4 days - 96 hours","Mortality","NOEC","NOEC","One dilution water control","At least 2 replicates","USEPA OPPTS 850.1075","Juveniles","Clean surface or ground water and reconstituted water are acceptable","Static renewal","Should be measured at least once","Not stated","Not stated","Yes","p < 0.05","Measured daily","Measured daily","Measured daily","99.6% AI"]
["Category","Freshwater/non-metal/non- plant","Paper and data unique identifier(eg. 1-1,10-150)","3601-1"]
["Scores",10,5,5,5,5,0,2,5,5,4,2,0,0,4,4,1,1,1,3,62,0.68131868131868134,null,""]
["Answers","4 days - 96 hours","Mortality","LC50","LC50","One dilution water control","At least 2 replicates","USEPA - OPPTS 850.1075","Juveniles","Clean surface or ground water and reconstituted water are acceptable","Static renewal","Should be measured at least once","Not stated","Not stated","Yes","p < 0.05","Measured daily","Measured daily","Measured daily","92% AI"]
["Category","Freshwater/non-metal/non- plant","Paper and data unique identifier(eg. 1-1,10-150)","3604-1"]
["Scores",10,5,5,5,5,0,2,5,5,4,2,0,0,4,4,1,1,1,3,62,0.68131868131868134,null,""]
["Answers","4 days - 96 hours","Mortality","LC50","LC50","One dilution water control","At least 2 replicates","USEPA - OPPTS 850.1075","Juveniles","Clean surface or ground water and reconstituted water are acceptable","Static renewal","Should be measured at least once","Not stated","Not stated","Yes","p < 0.05","Measured daily","Measured daily","Measured daily","92% AI"]
["Category","Freshwater/non-metal/non- plant","Paper and data unique identifier(eg. 1-1,10-150)","3610-1"]
["Scores",10,5,5,5,5,0,2,5,5,4,2,0,0,4,4,1,1,1,3,62,0.68131868131868134,null,""]
["Answers","4 days - 96 hours","Mortality","NOEC","NOEC","One dilution water control","At least 2 replicates","USEPA - OPPTS 850.1075","Juveniles","Clean surface or ground water and reconstituted water are acceptable","Static renewal","Should be measured at least once","Not stated","Not stated","Yes","p < 0.05","Measured daily","Measured daily","Measured daily","92% AI"]
["Category","Freshwater/non-metal/non- plant","Paper and data unique identifier(eg. 1-1,10-150)","3610-2"]
["Scores",10,5,5,5,5,0,2,5,5,4,2,0,0,4,4,1,1,1,3,62,0.68131868131868134,null,""]
["Answers","4 days - 96 hours","Mortality","LC50","LC50","One dilution water control","At least 2 replicates","USEPA - OPPTS 850.1075","Juveniles","Clean surface or ground water and reconstituted water are acceptable","Static renewal","Should be measured at least once","Not stated","Not stated","Yes","p < 0.05","Measured daily","Measured daily","Measured daily","92% AI"]
["Category","Freshwater/non-metal/non- plant","Paper and data unique identifier(eg. 1-1,10-150)","3600-1"]
["Scores",10,5,5,5,5,0,2,5,5,4,2,0,0,4,4,1,1,1,3,62,0.68131868131868134,null,""]
["Answers","48 hours ","Immobilisation","EC50","EC50","One dilution water control","At least 20 daphnids per concentration","USEPA - OPPTS 850.1010","Neonates < 24 hours","Clean surface or ground water and reconstituted water are acceptable","Static renewal","Should be measured at least once","Not stated","Not stated","Yes","p < 0.05","Measured daily","Measured daily","Measured daily","92% AI"]
["Category","Freshwater/non-metal/non- plant","Paper and data unique identifier(eg. 1-1,10-150)","3608-1"]
["Scores",10,5,5,5,5,0,2,5,5,4,2,0,0,4,4,1,1,1,3,62,0.68131868131868134,null,""]
["Answers","48 hours ","Immobilisation","EC50","EC50","One dilution water control","At least 20 daphnids per concentration","USEPA - OPPTS 850.1010","Neonates < 24 hours","Clean surface or ground water and reconstituted water are acceptable","Static renewal","Should be measured at least once","Not stated","Not stated","Yes","p < 0.05","Measured daily","Measured daily","Measured daily","92% AI"]
["Category","Freshwater/non-metal/non- plant","Paper and data unique identifier(eg. 1-1,10-150)","3611-1"]
["Scores",10,5,5,5,5,0,2,5,5,4,2,0,0,4,4,1,1,1,3,62,0.68131868131868134,null,""]
["Answers","21 days","Reproduction - % eggs hatched","NOEC","NOEC","One dilution water control","At least two replicates","USEPA - OPPTS 850.1400","Neonates < 24 hours","Water - Table 3 acceptable chemical characteristics","Static renewal or flow through","Should be measured at least once","Not stated","Not stated","Yes","p < 0.05","Measured daily","Measured daily","Measured daily","99.1% AI"]
["Category","Freshwater/non-metal/non- plant","Paper and data unique identifier(eg. 1-1,10-150)","3611-2"]
["Scores",10,5,5,5,5,0,2,5,5,4,2,0,0,4,4,1,1,1,3,62,0.68131868131868134,null,""]
["Answers","21 days","Reproduction - % eggs hatched","LOEC","LOEC","One dilution water control","At least two replicates","USEPA - OPPTS 850.1400","Neonates < 24 hours","Water - Table 3 acceptable chemical characteristics","Static renewal or flow through","Should be measured at least once","Not stated","Not stated","Yes","p < 0.05","Measured daily","Measured daily","Measured daily","99.1% AI"]
["Category","Freshwater/non-metal/non- plant","Paper and data unique identifier(eg. 1-1,10-150)","691-7"]
["Scores",10,5,5,5,5,5,5,5,5,4,2,4,4,4,4,3,0,3,3,81,0.89010989010989006,null,""]
["Answers","96 hours ","Malformation","EC50","EC50","FETAX Solution","2 replicates","Acceptable mortality in controls based on ASTM guidelines","Stage 8 embryos","FETAX Solution","Static renewal - daily renewal","Stock solution concentrations measured","A positive control was run with tests","Table 1","Yes","p < 0.05","7.8-8.0","Not stated","23.5-24.5oC","Analytically impure sulfometuron methyl (85%) CAS RN # 74222-97-2"]
["Category","Freshwater/non-metal/non- plant","Paper and data unique identifier(eg. 1-1,10-150)","691-7"]
["Scores",10,10,5,5,5,5,5,5,5,4,4,4,4,4,4,3,0,3,3,88,0.96703296703296704,null,""]
["Answers","96 hours ","Malformation","EC50","EC50","FETAX Solution","2 replicates","Acceptable mortality in controls based on ASTM guidelines","Stage 8 embryos","FETAX Solution","Static renewal - daily renewal","Stock solution concentrations measured","A positive control was run with tests","Table 1","Yes","p < 0.05","7.8-8.0","Not stated","23.5-24.5oC","Analytically impure sulfometuron methyl (85%) CAS RN # 74222-97-2"]

{"sheet":"FW nonmetal plant","index":7,"n_rows":79,"n_cols":53,"rows_kept":79,"cut":false,"hidden":false,"merged":[[3,4,7,4],[9,2,9,4],[11,2,13,2],[11,7,13,7],[14,2,16,2],[14,7,16,7],[17,2,19,2],[17,7,19,7],[20,2,21,2],[20,7,21,7],[22,2,24,2],[22,7,24,7],[25,2,27,2],[25,7,27,7],[28,2,30,2],[28,7,30,7],[31,2,33,2],[31,7,33,7],[34,2,36,2],[34,7,36,7],[37,2,39,2],[37,7,39,7],[40,2,42,2],[40,7,42,7],[43,2,45,2],[43,7,45,7],[46,2,48,2],[46,7,48,7],[49,2,51,2],[49,7,51,7],[60,2,62,2],[60,7,62,7],[63,2,66,2],[63,7,66,7],[52,2,54,2],[52,7,54,7],[56,2,59,2],[56,7,59,7]]}
[null,1,"Fill in the blank cells below, based on information provided in the paper being assessed. You can either pick an option from the dropdown list or add the appropriate detail using the 'Add to list' button. ",null,null,null,null,null,null,null,null,null,null,null,"* All the text in RED are used for drop down list ,make changes with caution."]
[null,null,"Category",{"$f":"IF(AF3=\"\",0,1)","v":1},"Freshwater/non-metal/plant",{"$f":"IF(E3=\"\",0,1)","v":1},"Citation No.",{"$f":"IF(ISERROR(FIND(\"-\",E3)),E3,LEFT(E3,FIND(\"-\",E3)-1))","v":"3607"},null,"Taxonomic group",null,null,null,null,"Species",null,null,"Lifestage",null,null,"Exposure duration",null,null,"Measure of toxicity",null,null,"Toxicity endpoint",null,null,"Taxonomic group",null,null,"Phylum",null,null,"Class",null,null,"Media",null,null,"Temperature ",null,null,"Acute Or Chronic",null,null,"PH",null,null,"Salinity/Conductivity"]
[null,null,"Paper and data unique identifier(eg. 1-1,10-150)",{"$f":"IF(AI3=\"\",0,1)","v":1},"3607-2",{"$f":"IF(E4=\"\",0,1)","v":1},"Species (Scientific name)",null,null,"Phylum",null,null,null,null,"Aedes albopictus",28,{"$f":"IF(P3=0,\"\",INDEX(O3:O100,P3))","v":"Lemna gibba"},"1 month",6,{"$f":"IF(S3=0,\"\",INDEX(R3:R100,S3))","v":"N.A."},"11 hours",13,{"$f":"IF(V3=0,\"\",INDEX(U3:U100,V3))","v":"14 days"},"EC1",8,{"$f":"IF(Y3=0,\"\",INDEX(X3:X100,Y3))","v":"NOEC"},"cartenoid conc. ",15,{"$f":"IF(AB3=0,\"\",INDEX(AA3:AA100,AB3))","v":"Growth"},"Cyano",3,{"$f":"IF(AE3=0,\"\",INDEX(AD3:AD100,AE3))","v":"Macrophyte"},"Chlorophyta",4,{"$f":"IF(AH3=0,\"\",INDEX(AG3:AG100,AH3))","v":"Tracheophyta"},"Branchiopoda",4,{"$f":"IF(AK3=0,\"\",INDEX(AJ3:AJ102,AK3))","v":"Liliopsida"},"AAP",8,{"$f":"IF(AN3=0,\"\",INDEX(AM3:AM100,AN3))","v":"N.A."},20,13,{"$f":"IF(AQ3=0,\"\",INDEX(AP3:AP100,AQ3))","v":"N.A."},"Acute ",2,{"$f":"IF(AT3=0,\"\",INDEX(AS3:AS100,AT3))","v":"Chronic"},5.5,9,{"$f":"IF(AW3=0,\"\",INDEX(AV3:AV100,AW3))","v":"N.A."},"30 ppt",null,"N.A."]
[null,null,"Citation",{"$f":"IF(AL3=\"\",0,1)","v":1},"USDA Integrated Pest Management (IPM) Database. Accessed November 2019",{"$f":"IF(AX3=\"\",0,1)","v":1},"Lifestage",null,null,"Class",null,null,null,null,"Anabaena flos-aquae",null,null,"1 year old",null,null,"13 days ",null,null,"EC20",null,null,"Chlorophyll a conc. ",null,null,"Fish",null,null,"Cyanobacteria",null,null,"Chlorophyceae",null,null,"algaltoxkit",null,null,21,null,null,"Chronic",null,null,6.7,null,null,"150 uS/cm"]
[null,null,null,{"$f":"IF(AO3=\"\",0,1)","v":1},null,{"$f":"IF(H8=\"\",0,1)","v":1},"Exposure duration",null,null,"Media",null,null,null,null,"Australian Bass",null,null,"Exponential growth phase",null,null,"24 hr",null,null,"EC50",null,null,"Chlorophyll b conc. ",null,null,"Macrophyte",null,null,"N.A.",null,null,"Chlorophyceae",null,null,"Freshwater",null,null,22,null,null,"Chronic",null,null,6.9,null,null,"N.A."]
[null,null,null,{"$f":"IF(AR3=\"\",0,1)","v":1},null,{"$f":"IF(Q3=\"\",0,1)","v":1},"Measure of toxicity",null,null,"Temperature ",null,null,null,null,"Chlorella pyrenoidosa",null,null,"Exponential growth phase",null,null,"3 days",null,null,"EC80",null,null,"Growth inhibition",null,null,"Microalga",null,null,"Tracheophyta",null,null,"Liliopsida",null,null,"HB4",null,null,28,null,null,"N.A.",null,null,7.5]
[null,null,null,{"$f":"IF(AU3=\"\",0,1)","v":1},null,{"$f":"IF(T3=\"\",0,1)","v":1},"Toxicity endpoint",null,null,"Acute Or Chronic ",null,null,null,null,"Chlorella pyrenoidosa",null,null,"logarithmic growth phase",null,null,"6 days",null,null,"LC50",null,null,"Growth Inhibition: Algal Biomass (cell counts)",null,null,"N.A.",null,null,"Tracheophyta",null,null,"N.A.",null,null,"HGZ media",null,null,"15°C",null,null,null,null,null,7.7]
[null,null,null,null,null,{"$f":"IF(W3=\"\",0,1)","v":1},"Toxicity value","0.207 ug/L",null,"PH",null,null,null,null,"Chlorella vulgaris",null,null,"N.A.",null,null,"7 days",null,null,"LOEC",null,null,"Growth inhibition: AUC",null,null,"plantae",null,null,"Bacillariophyta",null,null,"Trebouxiophyceae",null,null,"Marinewater",null,null,"18-22",null,null,null,null,null,7.8]
[null,2,"Select the appropriate answer option to each question. Comments can be added to the cells in column H.",null,null,{"$f":"IF(Z3=\"\",0,1)","v":1},null,null,null,"Salinity/Conductivity","N.A.",null,null,null,"Chlorella vulgaris",null,null,"not stated",null,null,"72 hour",null,null,"N.A.",null,null,"Growth inhibition: cell count",null,null,"Cyanobacteria",null,null,"Magnoliophyta",null,null,"Magnoliopsida",null,null,"Moderately hard standard water",null,null,"20 ± 1°C",null,null,null,null,null,"7.5 - 8.3"]
[null,"*","If the selected answer option does not work try clicking on any other cell first and then click back on the answer option again.",null,null,{"$f":"IF(AC3=\"\",0,1)","v":1},null,null,null,null,null,null,null,null,"Dunaliella tertiolecta",null,null,"not stated",null,null,"96 hrs",null,null,"NOEC",null,null,"Growth inhibition: growth rate",null,null,"Microorganism",null,null,null,null,null,"Cyanophyceae",null,null,"N.A.",null,null,"21-24",null,null,null,null,null,"7.7-7.9"]
[null,"No.","Question","Marks Awarded","Answer Options","Option References","Scores","Answers",null,null,null,null,null,null,"Lemna minor",null,null,null,null,null,"N.A.",null,null,"Population: Growth Rate: Frond count",null,null,"Mortality",null,null,null,null,null,null,null,null,"Bacillariophyceae",null,null,"not stated",null,null,"21-24 ± 2",null,null,null,null,null,"N.A."]
[null,null,"Was the duration of the exposure stated (e.g. 48 or 96 h)?",10,null,1,{"$f":"IF(F15=0,0,INDEX($D12:$D13,F12,1))","v":10},"5 days",null,null,null,null,null,null,"Mirocystis aeruginosa",null,null,null,null,null,"2 days",null,null,"EC10",null,null,"N.A.",null,null,null,null,null,null,null,null,null,null,null,"Steinberg medium",null,null,"22 ± 1°C",null,null,null,null,null,"N.A."]
[null,1,null,0,null,null,null,null,null,null,null,null,null,null,"Mycrocystis flos-aquae",null,null,null,null,null,"8 days",null,null,"IC50",null,null,"population growth",null,null,null,null,null,null,null,null,null,null,null,"Sterilised and filtered offshore marine water",null,null,"25 ± 2°C",null,null,null,null,null,"not stated"]
[null,null,null,null,null,null,null,null,null,null,null,null,null,null,"N.A.",null,null,null,null,null,"20 days",null,null,"IC50",null,null,"Population: Abundance: Biomass (Chl-a)",null,null,null,null,null,null,null,null,null,null,null,"Sterilised culture medium",null,null,"25°C",null,null,null,null,null,"not stated"]
[null,null,"Was the biological endpoint (e.g., immobilization or population growth) stated and defined (10 marks)? Award 5 marks if the biological endpoint is only stated.",10,null,2,{"$f":"IF(F15=0,0,INDEX($D15:$D17,F15,1))","v":5},"Growth",null,null,null,null,null,null,"raphidocelis subcapitata",null,null,null,null,null,"14 days",null,null,"NOEL",null,null,"Population: Growth Rate: Front count",null,null,null,null,null,null,null,null,null,null,null,"OECD medium",null,null,"N.A.",null,null,null,null,null,"PH11"]
[null,2,null,5,null,null,null,null,null,null,null,null,null,null,"Scenedesmus obliguus",null,null,null,null,null,"5 days",null,null,null,null,null,"Reproduction",null,null,null,null,null,null,null,null,null,null,null,"Algal medium",null,null,"Not stated",null,null,null,null,null,"PH7.0"]
[null,null,null,0,null,null,null,null,null,null,null,null,null,null,"Scenedesmus obliquus",null,null,null,null,null,null,null,null,null,null,null,"Growth",null,null,null,null,null,null,null,null,null,null,null,"Steinberg medium",null,null,"24-26oC",null,null,null,null,null,"7.9-8.3"]
[null,null,"Was the biological effect stated (e.g. LC or NOEC)?",5,null,2,{"$f":"IF(F18=0,0,INDEX($D18:$D19,F18,1))","v":0},"NOEC",null,null,null,null,null,null,"Scenedesmus obliquus",null,null,null,null,null,null,null,null,null,null,null,null,null,null,null,null,null,null,null,null,null,null,null,"K-media",null,null,"21-25oC",null,null,null,null,null,5]
[null,3,null,0,null,null,null,null,null,null,null,null,null,null,"Scenedesmus quadricauda",null,null,null,null,null,null,null,null,null,null,null,null,null,null,null,null,null,null,null,null,null,null,null,"Fresh nutrient media",null,null,"23-27oC",null,null,null,null,null,8]
[null,null,null,null,null,null,null,null,null,null,null,null,null,null,"Scenedesmus quadricauda",null,null,null,null,null,null,null,null,null,null,null,null,null,null,null,null,null,null,null,null,null,null,null,"Inorganic medium",null,null,"24oC",null,null,null,null,null,"5.6-6.0"]
[null,4,"Was the biological effect quantified (e.g. 50% effect, 25% effect)? \nNote: The effect for NOEC and LOEC data must be quantified.",5,null,2,{"$f":"IF(F21=0,0,INDEX($D21:$D22,F21,1))","v":0},"NOEC",null,null,null,null,null,null,"Scenedesmus vacuolatus",null,null,null,null,null,null,null,null,null,null,null,null,null,null,null,null,null,null,null,null,null,null,null,"Algal assay medium",null,null,"22oC"]
[null,null,null,0,null,null,null,null,null,null,null,null,null,null,"Selenastrum capricornutum",null,null,null,null,null,null,null,null,null,null,null,null,null,null,null,null,null,null,null,null,null,null,null,"Liquid medium",null,null,"22oC"]
[null,5,"Were appropriate controls (e.g. a no-toxicant control and/or solvent control) used?",5,null,1,{"$f":"IF(F23=0,0,INDEX($D23:$D24,F23,1))","v":5},"Control - nutrient media without chemical",null,null,null,null,null,null,"Selenastrum capricornutum",null,null,null,null,null,null,null,null,null,null,null,null,null,null,null,null,null,null,null,null,null,null,null,"Andrew's liquid nutrient medium",null,null,"23-25oC"]
[null,null,null,0,null,null,null,null,null,null,null,null,null,null,"Desmodesmus subspicatus",null,null,null,null,null,null,null,null,null,null,null,null,null,null,null,null,null,null,null,null,null,null,null,"Nutrient medium",null,null,"20-25oC"]
[null,null,null,null,null,null,null,null,null,null,null,null,null,null,"Rhapidocelis subcapitata",null,null,null,null,null,null,null,null,null,null,null,null,null,null,null,null,null,null,null,null,null,null,null,"10% Hoaglands medium",null,null,"22-26oC"]
[null,6,"Was each control and contaminant concentration at least duplicated?",5,null,1,{"$f":"IF(F26=0,0,INDEX($D26:$D27,F26,1))","v":5},"Minimum three repicates",null,null,null,null,null,null,"Lemna paucicostata",null,null,null,null,null,null,null,null,null,null,null,null,null,null,null,null,null,null,null,null,null,null,null,null,null,null,"25oC"]
[null,null,null,0,null,null,null,null,null,null,null,null,null,null,"Scenedesmus acutus"]
[null,null,null,null,null,null,null,null,null,null,null,null,null,null,"Myriophyllum sibiricum"]
[null,7,"Were test acceptability criteria stated (e.g. mortality in controls must not exceed a certain percentage) (5 marks)?\nOR Were test acceptability criteria inferred (e.g. test method used [USEPA, OECD, ASTM etc.]) (award 2 marks). \nNote: Data that fail the acceptability criteria are automatically deemed to be of unacceptable quality and must not be used. ",5,null,2,{"$f":"IF(F29=0,0,INDEX($D29:$D31,F29,1))","v":2},"USEPA guidelines - OPPTS 850.5400",null,null,null,null,null,null,"Navicula pelliculosa"]
[null,null,null,2,null,null,null,null,null,null,null,null,null,null,"Lemna gibba"]
[null,null,null,0,null,null,null,null,null,null,null,null,null,null,"Hydrilla verticillata"]
[null,8,"Were the characteristics of the test organism (e.g. length, mass, age) stated?",5,null,1,{"$f":"IF(F32=0,0,INDEX($D32:$D34,F32,1))","v":5},"1 x 10E4 cells/mL",null,null,null,null,null,null,"Navicula pelliculosa"]
[null,null,null,0]
[]
[null,9,"Was the type of test media used stated?",5,null,1,{"$f":"IF(F35=0,0,INDEX($D35:$D37,F35,1))","v":5},"Nutrient medium"]
[null,null,null,0]
[]
[null,null,"Was the type of exposure (e.g. static, flow through) stated? ",4,null,1,{"$f":"IF(F38=0,0,INDEX($D38:$D40,F38,1))","v":4},"Static"]
[null,10,null,0]
[]
[null,null,"Were the contaminant concentrations measured at the beginning and end of the exposure (4 marks)? Award 2 marks if they were measured only once during the test.\nNote: If the concentrations were not measured then automatically the data cannot be high quality. ",4,null,3,{"$f":"IF(F41=0,0,INDEX($D41:$D43,F41,1))","v":0},"Not stated"]
[null,11,null,2]
[null,null,null,0]
[null,null,"Were parallel reference toxicant toxicity tests conducted?",4,null,2,{"$f":"IF(F44=0,0,INDEX($D44:$D46,F44,1))","v":0},"Not stated"]
[null,12,null,0]
[]
[null,null,"Was there a concentration–response relationship either observable or stated?",4,null,2,{"$f":"IF(F47=0,0,INDEX($D47:$D49,F47,1))","v":0},"Not stated"]
[null,13,null,0]
[]
[null,null,"Was an appropriate statistical method or model used to determine the toxicity?\nNote: They should be accepted by a recognised national or international regulatory body (e.g. USEPA, OECD, ASTM). ",4,null,1,{"$f":"IF(F50=0,0,INDEX($D50:$D52,F50,1))","v":4},"Yes"]
[null,14,null,0]
[]
[null,15,"For LC/EC/BEC data was an estimate of variability provided? \nOR \nFor NO EC/LOEC data was the significance level 0.05 or less?  \n\n",4,null,1,{"$f":"IF(F53=0,0,INDEX($D53:$D55,F53,1))","v":4},"p < 0.05"]
[null,null,null,0]
[]
[null,16,"Were the following parameters measured and stated? (3 marks if measured and stated, 1 mark if just measured)."]
[null,null,"pH",3,null,3,{"$f":"IF(F57=0,0,INDEX($D57:$D59,F57,1))","v":0},"Not stated"]
[null,16.100000000000001,null,1]
[null,null,null,0]
[]
[null,null,"Was the temperature measured and stated (3 marks)? Award 1 mark if the temperature was measured but not stated or if only the temperature settings of the room or chamber are stated.",3,null,2,{"$f":"IF(F61=0,0,INDEX($D61:$D63,F61,1))","v":1},"Not stated"]
[null,17,null,1]
[null,null,null,0]
[null,null,"Were test solutions, blanks and/or controls tested for contamination OR were analytical reagent grade chemicals used or the highest possible purity chemicals used for the experiment? (3 marks).",3,null,1,{"$f":"IF(F64=0,0,INDEX($D64:$D65,F64,1))","v":3},"95.72% AI"]
[null,18,null,0]
[]
[null,null,null,null,null,null,null,null,{"$f":"COUNTIF(D2:D7,\"=0\")+COUNTIF(F2:F10,\"=0\")+COUNTIF(F12:F64,\"=0\")","v":0}]
[]
[]
[null,null,"Total score",null,null,null,{"$f":"IF(SUM(G12:G67)=0,\"\",SUM(G12:G67))","v":53}]
[null,null,"Total Max. possible score for the various types of data and contaminants ",null,{"$f":"D12+D15+D18+D21+D23+D26+D29+D32+D35+D38+D41+D44+D47+D50+D53+D57+D61+D64","v":88}]
[null,null,"Quality Score",null,{"$f":"\"= [Total score / Total possible score] * 100 = \"","v":"= [Total score / Total possible score] * 100 = "},null,{"$f":"IF(ISERROR(G70/E71),#N/A,G70/E71)","v":0.60227272727272729},{"$f":"IF(F41=3,\"The highest possible grade for this datum is acceptable.\",\"\")","v":"The highest possible grade for this datum is acceptable."}]
[]
[null,null,"H = high quality                           Quality score ≥ 80%  "]
[null,null,"A = acceptable quality         > 50% Quality score < 80%     "]
[null,null,"U = unacceptable quality              Quality score ≤ 50%"]
[]
[3,null,"Click the 'Save & Update' button to save and export the answers to the 'All results' worksheet. "]
[null,null,"Select the 'Reset Answers' button if you wish to clear all answers."]

{"sheet":"FW nonmetal plant_WS","index":8,"n_rows":117,"n_cols":22,"rows_kept":117,"cut":false,"hidden":false,"merged":[]}
[]
["Question No.",1,2,3,4,5,6,7,8,9,10,11,12,13,14,15,16.100000000000001,17,18,"Total Score","Quality Score","Comment "]
["Short Questions","Duration of the exposure ","Biological endpoint","Biological effect stated or not","Biological effect quantified or not","Appropriate controls","Control & contaminant concentration","Test acceptability criteria","Characteristics of the test organism"," Type of test media","Type of exposure","Contaminant concentrations","Parallel reference toxicant toxicity tests","Concentration–response relationship","Determine the toxicity","NOEC/LOEC or LC/EC/BEC","pH","Temperature","Grade or purity"]
["Category","Freshwater/non-metal/plant","Paper and data unique identifier(eg. 1-1,10-150)","244-1"]
["Scores",10,5,5,5,5,5,0,5,5,0,0,0,0,4,4,0,1,0,57,0.64772727272727271,"The highest possible grade for this datum is acceptable."]
["Answers","4 days","Growth","EC50","EC50","Control solutions with no herbicides. Herbicides were dissolved in acetone, methanol or distilled water","Triplicate","Not stated","6 x 10-5 cells/ml","HB4","Not stated","Not stated","Not stated","Not stated","Correlation coefficients > 0.85","Correlation coefficients > 0.85","Not stated","25oC","MCPA 10% soluble concentrate"]
["Category","Freshwater/non-metal/plant","Paper and data unique identifier(eg. 1-1,10-150)","245-1"]
["Scores",10,5,5,5,5,5,0,5,5,0,0,0,0,4,4,0,1,0,57,0.64772727272727271,"The highest possible grade for this datum is acceptable."]
["Answers","4 days","Growth","EC50","EC50","Control solutions with no herbicides. Herbicides were dissolved in acetone, methanol or distilled water","Triplicate","Not stated","6 x 10-5 cells/ml","HB4","Not stated","Not stated","Not stated","Not stated","Correlation coefficients > 0.85","Correlation coefficients > 0.85","Not stated","25oC","MCPA 10% soluble concentrate"]
["Category","Freshwater/non-metal/plant","Paper and data unique identifier(eg. 1-1,10-150)","245-2"]
["Scores",10,5,5,5,5,5,0,5,5,0,0,0,0,4,4,0,1,0,57,0.64772727272727271,"The highest possible grade for this datum is acceptable."]
["Answers","4 days","Growth","EC50","EC50","Control solutions with no herbicides. Herbicides were dissolved in acetone, methanol or distilled water","Triplicate","Not stated","6 x 10-5 cells/ml","HB4","Not stated","Not stated","Not stated","Not stated","Correlation coefficients > 0.85","Correlation coefficients > 0.85","Not stated","25oC","MCPA 10% soluble concentrate"]
["Category","Freshwater/non-metal/plant","Paper and data unique identifier(eg. 1-1,10-150)","250-1"]
["Scores",10,5,5,5,5,5,0,5,5,0,0,0,0,4,4,0,1,0,57,0.64772727272727271,"The highest possible grade for this datum is acceptable."]
["Answers","4 days","Growth","EC50","EC50","Control solutions with no herbicides. Herbicides were dissolved in acetone, methanol or distilled water","Triplicate","Not stated","6 x 10-5 cells/ml","HB4","Not stated","Not stated","Not stated","Not stated","Correlation coefficients > 0.85","Correlation coefficients > 0.85","Not stated","25oC","MCPA 10% soluble concentrate"]
["Category","Freshwater/non-metal/plant","Paper and data unique identifier(eg. 1-1,10-150)","765-5"]
["Scores",10,5,5,5,5,0,0,0,5,0,0,0,0,4,0,0,1,0,40,0.45454545454545453,"The highest possible grade for this datum is acceptable."]
["Answers","72 hours","Growth","EC50","EC50","Assumed as following guideline OECD 201","Not stated","Not stated","Not stated","OECD medium","Not stated","Not stated","Not stated","Not stated","Not stated","Not stated","Not stated","24-26oC","Chwastox Extra 300 SL (soluble concentrate) "]
["Category","Freshwater/non-metal/plant","Paper and data unique identifier(eg. 1-1,10-150)","251-1"]
["Scores",10,5,5,5,5,0,2,0,5,0,0,0,0,4,0,1,0,3,45,0.51136363636363635,"The highest possible grade for this datum is acceptable."]
["Answers","3 days","Growth - cell counts","EC10","EC10","Algal medium","Not stated","ISO guidelines","Not stated","Algal medium","Not stated","Not stated","Not stated","Not stated","p<0.05","p<0.05","7.9-8.3","21-25oC","MCPA techincal grade - 95% sodium salt"]
["Category","Freshwater/non-metal/plant","Paper and data unique identifier(eg. 1-1,10-150)","251-2"]
["Scores",10,5,5,5,5,0,2,5,5,0,0,0,0,4,0,0,3,3,52,0.59090909090909094,"The highest possible grade for this datum is acceptable."]
["Answers","7 days","Growth - frond number","EC10","EC10","Steinberg medium","Not stated","International Standard","Frond number","Steinberg medium","Not stated","Not stated","Not stated","Not stated","p<0.05","p<0.05","Not stated","23-27oC","MCPA techincal grade - 95% sodium salt"]
["Category","Freshwater/non-metal/plant","Paper and data unique identifier(eg. 1-1,10-150)","249-1"]
["Scores",10,5,5,5,5,0,2,5,5,0,0,0,0,4,0,1,1,3,51,0.57954545454545459,"The highest possible grade for this datum is acceptable."]
["Answers","7 days","Growth - surface area","EC10","EC10","K medium","Three replicates per concentration and six controls","International Standard","Surface area","K-medium","Not stated","Not stated","Not stated","Not stated","Not stated","Not stated",5,"24oC","MCPA techincal grade - 93%"]
["Category","Freshwater/non-metal/plant","Paper and data unique identifier(eg. 1-1,10-150)","249-2"]
["Scores",10,5,5,5,5,0,2,5,5,0,0,0,0,4,0,1,1,3,51,0.57954545454545459,"The highest possible grade for this datum is acceptable."]
["Answers","7 days","Growth - surface area","EC50","EC50","K medium","Three replicates per concentration and six controls","International Standard","Surface area","K-medium","Not stated","Not stated","Not stated","Not stated","Not stated","Not stated",5,"24oC","MCPA techincal grade - 93%"]
["Category","Freshwater/non-metal/plant","Paper and data unique identifier(eg. 1-1,10-150)","249-3"]
["Scores",10,5,5,5,5,0,0,5,5,0,0,0,0,4,0,1,1,3,49,0.55681818181818177,"The highest possible grade for this datum is acceptable."]
["Answers","2 days","Growth - cell counts","EC10","EC10","Fresh nutrient media","Two replicates per concentration and six controls","Not stated","Cell counts ","Fresh nutrient media","Not stated","Not stated","Not stated","Not stated","Not stated","Not stated",8,"22oC","MCPA techincal grade - 93%"]
["Category","Freshwater/non-metal/plant","Paper and data unique identifier(eg. 1-1,10-150)","769-1"]
["Scores",10,5,5,5,5,0,0,0,5,0,0,0,0,4,0,0,0,0,39,0.44318181818181818,"The highest possible grade for this datum is acceptable."]
["Answers","8 days","Growth - area","IC50","IC50","Growth inhibition stated as a percentage of the controls","Triplicate","Not stated","Not stated","Inorganic medium ","Not stated","Not stated","Not stated","Not stated","Not stated","Not stated","Not stated","Not stated","Purity not stated"]
["Category","Freshwater/non-metal/plant","Paper and data unique identifier(eg. 1-1,10-150)","769-2"]
["Scores",10,5,5,5,5,0,0,0,5,0,0,0,0,4,0,0,1,0,40,0.45454545454545453,"The highest possible grade for this datum is acceptable."]
["Answers","24 hours","Growth - cell counts","IC50","IC50","Growth inhibition stated as a percentage of the controls","Duplicate","Not stated","Not stated","Inorganic medium ","Not stated","Not stated","Not stated","Not stated","Not stated","Not stated","Not stated","22oC","Purity not stated"]
["Category","Freshwater/non-metal/plant","Paper and data unique identifier(eg. 1-1,10-150)","248-1"]
["Scores",10,5,5,5,5,5,0,5,5,0,0,0,0,4,0,0,1,0,50,0.56818181818181823,"The highest possible grade for this datum is acceptable."]
["Answers","4 days","Growth","EC50","EC50","Control solution with no herbicides. ","Triplicate","Not stated","5 x 10-5 cells/ml","HB-4","Not stated","Not stated","Not stated","Not stated","P<0.003","P<0.003","Not stated","25oC","10% soluble concentrate"]
["Category","Freshwater/non-metal/plant","Paper and data unique identifier(eg. 1-1,10-150)","768-1"]
["Scores",10,5,5,5,5,5,2,5,5,0,0,0,0,4,0,0,0,3,54,0.61363636363636365,"The highest possible grade for this datum is acceptable."]
["Answers","4 days","Growth (inhibition of reproductin by means of electronic cell counting)","LOEC","LOEC","Controls","Five replicates","Environment Canada's Biological Test Methods","220000 cells/ml","Algal assay medium","Not stated","Not stated","Not stated","Not stated","p<0.05","p<0.05","Not stated","Not stated","96% purity"]
["Category","Freshwater/non-metal/plant","Paper and data unique identifier(eg. 1-1,10-150)","768-2"]
["Scores",10,5,5,5,5,5,2,5,5,0,0,0,0,4,0,0,0,3,54,0.61363636363636365,"The highest possible grade for this datum is acceptable."]
["Answers","4 days","Growth (inhibition of reproductin by means of electronic cell counting)","IC50","IC50","Controls","Five replicates","Environment Canada's Biological Test Methods","220000 cells/ml","Algal assay medium","Not stated","Not stated","Not stated","Not stated","p<0.05","p<0.05","Not stated","Not stated","96% purity"]
["Category","Freshwater/non-metal/plant","Paper and data unique identifier(eg. 1-1,10-150)","768-3"]
["Scores",10,5,5,5,5,5,2,5,5,0,0,0,0,4,0,0,0,3,54,0.61363636363636365,"The highest possible grade for this datum is acceptable."]
["Answers","4 days","Growth (dose response curves by flow cytometry and particle counter)","IC50","IC50","Controls","Five replicates","Environment Canada's Biological Test Methods","220000 cells/ml","Algal assay medium","Not stated","Not stated","Not stated","Not stated","p<0.05","p<0.05","Not stated","Not stated","96% purity"]
["Category","Freshwater/non-metal/plant","Paper and data unique identifier(eg. 1-1,10-150)","768-4"]
["Scores",10,5,5,5,5,5,2,5,5,0,0,0,0,4,0,0,0,3,54,0.61363636363636365,"The highest possible grade for this datum is acceptable."]
["Answers","4 days","Growth (dose response curves by flow cytometry and particle counter)","LC50","LC50","Controls","Five replicates","Environment Canada's Biological Test Methods","220000 cells/ml","Algal assay medium","Not stated","Not stated","Not stated","Not stated","p<0.05","p<0.05","Not stated","Not stated","96% purity"]
["Category","Freshwater/non-metal/plant","Paper and data unique identifier(eg. 1-1,10-150)","247-1"]
["Scores",10,5,5,5,5,5,0,5,5,0,0,0,0,4,0,0,1,3,53,0.60227272727272729,"The highest possible grade for this datum is acceptable."]
["Answers","4 days","Growth","EC50","EC50","Control solutions with  no herbicides","Triplicate","Not stated","Optical Density (OD) @ 680 nm = 0.05","HB-4 medium","Not stated","Not stated","Not stated","Not stated","Not stated","Not stated","Not stated","25oC","90% technical grade"]
["Category","Freshwater/non-metal/plant","Paper and data unique identifier(eg. 1-1,10-150)","767-1"]
["Scores",10,5,5,5,5,5,2,5,5,0,2,0,0,4,0,0,0,3,56,0.63636363636363635,""]
["Answers","1 day","Growth (inhibition of reproduction measured by electronic cell counting)","NOEC","NOEC","Untreated controls","Triplicate","Referenced published works","Not stated","Algal growth medium","Not stated","HPLC of the stoc solutions ","Not stated","Not stated","95% CI","95% CI","Not stated","Not stated",">97%"]
["Category","Freshwater/non-metal/plant","Paper and data unique identifier(eg. 1-1,10-150)","767-2"]
["Scores",10,5,5,5,5,5,2,5,5,0,2,0,0,4,0,0,0,3,56,0.63636363636363635,""]
["Answers","1 day","Growth (inhibition of reproduction measured by electronic cell counting)","EC50","EC50","Untreated controls","Triplicate","Referenced published works","Not stated","Algal growth medium","Not stated","HPLC of the stoc solutions ","Not stated","Not stated","95% CI","95% CI","Not stated","Not stated",">97%"]
["Category","Freshwater/non-metal/plant","Paper and data unique identifier(eg. 1-1,10-150)","3400-1"]
["Scores",10,5,5,5,5,5,0,5,5,0,0,0,4,4,0,0,1,3,57,0.64772727272727271,"The highest possible grade for this datum is acceptable."]
["Answers","20 days","Growth - cell counts","EC50","EC50","Controls","Triplicate","Not stated","Not stated","Liquid medium - constituents provided in paper","Not stated","Not stated","Not stated","Figure 1","95% CI","95% CI","Not stated","24-26oC","Pure product"]
["Category","Freshwater/non-metal/plant","Paper and data unique identifier(eg. 1-1,10-150)","694-1"]
["Scores",10,5,5,5,0,5,2,5,5,0,0,0,0,4,4,0,1,0,51,0.56043955999999995,"The highest possible grade for this datum is acceptable."]
["Answers","14 days","Growth - shoot growth","IC50","IC50","Not stated","Four to eight replicates per test concentration","ASTM testing guidelines","3 cm apical segments, without roots","Modified Andrew's liquid nutrient medium supplemented with 3% sucrose","Not stated","Not stated","Not stated","Not stated","p < 0.05","p < 0.05","5.6-6.0","Incubated at 25oC during the day and 20oC at night","Oust formulation"]
["Category","Freshwater/non-metal/plant","Paper and data unique identifier(eg. 1-1,10-150)","694-2"]
["Scores",10,5,5,5,0,5,2,5,5,0,0,0,0,4,4,0,1,0,51,0.56043955999999995,"The highest possible grade for this datum is acceptable."]
["Answers","14 days","Growth - root number","IC50","IC50","Not stated","Four to eight replicates per test concentration","ASTM testing guidelines","3 cm apical segments","Modified Andrew's liquid nutrient medium supplemented with 3% sucrose","Not stated","Not stated","Not stated","Not stated","p < 0.05","p < 0.05","5.6-6.0","Incubated at 25oC during the day and 20oC at night","Oust formulation"]
["Category","Freshwater/non-metal/plant","Paper and data unique identifier(eg. 1-1,10-150)","694-3"]
["Scores",10,5,5,5,0,5,2,5,5,0,0,0,0,4,4,0,1,3,51,0.56043955999999995,"The highest possible grade for this datum is acceptable."]
["Answers","14 days","Growth - root dry mass","IC50","IC50","Not stated","Four to eight replicates per test concentration","ASTM testing guidelines","3 cm apical segments","Modified Andrew's liquid nutrient medium supplemented with 3% sucrose","Not stated","Not stated","Not stated","Not stated","p < 0.05","p < 0.05","5.6-6.0","Incubated at 25oC during the day and 20oC at night","Oust formulation"]
["Category","Freshwater/non-metal/plant","Paper and data unique identifier(eg. 1-1,10-150)","764-1"]
["Scores",10,5,5,5,5,5,2,5,5,4,0,0,0,4,4,0,1,3,63,0.71590909090909094,"The highest possible grade for this datum is acceptable."]
["Answers","5 days","Growth - abundance","NOEL","NOEL","Nutrient only control","4 replicates","OCSPP 850.455 - USEPA guidelines","Logarithmic growth phase (approximately 3-7 days old)","Nutrient medium","Static","Not stated","Not stated","Not stated","Yes","Yes","Not stated","Not stated","Technical "]
["Category","Freshwater/non-metal/plant","Paper and data unique identifier(eg. 1-1,10-150)","764-2"]
["Scores",10,5,5,5,5,5,2,5,5,4,0,0,0,4,4,0,1,3,63,0.71590909090909094,"The highest possible grade for this datum is acceptable."]
["Answers","5 days","Growth - abundance","NOEC","NOEC","Nutrient only control","4 replicates","FIFRA 158-54 - USEPA guidelines","Logarithmic growth phase (approximately 3-7 days old)","Nutrient medium","Static","Not stated","Not stated","Not stated","Yes","Yes","Not stated","Not stated","Technical "]
["Category","Freshwater/non-metal/plant","Paper and data unique identifier(eg. 1-1,10-150)","765-1"]
["Scores",10,5,5,5,5,5,2,5,5,4,0,0,0,4,4,0,1,3,63,0.71590909090909094,"The highest possible grade for this datum is acceptable."]
["Answers","5 days","Growth - abundance","NOEL","NOEL","Nutrient only control","4 replicates","OCSPP 850.450 - USEPA guidelines","Logarithmic growth phase (approximately 3-7 days old)","Nutrient medium","Static","Not stated","Not stated","Not stated","Yes","Yes","Not stated","Not stated","Technical "]
["Category","Freshwater/non-metal/plant","Paper and data unique identifier(eg. 1-1,10-150)","766-1"]
["Scores",10,5,5,5,5,5,2,5,5,4,0,0,0,4,4,0,1,3,63,0.71590909090909094,"The highest possible grade for this datum is acceptable."]
["Answers","14 days","Growth - frond count","NOEC","NOEC","Nutrient only control","5 replicates","FIFRA 158.54 - USEPA guidelines","Between 7 and 12 days old","Nutrient medium","Static","Not stated","Not stated","Not stated","Yes","Yes","Not stated","Not stated","Technical "]
["Category","Freshwater/non-metal/plant","Paper and data unique identifier(eg. 1-1,10-150)","767-1"]
["Scores",10,5,0,0,5,5,0,5,5,4,0,0,4,4,4,0,1,0,52,0.57142857000000002,"The highest possible grade for this datum is acceptable."]
["Answers","7 days","Growth","EC50","EC50","Glucose, NaCl or CaCl2","Triplicate","Not stated","New cuttings ","10% Hoaglands medium augmented with NaHCO3","Static - fresh medium 3-6 days before use in an assay","Not stated","Not stated","Figure 3","p = 0.05","p = 0.05","Not stated","25oC","Oust formulation"]
["Category","Freshwater/non-metal/plant","Paper and data unique identifier(eg. 1-1,10-150)","767-2"]
["Scores",10,5,0,0,5,5,0,5,5,4,0,0,4,4,4,0,1,0,52,0.57142857000000002,"The highest possible grade for this datum is acceptable."]
["Answers","7 days","Growth","NOEC","NOEC","Glucose, NaCl or CaCl2","Triplicate","Not stated","New cuttings ","10% Hoaglands medium augmented with NaHCO3","Static - fresh medium 3-6 days before use in an assay","Not stated","Not stated","Figure 3","p = 0.05","p = 0.05","Not stated","25oC","Oust formulation"]
["Category","Freshwater/non-metal/plant","Paper and data unique identifier(eg. 1-1,10-150)","3605-1"]
["Scores",10,5,0,0,5,5,2,5,5,4,0,0,0,4,4,0,1,3,53,0.60227272727272729,"The highest possible grade for this datum is acceptable."]
["Answers","5 days","Growth","EC50","EC50","Control - nutrient media without chemical","Minimum three repicates","USEPA guidelines - OPPTS 850.5400","1 x 10E4 cells/mL","Nutrient medium","Static","Not stated","Not stated","Not stated","p < 0.05","p < 0.05","Not stated","Not stated","99.16% AI"]
["Category","Freshwater/non-metal/plant","Paper and data unique identifier(eg. 1-1,10-150)","3605-2"]
["Scores",10,5,0,0,5,5,2,5,5,4,0,0,0,4,4,0,1,3,53,0.60227272727272729,"The highest possible grade for this datum is acceptable."]
["Answers","5 days","Growth","NOEC","NOEC","Control - nutrient media without chemical","Minimum three repicates","USEPA guidelines - OPPTS 850.5400","1 x 10E4 cells/mL","Nutrient medium","Static","Not stated","Not stated","Not stated","p < 0.05","p < 0.05","Not stated","Not stated","99.16% AI"]
["Category","Freshwater/non-metal/plant","Paper and data unique identifier(eg. 1-1,10-150)","3603-1"]
["Scores",10,5,0,0,5,5,2,5,5,4,0,0,0,4,4,0,1,3,53,0.60227272727272729,"The highest possible grade for this datum is acceptable."]
["Answers","5 days","Growth","EC50","EC50","Control - nutrient media without chemical","Minimum four replicates","USEPA guidelines - OPPTS 850.5400","1 x 10E4 cells/mL","Nutrient medium","Static","Not stated","Not stated","Not stated","p < 0.05","p < 0.05","Not stated","Not stated","99.16% AI"]
["Category","Freshwater/non-metal/plant","Paper and data unique identifier(eg. 1-1,10-150)","3603-2"]
["Scores",10,5,0,0,5,5,2,5,5,4,0,0,0,4,4,0,1,3,53,0.60227272727272729,"The highest possible grade for this datum is acceptable."]
["Answers","5 days","Growth","NOEC","NOEC","Control - nutrient media without chemical","Minimum four replicates","USEPA guidelines - OPPTS 850.5400","1 x 10E4 cells/mL","Nutrient medium","Static","Not stated","Not stated","Not stated","p < 0.05","p < 0.05","Not stated","Not stated","99.16% AI"]
["Category","Freshwater/non-metal/plant","Paper and data unique identifier(eg. 1-1,10-150)","3602-1"]
["Scores",10,5,0,0,5,5,2,5,5,4,0,0,0,4,4,0,1,3,53,0.60227272727272729,"The highest possible grade for this datum is acceptable."]
["Answers","5 days","Growth","NOEC","NOEC","Control - nutrient media without chemical","Minimum three repicates","USEPA guidelines - OPPTS 850.5400","1 x 10E4 cells/mL","Nutrient medium","Static","Not stated","Not stated","Not stated","p < 0.05","p < 0.05","Not stated","Not stated","99.1% AI"]
["Category","Freshwater/non-metal/plant","Paper and data unique identifier(eg. 1-1,10-150)","3602-2"]
["Scores",10,5,0,0,5,5,2,5,5,4,0,0,0,4,4,0,1,3,53,0.60227272727272729,"The highest possible grade for this datum is acceptable."]
["Answers","5 days","Growth","EC50","EC50","Control - nutrient media without chemical","Minimum three repicates","USEPA guidelines - OPPTS 850.5400","1 x 10E4 cells/mL","Nutrient medium","Static","Not stated","Not stated","Not stated","p < 0.05","p < 0.05","Not stated","Not stated","99.1% AI"]
["Category","Freshwater/non-metal/plant","Paper and data unique identifier(eg. 1-1,10-150)","3607-1"]
["Scores",10,5,0,0,5,5,2,5,5,4,0,0,0,4,4,0,1,3,53,0.60227272727272729,"The highest possible grade for this datum is acceptable."]
["Answers","5 days","Growth","EC50","EC50","Control - nutrient media without chemical","Minimum three repicates","USEPA guidelines - OPPTS 850.5400","1 x 10E4 cells/mL","Nutrient medium","Static","Not stated","Not stated","Not stated","p < 0.05","p < 0.05","Not stated","Not stated","95.72% AI"]
["Category","Freshwater/non-metal/plant","Paper and data unique identifier(eg. 1-1,10-150)","3607-2"]
["Scores",10,5,0,0,5,5,2,5,5,4,0,0,0,4,4,0,1,3,53,0.60227272727272729,"The highest possible grade for this datum is acceptable."]
["Answers","5 days","Growth","NOEC","NOEC","Control - nutrient media without chemical","Minimum three repicates","USEPA guidelines - OPPTS 850.5400","1 x 10E4 cells/mL","Nutrient medium","Static","Not stated","Not stated","Not stated","p < 0.05","p < 0.05","Not stated","Not stated","95.72% AI"]